{"text_format":"1","workbook":"xlsx","n_sheets":24,"sheets":["Cover Page_Applicant#1","IDF_Applicant#1","Cover Page_Applicant#2","IDF_Applicant#2","Cover Page_Applicant#3","IDF_Applicant#3","A. General Project Information","B. SOW","C. Budget_A#1","D. Budget Narrative_A#1","C. Budget_A#2","D. Budget Narrative_A#2","C. Budget_A#3","D. Budget Narrative_A#3","Grant Agreement_A#1","Grant Agreement_A#2","Grant Agreement_A#3","F. Standard TCs","G. Bioethics compliance_DNA ","H. Bioethics compliance","I. Equipment Compliance","J. Financial Reporting","K. Other Terms and Conditions","Tecnical"],"not_rendered":{"charts":0,"images":4,"macros":1,"external_links":0,"defined_names":24,"comments":4,"pivot_tables":0},"unopened":[],"bounds":{"document_bytes":16777216,"sheet_cells":100000,"rows_first":2000,"rows_last":500,"rows_between":2000,"halvings":0,"cell_chars":16384,"cell_head_chars":4096},"cells_cut":0,"cells_raw":0,"read":"whole","date_system":"1900"}

{"sheet":"Cover Page_Applicant#1","index":0,"n_rows":47,"n_cols":18,"rows_kept":47,"cut":false,"hidden":false,"merged":[[0,0,0,8],[1,0,1,8],[2,0,30,8]]}
["PROPOSAL COVER LETTER"]
["Applicant #2"]
["\n\nProposal Cover Letter\n\nRe: [Insert Project title]\n\nI, [Institution's Authorized Signatory Name], hereby acknowledge that I have submitted a proposal to [title of RFP] on behalf of [insert Institution's full name].  \n\nIf awarded a grant, I confirm that [insert name of the Principal Investigator] will be representing [insert Institution's full name] during implementation of the Project titled [Insert Project title].\n\nI attest that the information contained in submitted proposal package which consists of\n(1) Institutional Data Form,\n(2) General Project Information,\n(3) Scope of Work,\n(4) Budget,\n(5) Budget Narrative, \n\nis truthful and that it has been prepared with the full knowledge and consent of [insert Institution's full name]. If awarded, I undertake this research in good faith and will uphold my portion of the collaborative work as proposed in the proposal.  \n\nUnless explicitly specified in 'Other Funding Sources for Project Personnel' below, I confirm that personnel under [Insert Project title] is not financed from sources other than this grant.\n\nOther Funding Sources for Project Personnel: [specify here, if any]. \n\nI affirm that I have read and understand CRDF Global’s policies and standards outlined within the [title of RFP], including CRDF Global’s General Terms and Conditions.  \n\n\nAuthorized Signatory: [Insert Authorized Signatory's Name and Title]\n\n[Signature]\n\n[Date]\n\nPrincipal Investigator: [Insert Principal Investigator's Name and Title]\n\n[Signature]\n\n[Date]"]
[]
[]
[]
[]
[null,null,null,null,null,null,null,null,null,null,null,null,null,null,null,null,null,{"$f":"B8","v":0}]
[]
[]
[null,null,null,null,null,null,null,null,null,null,null,null,null,null,null,null,null,{"$f":"D11","v":0}]
[null,null,null,null,null,null,null,null,null,null,null,null,null,null,null,null,null,{"$f":"D12","v":0}]
[null,null,null,null,null,null,null,null,null,null,null,null,null,null,null,null,null,{"$f":"D13","v":0}]
[null,null,null,null,null,null,null,null,null,null,null,null,null,null,null,null,null,{"$f":"D14","v":0}]
[null,null,null,null,null,null,null,null,null,null,null,null,null,null,null,null,null,0]
[null,null,null,null,null,null,null,null,null,null,null,null,null,null,null,null,null,0]
[]
[]
[null,null,null,null,null,null,null,null,null,null,null,null,null,null,null,null,null,{"$f":"B19","v":0}]
[]
[]
[null,null,null,null,null,null,null,null,null,null,null,null,null,null,null,null,null,{"$f":"B22","v":0}]
[]
[]
[]
[null,null,null,null,null,null,null,null,null,null,null,null,null,null,null,null,null,{"$f":"B26","v":0}]
[]
[]
[]
[]
[]
[]
[]
[null,null,null,null,null,null,null,null,null,null,null,null,null,null,null,null,null,{"$f":"E34","v":0}]
[null,null,null,null,null,null,null,null,null,null,null,null,null,null,null,null,null,{"$f":"E35","v":0}]
[]
[]
[null,null,null,null,null,null,null,null,null,null,null,null,null,null,null,null,null,0]
[null,null,null,null,null,null,null,null,null,null,null,null,null,null,null,null,null,0]
[null,null,null,null,null,null,null,null,null,null,null,null,null,null,null,null,null,0]
[null,null,null,null,null,null,null,null,null,null,null,null,null,null,null,null,null,0]
[null,null,null,null,null,null,null,null,null,null,null,null,null,null,null,null,null,{"$f":"D41","v":0}]
[]
[null,null,null,null,null,null,null,null,null,null,null,null,null,null,null,null,null,0]
[null,null,null,null,null,null,null,null,null,null,null,null,null,null,null,null,null,0]
[null,null,null,null,null,null,null,null,null,null,null,null,null,null,null,null,null,0]
[null,null,null,null,null,null,null,null,null,null,null,null,null,null,null,null,null,0]

{"sheet":"IDF_Applicant#1","index":1,"n_rows":92,"n_cols":20,"rows_kept":92,"cut":false,"hidden":false,"merged":[[0,0,0,8],[6,1,6,7],[7,1,7,7],[9,1,9,7],[10,3,10,7],[11,3,11,7],[17,1,17,7],[20,1,20,7],[21,1,21,7],[24,1,24,7],[25,1,25,7],[12,1,12,2],[12,3,12,7],[13,1,13,2],[13,3,13,7],[14,3,14,7],[15,3,15,7],[36,1,36,7],[27,1,27,7],[28,1,28,7],[29,1,29,5],[29,6,29,7],[30,1,30,3],[30,4,30,5],[30,6,30,7],[32,1,32,7],[33,1,33,3],[33,4,33,7],[34,1,34,3],[34,4,34,7],[44,1,44,2],[44,3,44,7],[37,1,37,2],[37,3,37,7],[38,1,38,2],[38,3,38,7],[39,1,39,2],[39,3,39,7],[40,1,40,2],[40,3,40,7],[42,1,42,7],[43,1,43,2],[43,3,43,7],[45,1,45,2],[45,3,45,7],[46,1,46,2],[46,3,46,7],[49,1,49,7],[51,1,51,5],[51,6,51,7],[59,1,59,5],[59,6,59,7],[60,1,60,5],[60,6,60,7],[52,1,52,5],[52,6,52,7],[54,1,54,5],[54,6,54,7],[55,1,55,5],[55,6,55,7],[62,1,62,5],[62,6,62,7],[56,1,56,5],[56,6,56,7],[57,1,57,5],[57,6,57,7],[58,1,58,5],[58,6,58,7],[76,6,76,7],[78,1,78,5],[78,6,78,7],[63,1,63,5],[63,6,63,7],[64,1,64,5],[64,6,64,7],[66,1,66,5],[66,6,66,7],[68,1,68,5],[68,6,68,7],[70,1,70,5],[70,6,70,7],[72,1,72,5],[72,6,72,7],[91,1,91,5],[91,6,91,7],[1,0,1,8],[85,1,85,5],[85,6,85,7],[87,1,87,5],[87,6,87,7],[89,1,89,5],[89,6,89,7],[83,1,83,5],[83,6,83,7],[80,1,80,5],[80,6,80,7],[74,1,74,5],[74,6,74,7],[76,1,76,5]]}
["INSTITUTIONAL DATA FORM (IDF)"]
["Applicant #1"]
[]
[]
[]
[]
[null,"1. Grantee Name"]
[null,null,null,null,null,null,null,null,null,null,null,null,null,null,null,null,null,{"$f":"B8","v":0}]
[]
[null,"2. Grantee Address"]
[null,"Address Line 1",null,null,null,null,null,null,null,null,null,null,null,null,null,null,null,{"$f":"D11","v":0}]
[null,"Address Line 2",null,null,null,null,null,null,null,null,null,null,null,null,null,null,null,{"$f":"D12","v":0}]
[null,"City",null,null,null,null,null,null,null,null,null,null,null,null,null,null,null,{"$f":"D13","v":0}]
[null,"State",null,null,null,null,null,null,null,null,null,null,null,null,null,null,null,{"$f":"D14","v":0}]
[null,"Postal Code",null,null,null,null,null,null,null,null,null,null,null,null,null,null,null,0]
[null,"Grantee Country",null,null,null,null,null,null,null,null,null,null,null,null,null,null,null,0]
[null,null,null,null,null,null,null,null,null,null,null,null,null,null,null,null,null,0]
[null,"3. Grantee Phone",null,null,null,null,null,null,null,null,null,null,null,null,null,null,null,0]
[null,"[enter here]",null,null,null,null,null,null,null,null,null,null,null,null,null,null,null,{"$f":"B19","v":"[enter here]"}]
[null,null,null,null,null,null,null,null,null,null,null,null,null,null,null,null,null,0]
[null,"4. Grantee E-mail",null,null,null,null,null,null,null,null,null,null,null,null,null,null,null,0]
[null,null,null,null,null,null,null,null,null,null,null,null,null,null,null,null,null,{"$f":"B22","v":0}]
[]
[]
[null,"5. Grantee Website"]
[null,null,null,null,null,null,null,null,null,null,null,null,null,null,null,null,null,{"$f":"B26","v":0}]
[]
[null,"6. Institution Type"]
[null,"University"]
[null,"Is your organization registered as a charitable/non-profit entity?",null,null,null,null,"Yes"]
[null,"Is your organization a single-audited grantee?"]
[]
[null,"7. Grantee's Unique Entity ID (UEID)"]
[null,"UEID",null,null,null,null,null,null,null,null,null,null,null,null,null,null,null,{"$f":"E34","v":0}]
[null,"Local registration number",null,null,null,null,null,null,null,null,null,null,null,null,null,null,null,{"$f":"E35","v":0}]
[]
[null,"8. Principal Investigator"]
[null,"Name",null,null,null,null,null,null,null,null,null,null,null,null,null,null,null,0]
[null,"Position",null,null,null,null,null,null,null,null,null,null,null,null,null,null,null,0]
[null,"Phone Number",null,null,null,null,null,null,null,null,null,null,null,null,null,null,null,0]
[null,"E-mail",null,null,null,null,null,null,null,null,null,null,null,null,null,null,null,0]
[null,null,null,null,null,null,null,null,null,null,null,null,null,null,null,null,null,{"$f":"D41","v":0}]
[null,"9. Authorized Institutional Representative holding signatory Authority "]
[null,"Name",null,null,null,null,null,null,null,null,null,null,null,null,null,null,null,{"$f":"D44","v":0}]
[null,"Position",null,null,null,null,null,null,null,null,null,null,null,null,null,null,null,{"$f":"D45","v":0}]
[null,"Phone Number",null,null,null,null,null,null,null,null,null,null,null,null,null,null,null,0]
[null,"E-mail",null,null,null,null,null,null,null,null,null,null,null,null,null,null,null,0]
[]
[]
[null,"10.  Applicant Questionnaire"]
[]
[1,"Did your organization expend more than US $750,000.00 in U.S. Government Federal awards (Grants, Cooperative Agreements, Assistance Awards) in the previous fiscal year?",null,null,null,null,"Select an option"]
[]
[null,null,null,null,null,null,null,null,null,null,null,null,null,null,null,null,null,null,{"$f":"SUM(S55:S65)","v":{"$error":"#N/A"}},"Technical"]
[2,"Over the past three years, has your institution previously received or currently receives U.S. Federal financial assistance funds? ",null,null,null,null,"Select an option",null,null,null,null,null,null,null,null,null,null,null,{"$f":"_xlfn.IFS(G55=\"NO\",0,G55=\"YES\",1)","v":{"$error":"#N/A"}}]
[]
[3,"Over the past three years, has your institution previously received or currently receives funds from any other international funders?",null,null,null,null,"Select an option",null,null,null,null,null,null,null,null,null,null,null,{"$f":"_xlfn.IFS(G57=\"NO\",0,G57=\"YES\",1)","v":{"$error":"#N/A"}}]
[]
[4,"Over the past three years, has your institution previously received or currently receives a grant from CRDF Global? ",null,null,null,null,"Select an option",null,null,null,null,null,null,null,null,null,null,null,{"$f":"_xlfn.IFS(G59=\"NO\",0,G59=\"YES\",1)","v":{"$error":"#N/A"}}]
[]
[5,"Has your organization implemented projects/grants similar to the scope of work proposed in this application?",null,null,null,null,"Select an option",null,null,null,null,null,null,null,null,null,null,null,{"$f":"_xlfn.IFS(G61=\"NO\",0,G61=\"YES\",1)","v":{"$error":"#N/A"}}]
[]
[6,"Were all project goals and objectives met and all activities fully implemented in previously implemented grants?",null,null,null,null,"Select an option",null,null,null,null,null,null,null,null,null,null,null,{"$f":"_xlfn.IFS(G63=\"NO\",0,G63=\"YES\",1)","v":{"$error":"#N/A"}}]
[]
[7,"Has your organization ever had a grant or contract terminated for cause?",null,null,null,null,"Select an option",null,null,null,null,null,null,null,null,null,null,null,{"$f":"_xlfn.IFS(G65=\"NO\",0,G65=\"YES\",1)","v":{"$error":"#N/A"}}]
[null,null,null,null,null,null,null,null,null,null,null,null,null,null,null,null,null,null,{"$f":"SUM(S67:S81)","v":{"$error":"#N/A"}},"Admin"]
[8,"Does the proposed grant funds comprise more than 10% of grantee’s operational funds?",null,null,null,null,"Select an option",null,null,null,null,null,null,null,null,null,null,null,{"$f":"_xlfn.IFS(G67=\"NO\",0,G67=\"YES\",1)","v":{"$error":"#N/A"}}]
[]
[9,"What was the maximum budget of a single-grant previously managed by your organization over the last three years?",null,null,null,null,0,null,null,null,null,null,null,null,null,null,null,null,{"$f":"_xlfn.IFS(G69>=150000,1,G69<150000,0)","v":0}]
[]
[10,"Is there a dedicated department or position responsible for entering grant financial data into the accounting system?",null,null,null,null,"Select an option",null,null,null,null,null,null,null,null,null,null,null,{"$f":"_xlfn.IFS(G71=\"NO\",0,G71=\"YES\",1)","v":{"$error":"#N/A"}}]
[]
[11,"Does your organization utilize a timekeeping system to track time spent against individual grants?",null,null,null,null,"Select an option",null,null,null,null,null,null,null,null,null,null,null,{"$f":"_xlfn.IFS(G73=\"NO\",0,G73=\"YES\",1)","v":{"$error":"#N/A"}}]
[]
[12,"Is there a dedicated department or position responsible for contractual management of the grant agreement?",null,null,null,null,"Select an option",null,null,null,null,null,null,null,null,null,null,null,{"$f":"_xlfn.IFS(G75=\"NO\",0,G75=\"YES\",1)","v":{"$error":"#N/A"}}]
[]
[13,"Does you organization have employees to comprise project team and implement the grant agreement? (no – if these employees need to be hired for this project specifically)",null,null,null,null,"Select an option",null,null,null,null,null,null,null,null,null,null,null,{"$f":"_xlfn.IFS(G77=\"NO\",0,G77=\"YES\",1)","v":{"$error":"#N/A"}}]
[]
[14,"Does your organization’s authorized signatory have relevant power of attorney or any equivalent document or authority proving such signing authority? ",null,null,null,null,"Select an option",null,null,null,null,null,null,null,null,null,null,null,{"$f":"_xlfn.IFS(G79=\"NO\",0,G79=\"YES\",1)","v":{"$error":"#N/A"}}]
[]
[15,"Does your organization have an ethics policy?",null,null,null,null,"Select an option",null,null,null,null,null,null,null,null,null,null,null,{"$f":"_xlfn.IFS(G81=\"NO\",0,G81=\"YES\",1)","v":{"$error":"#N/A"}}]
[]
[null,null,null,null,null,null,null,null,null,null,null,null,null,null,null,null,null,null,{"$f":"SUM(S84:S92)","v":{"$error":"#N/A"}},"Finance"]
[16,"Does the institute have an accounting or financial manual to outline the procedures for authorizing expenses?",null,null,null,null,"Select an option",null,null,null,null,null,null,null,null,null,null,null,{"$f":"_xlfn.IFS(G84=\"NO\",0,G84=\"YES\",1)","v":{"$error":"#N/A"}}]
[]
[17,"Does the institute utilize an accounting system to separately track donor funds and expenses?",null,null,null,null,"Select an option",null,null,null,null,null,null,null,null,null,null,null,{"$f":"_xlfn.IFS(G86=\"NO\",0,G86=\"YES\",1)","v":{"$error":"#N/A"}}]
[]
[18,"Does you organization have any experience receiving grant funding to organization’s bank account from oversees? ",null,null,null,null,"Select an option",null,null,null,null,null,null,null,null,null,null,null,{"$f":"_xlfn.IFS(G88=\"NO\",0,G88=\"YES\",1)","v":{"$error":"#N/A"}}]
[]
[19,"Can your organization provide excerpts from general ledger to prove expenses incurred under a grant agreement?",null,null,null,null,"Select an option",null,null,null,null,null,null,null,null,null,null,null,{"$f":"_xlfn.IFS(G90=\"NO\",0,G90=\"YES\",1)","v":{"$error":"#N/A"}}]
[]
[20,"Has your organization been audited in the past 3 years?",null,null,null,null,"Select an option",null,null,null,null,null,null,null,null,null,null,null,{"$f":"_xlfn.IFS(G92=\"NO\",0,G92=\"YES\",1)","v":{"$error":"#N/A"}}]

{"sheet":"Cover Page_Applicant#2","index":2,"n_rows":47,"n_cols":18,"rows_kept":47,"cut":false,"hidden":false,"merged":[[0,0,0,8],[1,0,1,8],[2,0,30,8]]}
["PROPOSAL COVER LETTER"]
["Applicant #2"]
["\n\nProposal Cover Letter\n\nRe: [Insert Project title]\n\nI, [Institution's Authorized Signatory Name], hereby acknowledge that I have submitted a proposal to [title of RFP] on behalf of [insert Institution's full name].  \n\nIf awarded a grant, I confirm that [insert name of the Principal Investigator] will be representing [insert Institution's full name] during implementation of the Project titled [Insert Project title].\n\nI attest that the information contained in submitted proposal package which consists of\n(1) Institutional Data Form,\n(2) General Project Information,\n(3) Scope of Work,\n(4) Budget,\n(5) Budget Narrative, \n\nis truthful and that it has been prepared with the full knowledge and consent of [insert Institution's full name]. If awarded, I undertake this research in good faith and will uphold my portion of the collaborative work as proposed in the proposal.  \n\nUnless explicitly specified in 'Other Funding Sources for Project Personnel' below, I confirm that personnel under [Insert Project title] is not financed from sources other than this grant.\n\nOther Funding Sources for Project Personnel: [specify here, if any]. \n\nI affirm that I have read and understand CRDF Global’s policies and standards outlined within the [title of RFP], including CRDF Global’s General Terms and Conditions.  \n\n\nAuthorized Signatory: [Insert Authorized Signatory's Name and Title]\n\n[Signature]\n\n[Date]\n\nPrincipal Investigator: [Insert Principal Investigator's Name and Title]\n\n[Signature]\n\n[Date]"]
[]
[]
[]
[]
[null,null,null,null,null,null,null,null,null,null,null,null,null,null,null,null,null,{"$f":"B8","v":0}]
[]
[]
[null,null,null,null,null,null,null,null,null,null,null,null,null,null,null,null,null,{"$f":"D11","v":0}]
[null,null,null,null,null,null,null,null,null,null,null,null,null,null,null,null,null,{"$f":"D12","v":0}]
[null,null,null,null,null,null,null,null,null,null,null,null,null,null,null,null,null,{"$f":"D13","v":0}]
[null,null,null,null,null,null,null,null,null,null,null,null,null,null,null,null,null,{"$f":"D14","v":0}]
[null,null,null,null,null,null,null,null,null,null,null,null,null,null,null,null,null,0]
[null,null,null,null,null,null,null,null,null,null,null,null,null,null,null,null,null,0]
[]
[]
[null,null,null,null,null,null,null,null,null,null,null,null,null,null,null,null,null,{"$f":"B19","v":0}]
[]
[]
[null,null,null,null,null,null,null,null,null,null,null,null,null,null,null,null,null,{"$f":"B22","v":0}]
[]
[]
[]
[null,null,null,null,null,null,null,null,null,null,null,null,null,null,null,null,null,{"$f":"B26","v":0}]
[]
[]
[]
[]
[]
[]
[]
[null,null,null,null,null,null,null,null,null,null,null,null,null,null,null,null,null,{"$f":"E34","v":0}]
[null,null,null,null,null,null,null,null,null,null,null,null,null,null,null,null,null,{"$f":"E35","v":0}]
[]
[]
[null,null,null,null,null,null,null,null,null,null,null,null,null,null,null,null,null,0]
[null,null,null,null,null,null,null,null,null,null,null,null,null,null,null,null,null,0]
[null,null,null,null,null,null,null,null,null,null,null,null,null,null,null,null,null,0]
[null,null,null,null,null,null,null,null,null,null,null,null,null,null,null,null,null,0]
[null,null,null,null,null,null,null,null,null,null,null,null,null,null,null,null,null,{"$f":"D41","v":0}]
[]
[null,null,null,null,null,null,null,null,null,null,null,null,null,null,null,null,null,0]
[null,null,null,null,null,null,null,null,null,null,null,null,null,null,null,null,null,0]
[null,null,null,null,null,null,null,null,null,null,null,null,null,null,null,null,null,0]
[null,null,null,null,null,null,null,null,null,null,null,null,null,null,null,null,null,0]

{"sheet":"IDF_Applicant#2","index":3,"n_rows":91,"n_cols":20,"rows_kept":91,"cut":false,"hidden":false,"merged":[[0,0,0,8],[6,1,6,7],[7,1,7,7],[9,1,9,7],[10,3,10,7],[11,3,11,7],[17,1,17,7],[20,1,20,7],[21,1,21,7],[24,1,24,7],[25,1,25,7],[12,1,12,2],[12,3,12,7],[13,1,13,2],[13,3,13,7],[14,3,14,7],[15,3,15,7],[36,1,36,7],[27,1,27,7],[28,1,28,7],[29,1,29,5],[29,6,29,7],[30,1,30,3],[30,4,30,5],[30,6,30,7],[32,1,32,7],[33,1,33,3],[33,4,33,7],[34,1,34,3],[34,4,34,7],[44,1,44,2],[44,3,44,7],[37,1,37,2],[37,3,37,7],[38,1,38,2],[38,3,38,7],[39,1,39,2],[39,3,39,7],[40,1,40,2],[40,3,40,7],[42,1,42,7],[43,1,43,2],[43,3,43,7],[45,1,45,2],[45,3,45,7],[46,1,46,2],[46,3,46,7],[49,1,49,7],[51,1,51,5],[51,6,51,7],[59,1,59,5],[59,6,59,7],[60,1,60,5],[60,6,60,7],[52,1,52,5],[52,6,52,7],[54,1,54,5],[54,6,54,7],[55,1,55,5],[55,6,55,7],[62,1,62,5],[62,6,62,7],[56,1,56,5],[56,6,56,7],[57,1,57,5],[57,6,57,7],[58,1,58,5],[58,6,58,7],[76,6,76,7],[78,1,78,5],[78,6,78,7],[63,1,63,5],[63,6,63,7],[64,1,64,5],[64,6,64,7],[66,1,66,5],[66,6,66,7],[68,1,68,5],[68,6,68,7],[70,1,70,5],[70,6,70,7],[72,1,72,5],[72,6,72,7],[90,1,90,5],[90,6,90,7],[1,0,1,8],[84,1,84,5],[84,6,84,7],[86,1,86,5],[86,6,86,7],[88,1,88,5],[88,6,88,7],[82,1,82,5],[82,6,82,7],[80,1,80,5],[80,6,80,7],[74,1,74,5],[74,6,74,7],[76,1,76,5]]}
["INSTITUTIONAL DATA FORM (IDF)"]
["Applicant #2"]
[]
[]
[]
[]
[null,"1. Grantee Name"]
[null,null,null,null,null,null,null,null,null,null,null,null,null,null,null,null,null,{"$f":"B8","v":0}]
[]
[null,"2. Grantee Address"]
[null,"Address Line 1",null,null,null,null,null,null,null,null,null,null,null,null,null,null,null,{"$f":"D11","v":0}]
[null,"Address Line 2",null,null,null,null,null,null,null,null,null,null,null,null,null,null,null,{"$f":"D12","v":0}]
[null,"City",null,null,null,null,null,null,null,null,null,null,null,null,null,null,null,{"$f":"D13","v":0}]
[null,"State",null,null,null,null,null,null,null,null,null,null,null,null,null,null,null,{"$f":"D14","v":0}]
[null,"Postal Code",null,null,null,null,null,null,null,null,null,null,null,null,null,null,null,{"$f":"D15","v":0}]
[null,"Grantee Country",null,null,null,null,null,null,null,null,null,null,null,null,null,null,null,0]
[]
[null,"3. Grantee Phone"]
[null,"[enter here]",null,null,null,null,null,null,null,null,null,null,null,null,null,null,null,{"$f":"B19","v":"[enter here]"}]
[]
[null,"4. Grantee E-mail",null,null,null,null,null,null,null,null,null,null,null,null,null,null,null,0]
[null,null,null,null,null,null,null,null,null,null,null,null,null,null,null,null,null,{"$f":"B22","v":0}]
[]
[]
[null,"5. Grantee Website"]
[null,null,null,null,null,null,null,null,null,null,null,null,null,null,null,null,null,{"$f":"B26","v":0}]
[]
[null,"6. Institution Type"]
[null,"Select an option"]
[null,"Is your organization registered as a charitable/non-profit entity?",null,null,null,null,"Yes"]
[null,"Is your organization a single-audited grantee?"]
[]
[null,"7. Grantee's Unique Entity ID (UEID)"]
[null,"UEID",null,null,null,null,null,null,null,null,null,null,null,null,null,null,null,{"$f":"E34","v":0}]
[null,"Local registration number",null,null,null,null,null,null,null,null,null,null,null,null,null,null,null,{"$f":"E35","v":0}]
[]
[null,"8. Principal Investigator"]
[null,"Name",null,null,null,null,null,null,null,null,null,null,null,null,null,null,null,0]
[null,"Postion",null,null,null,null,null,null,null,null,null,null,null,null,null,null,null,0]
[null,"Phone Number",null,null,null,null,null,null,null,null,null,null,null,null,null,null,null,0]
[null,"E-mail",null,null,null,null,null,null,null,null,null,null,null,null,null,null,null,0]
[null,null,null,null,null,null,null,null,null,null,null,null,null,null,null,null,null,{"$f":"D41","v":0}]
[null,"9. Authorized Institutional Representative holding signatory Authority "]
[null,"Name",null,null,null,null,null,null,null,null,null,null,null,null,null,null,null,0]
[null,"Postion",null,null,null,null,null,null,null,null,null,null,null,null,null,null,null,0]
[null,"Phone Number",null,null,null,null,null,null,null,null,null,null,null,null,null,null,null,0]
[null,"E-mail",null,null,null,null,null,null,null,null,null,null,null,null,null,null,null,0]
[]
[]
[null,"10.  Applicant Questionnaire"]
[]
[1,"Did your organization expend more than US $750,000.00 in U.S. Government Federal awards (Grants, Cooperative Agreements, Assistance Awards) in the previous fiscal year?",null,null,null,null,"Select an option"]
[]
[null,null,null,null,null,null,null,null,null,null,null,null,null,null,null,null,null,null,{"$f":"SUM(S55:S65)","v":{"$error":"#N/A"}},"Technical"]
[2,"Over the past three years, has your institution previously received or currently receives U.S. Federal financial assistance funds? ",null,null,null,null,"Select an option",null,null,null,null,null,null,null,null,null,null,null,{"$f":"_xlfn.IFS(G55=\"NO\",0,G55=\"YES\",1)","v":{"$error":"#N/A"}}]
[]
[3,"Over the past three years, has your institution previously received or currently receives funds from any other international funders?",null,null,null,null,"Select an option",null,null,null,null,null,null,null,null,null,null,null,{"$f":"_xlfn.IFS(G57=\"NO\",0,G57=\"YES\",1)","v":{"$error":"#N/A"}}]
[]
[4,"Over the past three years, has your institution previously received or currently receives a grant from CRDF Global? ",null,null,null,null,"Select an option",null,null,null,null,null,null,null,null,null,null,null,{"$f":"_xlfn.IFS(G59=\"NO\",0,G59=\"YES\",1)","v":{"$error":"#N/A"}}]
[]
[5,"Has your organization implemented projects/grants similar to the scope of work proposed in this application?",null,null,null,null,"Select an option",null,null,null,null,null,null,null,null,null,null,null,{"$f":"_xlfn.IFS(G61=\"NO\",0,G61=\"YES\",1)","v":{"$error":"#N/A"}}]
[]
[6,"Were all project goals and objectives met and all activities fully implemented in previously implemented grants?",null,null,null,null,"Select an option",null,null,null,null,null,null,null,null,null,null,null,{"$f":"_xlfn.IFS(G63=\"NO\",0,G63=\"YES\",1)","v":{"$error":"#N/A"}}]
[]
[7,"Has your organization ever had a grant or contract terminated for cause?",null,null,null,null,"Select an option",null,null,null,null,null,null,null,null,null,null,null,{"$f":"_xlfn.IFS(G65=\"NO\",0,G65=\"YES\",1)","v":{"$error":"#N/A"}}]
[null,null,null,null,null,null,null,null,null,null,null,null,null,null,null,null,null,null,{"$f":"SUM(S67:S81)","v":{"$error":"#N/A"}},"Admin"]
[8,"Does the proposed grant funds comprise more than 10% of grantee’s operational funds?",null,null,null,null,"Select an option",null,null,null,null,null,null,null,null,null,null,null,{"$f":"_xlfn.IFS(G67=\"NO\",0,G67=\"YES\",1)","v":{"$error":"#N/A"}}]
[]
[9,"What was the maximum budget of a single-grant previously managed by your organization over the last three years?",null,null,null,null,0,null,null,null,null,null,null,null,null,null,null,null,{"$f":"_xlfn.IFS(G69>=150000,1,G69<150000,0)","v":0}]
[]
[10,"Is there a dedicated department or position responsible for entering grant financial data into the accounting system?",null,null,null,null,"Select an option",null,null,null,null,null,null,null,null,null,null,null,{"$f":"_xlfn.IFS(G71=\"NO\",0,G71=\"YES\",1)","v":{"$error":"#N/A"}}]
[]
[11,"Does your organization utilize a timekeeping system to track time spent against individual grants?",null,null,null,null,"Select an option",null,null,null,null,null,null,null,null,null,null,null,{"$f":"_xlfn.IFS(G73=\"NO\",0,G73=\"YES\",1)","v":{"$error":"#N/A"}}]
[]
[12,"Is there a dedicated department or position responsible for contractual management of the grant agreement?",null,null,null,null,"Select an option",null,null,null,null,null,null,null,null,null,null,null,{"$f":"_xlfn.IFS(G75=\"NO\",0,G75=\"YES\",1)","v":{"$error":"#N/A"}}]
[]
[13,"Does you organization have employees to comprise project team and implement the grant agreement? (no – if these employees need to be hired for this project specifically)",null,null,null,null,"Select an option",null,null,null,null,null,null,null,null,null,null,null,{"$f":"_xlfn.IFS(G77=\"NO\",0,G77=\"YES\",1)","v":{"$error":"#N/A"}}]
[]
[14,"Does your organization’s authorized signatory have relevant power of attorney or any equivalent document or authority proving such signing authority? ",null,null,null,null,"Select an option",null,null,null,null,null,null,null,null,null,null,null,{"$f":"_xlfn.IFS(G79=\"NO\",0,G79=\"YES\",1)","v":{"$error":"#N/A"}}]
[]
[15,"Does your organization have an ethics policy?",null,null,null,null,"Select an option",null,null,null,null,null,null,null,null,null,null,null,{"$f":"_xlfn.IFS(G81=\"NO\",0,G81=\"YES\",1)","v":{"$error":"#N/A"}}]
[null,null,null,null,null,null,null,null,null,null,null,null,null,null,null,null,null,null,{"$f":"SUM(S83:S91)","v":{"$error":"#N/A"}},"Financial"]
[16,"Does the institute have an accounting or financial manual to outline the procedures for authorizing expenses?",null,null,null,null,"Select an option",null,null,null,null,null,null,null,null,null,null,null,{"$f":"_xlfn.IFS(G83=\"NO\",0,G83=\"YES\",1)","v":{"$error":"#N/A"}}]
[]
[17,"Does the institute utilize an accounting system to separately track donor funds and expenses?",null,null,null,null,"Select an option",null,null,null,null,null,null,null,null,null,null,null,{"$f":"_xlfn.IFS(G85=\"NO\",0,G85=\"YES\",1)","v":{"$error":"#N/A"}}]
[]
[18,"Does you organization have any experience receiving grant funding to organization’s bank account from oversees? ",null,null,null,null,"Select an option",null,null,null,null,null,null,null,null,null,null,null,{"$f":"_xlfn.IFS(G87=\"NO\",0,G87=\"YES\",1)","v":{"$error":"#N/A"}}]
[]
[19,"Can your organization provide excerpts from general ledger to prove expenses incurred under a grant agreement?",null,null,null,null,"Select an option",null,null,null,null,null,null,null,null,null,null,null,{"$f":"_xlfn.IFS(G89=\"NO\",0,G89=\"YES\",1)","v":{"$error":"#N/A"}}]
[]
[20,"Has your organization been audited in the past 3 years?",null,null,null,null,"Select an option",null,null,null,null,null,null,null,null,null,null,null,{"$f":"_xlfn.IFS(G91=\"NO\",0,G91=\"YES\",1)","v":{"$error":"#N/A"}}]

{"sheet":"Cover Page_Applicant#3","index":4,"n_rows":47,"n_cols":18,"rows_kept":47,"cut":false,"hidden":false,"merged":[[2,0,30,8],[0,0,0,8],[1,0,1,8]]}
["PROPOSAL COVER LETTER"]
["Applicant #2"]
["\n\nProposal Cover Letter\n\nRe: [Insert Project title]\n\nI, [Institution's Authorized Signatory Name], hereby acknowledge that I have submitted a proposal to [title of RFP] on behalf of [insert Institution's full name].  \n\nIf awarded a grant, I confirm that [insert name of the Principal Investigator] will be representing [insert Institution's full name] during implementation of the Project titled [Insert Project title].\n\nI attest that the information contained in submitted proposal package which consists of\n(1) Institutional Data Form,\n(2) General Project Information,\n(3) Scope of Work,\n(4) Budget,\n(5) Budget Narrative, \n\nis truthful and that it has been prepared with the full knowledge and consent of [insert Institution's full name]. If awarded, I undertake this research in good faith and will uphold my portion of the collaborative work as proposed in the proposal.  \n\nUnless explicitly specified in 'Other Funding Sources for Project Personnel' below, I confirm that personnel under [Insert Project title] is not financed from sources other than this grant.\n\nOther Funding Sources for Project Personnel: [specify here, if any]. \n\nI affirm that I have read and understand CRDF Global’s policies and standards outlined within the [title of RFP], including CRDF Global’s General Terms and Conditions.  \n\n\nAuthorized Signatory: [Insert Authorized Signatory's Name and Title]\n\n[Signature]\n\n[Date]\n\nPrincipal Investigator: [Insert Principal Investigator's Name and Title]\n\n[Signature]\n\n[Date]"]
[]
[]
[]
[]
[null,null,null,null,null,null,null,null,null,null,null,null,null,null,null,null,null,{"$f":"B8","v":0}]
[]
[]
[null,null,null,null,null,null,null,null,null,null,null,null,null,null,null,null,null,{"$f":"D11","v":0}]
[null,null,null,null,null,null,null,null,null,null,null,null,null,null,null,null,null,{"$f":"D12","v":0}]
[null,null,null,null,null,null,null,null,null,null,null,null,null,null,null,null,null,{"$f":"D13","v":0}]
[null,null,null,null,null,null,null,null,null,null,null,null,null,null,null,null,null,{"$f":"D14","v":0}]
[null,null,null,null,null,null,null,null,null,null,null,null,null,null,null,null,null,0]
[null,null,null,null,null,null,null,null,null,null,null,null,null,null,null,null,null,0]
[]
[]
[null,null,null,null,null,null,null,null,null,null,null,null,null,null,null,null,null,{"$f":"B19","v":0}]
[]
[]
[null,null,null,null,null,null,null,null,null,null,null,null,null,null,null,null,null,{"$f":"B22","v":0}]
[]
[]
[]
[null,null,null,null,null,null,null,null,null,null,null,null,null,null,null,null,null,{"$f":"B26","v":0}]
[]
[]
[]
[]
[]
[]
[]
[null,null,null,null,null,null,null,null,null,null,null,null,null,null,null,null,null,{"$f":"E34","v":0}]
[null,null,null,null,null,null,null,null,null,null,null,null,null,null,null,null,null,{"$f":"E35","v":0}]
[]
[]
[null,null,null,null,null,null,null,null,null,null,null,null,null,null,null,null,null,0]
[null,null,null,null,null,null,null,null,null,null,null,null,null,null,null,null,null,0]
[null,null,null,null,null,null,null,null,null,null,null,null,null,null,null,null,null,0]
[null,null,null,null,null,null,null,null,null,null,null,null,null,null,null,null,null,0]
[null,null,null,null,null,null,null,null,null,null,null,null,null,null,null,null,null,{"$f":"D41","v":0}]
[]
[null,null,null,null,null,null,null,null,null,null,null,null,null,null,null,null,null,0]
[null,null,null,null,null,null,null,null,null,null,null,null,null,null,null,null,null,0]
[null,null,null,null,null,null,null,null,null,null,null,null,null,null,null,null,null,0]
[null,null,null,null,null,null,null,null,null,null,null,null,null,null,null,null,null,0]

{"sheet":"IDF_Applicant#3","index":5,"n_rows":92,"n_cols":20,"rows_kept":92,"cut":false,"hidden":false,"merged":[[89,1,89,5],[89,6,89,7],[91,1,91,5],[91,6,91,7],[83,1,83,5],[83,6,83,7],[85,1,85,5],[85,6,85,7],[87,1,87,5],[87,6,87,7],[80,1,80,5],[80,6,80,7],[72,1,72,5],[72,6,72,7],[74,1,74,5],[74,6,74,7],[76,1,76,5],[76,6,76,7],[68,1,68,5],[68,6,68,7],[70,1,70,5],[70,6,70,7],[78,1,78,5],[78,6,78,7],[51,1,51,5],[51,6,51,7],[52,1,52,5],[52,6,52,7],[66,1,66,5],[66,6,66,7],[57,6,57,7],[58,1,58,5],[58,6,58,7],[54,1,54,5],[54,6,54,7],[55,1,55,5],[55,6,55,7],[7,1,7,7],[13,3,13,7],[10,3,10,7],[64,1,64,5],[64,6,64,7],[59,1,59,5],[59,6,59,7],[60,1,60,5],[60,6,60,7],[62,1,62,5],[62,6,62,7],[63,1,63,5],[63,6,63,7],[56,1,56,5],[56,6,56,7],[57,1,57,5],[27,1,27,7],[28,1,28,7],[30,4,30,5],[0,0,0,8],[29,1,29,5],[29,6,29,7],[21,1,21,7],[25,1,25,7],[14,3,14,7],[11,3,11,7],[12,3,12,7],[15,3,15,7],[17,1,17,7],[20,1,20,7],[6,1,6,7],[9,1,9,7],[49,1,49,7],[46,1,46,2],[46,3,46,7],[32,1,32,7],[33,1,33,3],[36,1,36,7],[37,1,37,2],[45,1,45,2],[45,3,45,7],[38,1,38,2],[38,3,38,7],[39,1,39,2],[44,1,44,2],[44,3,44,7],[1,0,1,8],[12,1,12,2],[13,1,13,2],[43,1,43,2],[43,3,43,7],[24,1,24,7],[39,3,39,7],[40,1,40,2],[40,3,40,7],[34,4,34,7],[42,1,42,7],[33,4,33,7],[34,1,34,3],[37,3,37,7],[30,6,30,7],[30,1,30,3]]}
["INSTITUTIONAL DATA FORM (IDF)"]
["Applicant #3"]
[]
[]
[]
[]
[null,"1. Grantee Name"]
[null,null,null,null,null,null,null,null,null,null,null,null,null,null,null,null,null,{"$f":"B8","v":0}]
[]
[null,"2. Grantee Address"]
[null,"Address Line 1",null,null,null,null,null,null,null,null,null,null,null,null,null,null,null,{"$f":"D11","v":0}]
[null,"Address Line 2",null,null,null,null,null,null,null,null,null,null,null,null,null,null,null,{"$f":"D12","v":0}]
[null,"City",null,null,null,null,null,null,null,null,null,null,null,null,null,null,null,{"$f":"D13","v":0}]
[null,"State",null,null,null,null,null,null,null,null,null,null,null,null,null,null,null,{"$f":"D14","v":0}]
[null,"Postal Code",null,null,null,null,null,null,null,null,null,null,null,null,null,null,null,0]
[null,"Grantee Country",null,null,null,null,null,null,null,null,null,null,null,null,null,null,null,0]
[null,null,null,null,null,null,null,null,null,null,null,null,null,null,null,null,null,0]
[null,"3. Grantee Phone"]
[null,"[enter here]",null,null,null,null,null,null,null,null,null,null,null,null,null,null,null,{"$f":"B19","v":"[enter here]"}]
[]
[null,"4. Grantee E-mail",null,null,null,null,null,null,null,null,null,null,null,null,null,null,null,0]
[null,null,null,null,null,null,null,null,null,null,null,null,null,null,null,null,null,{"$f":"B22","v":0}]
[]
[]
[null,"5. Grantee Website"]
[null,null,null,null,null,null,null,null,null,null,null,null,null,null,null,null,null,{"$f":"B26","v":0}]
[]
[null,"6. Institution Type"]
[null,"University"]
[null,"Is your organization registered as a charitable/non-profit entity?",null,null,null,null,"Yes"]
[null,"Is your organization a single-audited grantee?"]
[]
[null,"7. Grantee's Unique Entity ID (UEID)"]
[null,"UEID",null,null,null,null,null,null,null,null,null,null,null,null,null,null,null,{"$f":"E34","v":0}]
[null,"Local registration number",null,null,null,null,null,null,null,null,null,null,null,null,null,null,null,{"$f":"E35","v":0}]
[]
[null,"8. Principal Investigator"]
[null,"Name",null,null,null,null,null,null,null,null,null,null,null,null,null,null,null,0]
[null,"Postion",null,null,null,null,null,null,null,null,null,null,null,null,null,null,null,0]
[null,"Phone Number",null,null,null,null,null,null,null,null,null,null,null,null,null,null,null,0]
[null,"E-mail",null,null,null,null,null,null,null,null,null,null,null,null,null,null,null,0]
[null,null,null,null,null,null,null,null,null,null,null,null,null,null,null,null,null,{"$f":"D41","v":0}]
[null,"9. Authorized Institutional Representative holding signatory Authority "]
[null,"Name",null,null,null,null,null,null,null,null,null,null,null,null,null,null,null,0]
[null,"Postion",null,null,null,null,null,null,null,null,null,null,null,null,null,null,null,0]
[null,"Phone Number",null,null,null,null,null,null,null,null,null,null,null,null,null,null,null,0]
[null,"E-mail",null,null,null,null,null,null,null,null,null,null,null,null,null,null,null,0]
[]
[]
[null,"10.  Applicant Questionnaire"]
[]
[1,"Did your organization expend more than US $750,000.00 in U.S. Government Federal awards (Grants, Cooperative Agreements, Assistance Awards) in the previous fiscal year?",null,null,null,null,"Select an option"]
[]
[null,null,null,null,null,null,null,null,null,null,null,null,null,null,null,null,null,null,{"$f":"SUM(S55:S65)","v":{"$error":"#N/A"}},"Technical"]
[2,"Over the past three years, has your institution previously received or currently receives U.S. Federal financial assistance funds? ",null,null,null,null,"Select an option",null,null,null,null,null,null,null,null,null,null,null,{"$f":"_xlfn.IFS(G55=\"NO\",0,G55=\"YES\",1)","v":{"$error":"#N/A"}}]
[]
[3,"Over the past three years, has your institution previously received or currently receives funds from any other international funders?",null,null,null,null,"Select an option",null,null,null,null,null,null,null,null,null,null,null,{"$f":"_xlfn.IFS(G57=\"NO\",0,G57=\"YES\",1)","v":{"$error":"#N/A"}}]
[]
[4,"Over the past three years, has your institution previously received or currently receives a grant from CRDF Global? ",null,null,null,null,"Select an option",null,null,null,null,null,null,null,null,null,null,null,{"$f":"_xlfn.IFS(G59=\"NO\",0,G59=\"YES\",1)","v":{"$error":"#N/A"}}]
[]
[5,"Has your organization implemented projects/grants similar to the scope of work proposed in this application?",null,null,null,null,"Select an option",null,null,null,null,null,null,null,null,null,null,null,{"$f":"_xlfn.IFS(G61=\"NO\",0,G61=\"YES\",1)","v":{"$error":"#N/A"}}]
[]
[6,"Were all project goals and objectives met and all activities fully implemented in previously implemented grants?",null,null,null,null,"Select an option",null,null,null,null,null,null,null,null,null,null,null,{"$f":"_xlfn.IFS(G63=\"NO\",0,G63=\"YES\",1)","v":{"$error":"#N/A"}}]
[]
[7,"Has your organization ever had a grant or contract terminated for cause?",null,null,null,null,"Select an option",null,null,null,null,null,null,null,null,null,null,null,{"$f":"_xlfn.IFS(G65=\"NO\",0,G65=\"YES\",1)","v":{"$error":"#N/A"}}]
[null,null,null,null,null,null,null,null,null,null,null,null,null,null,null,null,null,null,{"$f":"SUM(S67:S81)","v":{"$error":"#N/A"}},"Admin"]
[8,"Does the proposed grant funds comprise more than 10% of grantee’s operational funds?",null,null,null,null,"Select an option",null,null,null,null,null,null,null,null,null,null,null,{"$f":"_xlfn.IFS(G67=\"NO\",0,G67=\"YES\",1)","v":{"$error":"#N/A"}}]
[]
[9,"What was the maximum budget of a single-grant previously managed by your organization over the last three years?",null,null,null,null,0,null,null,null,null,null,null,null,null,null,null,null,{"$f":"_xlfn.IFS(G69>=150000,1,G69<150000,0)","v":0}]
[]
[10,"Is there a dedicated department or position responsible for entering grant financial data into the accounting system?",null,null,null,null,"Select an option",null,null,null,null,null,null,null,null,null,null,null,{"$f":"_xlfn.IFS(G71=\"NO\",0,G71=\"YES\",1)","v":{"$error":"#N/A"}}]
[]
[11,"Does your organization utilize a timekeeping system to track time spent against individual grants?",null,null,null,null,"Select an option",null,null,null,null,null,null,null,null,null,null,null,{"$f":"_xlfn.IFS(G73=\"NO\",0,G73=\"YES\",1)","v":{"$error":"#N/A"}}]
[]
[12,"Is there a dedicated department or position responsible for contractual management of the grant agreement?",null,null,null,null,"Select an option",null,null,null,null,null,null,null,null,null,null,null,{"$f":"_xlfn.IFS(G75=\"NO\",0,G75=\"YES\",1)","v":{"$error":"#N/A"}}]
[]
[13,"Does you organization have employees to comprise project team and implement the grant agreement? (no – if these employees need to be hired for this project specifically)",null,null,null,null,"Select an option",null,null,null,null,null,null,null,null,null,null,null,{"$f":"_xlfn.IFS(G77=\"NO\",0,G77=\"YES\",1)","v":{"$error":"#N/A"}}]
[]
[14,"Does your organization’s authorized signatory have relevant power of attorney or any equivalent document or authority proving such signing authority? ",null,null,null,null,"Yes",null,null,null,null,null,null,null,null,null,null,null,{"$f":"_xlfn.IFS(G79=\"NO\",0,G79=\"YES\",1)","v":1}]
[]
[15,"Does your organization have an ethics policy?",null,null,null,null,"Yes",null,null,null,null,null,null,null,null,null,null,null,{"$f":"_xlfn.IFS(G81=\"NO\",0,G81=\"YES\",1)","v":1}]
[]
[null,null,null,null,null,null,null,null,null,null,null,null,null,null,null,null,null,null,{"$f":"SUM(S84:S92)","v":5},"Financial"]
[16,"Does the institute have an accounting or financial manual to outline the procedures for authorizing expenses?",null,null,null,null,"Yes",null,null,null,null,null,null,null,null,null,null,null,{"$f":"_xlfn.IFS(G84=\"NO\",0,G84=\"YES\",1)","v":1}]
[]
[17,"Does the institute utilize an accounting system to separately track donor funds and expenses?",null,null,null,null,"Yes",null,null,null,null,null,null,null,null,null,null,null,{"$f":"_xlfn.IFS(G86=\"NO\",0,G86=\"YES\",1)","v":1}]
[]
[18,"Does you organization have any experience receiving grant funding to organization’s bank account from oversees? ",null,null,null,null,"Yes",null,null,null,null,null,null,null,null,null,null,null,{"$f":"_xlfn.IFS(G88=\"NO\",0,G88=\"YES\",1)","v":1}]
[]
[19,"Can your organization provide excerpts from general ledger to prove expenses incurred under a grant agreement?",null,null,null,null,"Yes",null,null,null,null,null,null,null,null,null,null,null,{"$f":"_xlfn.IFS(G90=\"NO\",0,G90=\"YES\",1)","v":1}]
[]
[20,"Has your organization been audited in the past 3 years?",null,null,null,null,"Yes",null,null,null,null,null,null,null,null,null,null,null,{"$f":"_xlfn.IFS(G92=\"NO\",0,G92=\"YES\",1)","v":1}]

{"sheet":"A. General Project Information","index":6,"n_rows":32,"n_cols":19,"rows_kept":32,"cut":false,"hidden":false,"merged":[[29,0,31,1],[29,2,29,8],[30,2,30,8],[31,2,31,8],[21,0,21,8],[23,0,23,1],[23,2,23,8],[3,9,3,17],[25,0,27,1],[25,2,25,8],[26,2,26,8],[27,2,27,8],[5,0,5,1],[5,2,5,8],[8,0,8,1],[14,0,14,1],[14,2,14,8],[16,0,16,8],[10,0,10,1],[11,0,11,1],[4,2,4,3],[4,4,4,5],[4,6,4,7],[10,2,10,8],[17,0,17,8],[19,0,19,8],[4,0,4,1],[0,3,0,5],[1,0,1,8],[3,0,3,1],[3,2,3,8],[11,2,11,8],[12,0,12,1],[12,2,12,8],[8,2,8,3],[7,2,7,3]]}
[null,null,null,"ATTACHMENT A"]
["GENERAL PROJECT INFORMATION"]
[]
["Project title",null,"[enter here, not more than 25 words]",null,null,null,null,null,null,null,null,null,null,null,null,null,null,null,{"$f":"C4","v":"[enter here, not more than 25 words]"}]
["Team Composition",null,"Team 1",null,"Team 2",null,"Team 3"]
["Project duration",null,"[enter here number of months]",null,null,null,null,null,null,null,null,null,null,null,null,null,null,null,{"$f":"C6","v":"[enter here number of months]"}]
[]
[null,null,"Total",null,"Team 1","Team 2","Team 3"]
["Amount Requested",null,{"$f":"SUM(E9:G9)","v":0},null,0,0,0]
[]
["Research Area",null,"[enter here]"]
["Sub-Research Area",null,"[enter here]"]
["Research Focus",null,"[enter here]"]
[]
["Bioethics",null,"         Human Subjects           Animal Subjects           Recombinant DNA                  None"]
[]
["1. Project Description (Abstract)"]
["Please add a short narrative description of the project that summarizes why the work is being done, what the project aims to accomplish, and any general information about planned activities and anticipated results. "]
[]
["[enter here]"]
[]
["2. Project Goal and Objectives"]
[]
["Project Goal:",null,"[enter here]"]
[]
["Project\n Objectives:",null,"1) [enter here]"]
[null,null,"2) [enter here]"]
[null,null,"3) [enter here]"]
[]
["Project\n Outcomes:",null,"1) [enter here]"]
[null,null,"2) [enter here]"]
[null,null,"3) [enter here]"]

{"sheet":"B. SOW","index":7,"n_rows":86,"n_cols":19,"rows_kept":86,"cut":false,"hidden":false,"merged":[[15,9,15,11],[14,0,14,5],[14,6,14,8],[25,0,25,5],[25,6,25,8],[18,0,18,2],[18,3,18,5],[24,6,24,8],[23,0,23,2],[23,3,23,5],[23,6,23,8],[24,0,24,2],[24,3,24,5],[21,0,21,2],[21,3,21,5],[21,6,21,8],[22,0,22,2],[22,3,22,5],[22,6,22,8],[11,6,11,8],[12,0,12,2],[12,3,12,5],[12,6,12,8],[20,0,20,2],[20,3,20,5],[20,6,20,8],[17,0,17,2],[17,3,17,5],[17,6,17,8],[18,6,18,8],[16,0,16,2],[16,3,16,5],[16,6,16,8],[19,0,19,2],[19,3,19,5],[19,6,19,8],[6,0,6,2],[6,3,6,5],[6,6,6,8],[9,0,9,2],[9,3,9,5],[9,6,9,8],[10,0,10,2],[10,3,10,5],[10,6,10,8],[15,0,15,8],[7,0,7,2],[7,3,7,5],[7,6,7,8],[8,0,8,2],[8,3,8,5],[8,6,8,8],[13,0,13,2],[13,3,13,5],[13,6,13,8],[11,0,11,2],[11,3,11,5],[1,0,1,11],[0,3,0,9],[5,0,5,2],[5,3,5,5],[5,6,5,8],[4,9,4,11],[4,0,4,8]]}
[null,null,null,"ATTACHMENT B"]
["SCOPE OF WORK (SOW)"]
[]
[]
["Milestone 1: Semi-Annual Reporting Period (Six Months)",null,null,null,null,null,null,null,null,"Responsible Team "]
["Activities:",null,null,"Description:",null,null,"Associated Deliverable(s):",null,null,"Team 1","Team 2","Team 3"]
["[enter here]",null,null,"[enter here]",null,null,"[enter here]",null,null,"Select an option","Select an option","Select an option"]
["[enter here]",null,null,"[enter here]",null,null,"[enter here]",null,null,"Select an option","Select an option","Select an option"]
["[enter here]",null,null,"[enter here]",null,null,"[enter here]",null,null,"Select an option","Select an option","Select an option"]
["[enter here]",null,null,"[enter here]",null,null,"[enter here]",null,null,"Select an option","Select an option","Select an option"]
["[enter here]",null,null,"[enter here]",null,null,"[enter here]"]
["[enter here]",null,null,"[enter here]",null,null,"[enter here]"]
["[enter here]",null,null,"[enter here]",null,null,"[enter here]"]
["[enter here]",null,null,"[enter here]",null,null,"[enter here]"]
["Total Amount Requested for this\nReporting Period:",null,null,null,null,null,{"$f":"SUM(J15:L15)","v":0},null,null,0,0,0]
["Milestone 2: Final Reporting Period (One Year)",null,null,null,null,null,null,null,null,"Responsible Team "]
["Activities:",null,null,"Description:",null,null,"Associated Deliverable(s):",null,null,"Team 1","Team 2","Team 3"]
["[enter here]",null,null,"[enter here]",null,null,"[enter here]",null,null,"Select an option","Select an option","Select an option"]
["[enter here]",null,null,"[enter here]",null,null,"[enter here]",null,null,"Select an option","Select an option","Select an option"]
["[enter here]",null,null,"[enter here]",null,null,"[enter here]",null,null,"Select an option","Select an option","Select an option"]
["[enter here]",null,null,"[enter here]",null,null,"[enter here]",null,null,"Select an option","Select an option","Select an option"]
["[enter here]",null,null,"[enter here]",null,null,"[enter here]",null,null,null,null,null,null,null,null,null,null,null,{"$f":"C22","v":0}]
["[enter here]",null,null,"[enter here]",null,null,"[enter here]"]
["[enter here]",null,null,"[enter here]",null,null,"[enter here]"]
["[enter here]",null,null,"[enter here]",null,null,"[enter here]"]
["Total Amount Requested for this\nReporting Period:",null,null,null,null,null,{"$f":"SUM(J26:L26)","v":0},null,null,0,0,0]
[]
[]
[null,null,null,null,null,null,null,null,null,null,null,null,null,null,null,null,null,null,{"$f":"C29","v":0}]
[]
[]
[]
[]
[]
[]
[]
[]
[null,null,null,null,null,null,null,null,null,null,null,null,null,null,null,null,null,null,{"$f":"C38","v":0}]
[]
[]
[]
[]
[]
[]
[]
[]
[null,null,null,null,null,null,null,null,null,null,null,null,null,null,null,null,null,null,{"$f":"C47","v":0}]
[]
[]
[]
[]
[]
[]
[]
[]
[null,null,null,null,null,null,null,null,null,null,null,null,null,null,null,null,null,null,{"$f":"C56","v":0}]
[]
[]
[]
[]
[]
[]
[]
[]
[]
[]
[]
[null,null,null,null,null,null,null,null,null,null,null,null,null,null,null,null,null,null,{"$f":"C68","v":0}]
[]
[]
[]
[]
[]
[]
[]
[]
[null,null,null,null,null,null,null,null,null,null,null,null,null,null,null,null,null,null,{"$f":"C77","v":0}]
[]
[]
[]
[]
[]
[]
[]
[]
[null,null,null,null,null,null,null,null,null,null,null,null,null,null,null,null,null,null,{"$f":"C86","v":0}]

{"sheet":"C. Budget_A#1","index":8,"n_rows":119,"n_cols":10,"rows_kept":119,"cut":false,"hidden":false,"merged":[[44,2,44,6],[43,2,43,6],[42,2,42,6],[119,0,119,10],[114,8,114,9],[116,8,116,9],[118,8,118,9],[105,2,105,8],[111,2,111,10],[113,0,113,10],[107,8,107,9],[108,8,108,9],[110,8,110,9],[106,2,106,8],[104,2,104,8],[103,2,103,8],[32,2,32,6],[31,2,31,6],[47,2,47,6],[83,4,83,5],[10,4,10,5],[15,2,15,3],[14,2,14,3],[13,2,13,3],[12,2,12,3],[11,2,11,3],[78,4,78,5],[79,4,79,5],[80,4,80,5],[81,4,81,5],[82,4,82,5],[45,2,45,6],[102,2,102,8],[87,2,87,6],[89,2,89,6],[88,2,88,6],[93,2,93,6],[94,2,94,6],[101,2,101,8],[48,2,48,6],[25,2,25,6],[46,2,46,6],[75,4,75,5],[76,2,76,8],[74,4,74,5],[73,4,73,5],[72,4,72,5],[30,2,30,6],[29,2,29,6],[28,2,28,6],[27,2,27,6],[26,2,26,6],[52,2,52,8],[34,2,34,6],[33,2,33,6],[0,3,0,7],[71,4,71,5],[64,2,64,8],[2,3,2,9],[70,4,70,5],[63,2,63,6],[58,2,58,3],[59,2,59,6],[62,2,62,6],[61,2,61,6],[60,2,60,6],[51,2,51,6],[50,2,50,6],[2,1,2,2],[9,4,9,9],[49,2,49,6],[11,4,11,5],[12,4,12,5],[13,4,13,5],[14,4,14,5],[15,4,15,5]]}
[null,null,null,"ATTACHMENT C"]
[]
[null,"Project Title"]
[]
[]
[null,"A","Project Personnel Labor "]
[]
[]
[null,"A","Labor"]
[null,null,null,null,{"$f":"IF(C10=\"Level of Effort\",\"Please enter Fringe and LOE as numbers, they will be calculated as percentages\",\" \")","v":" "}]
[null,null,"Name",null,"Title",null,"Project Position","# of Hours","Please select","Total"]
[null,1,null,null,null,null,null,0,0,{"$f":"H12*I12","v":0}]
[null,2,null,null,null,null,null,0,0,{"$f":"H13*I13","v":0}]
[null,3,null,null,null,null,null,0,0,0]
[null,4,null,null,null,null,null,0,0,0]
[null,5,null,null,null,null,null,0,0,0]
[null,null,"Subtotal - Labor",null,null,null,null,null,null,{"$f":"SUM(J12:J16)","v":0}]
[]
[]
[null,"B","Equipment, Supplies, Services & Other direct costs"]
[]
[]
[null,"B1","Equipment"]
[]
[null,null,"Item Description",null,null,null,null,"# of units","Unit cost","Total"]
[null,1,null,null,null,null,null,0,0,{"$f":"H26*I26","v":0}]
[null,2,null,null,null,null,null,0,0,0]
[null,3,null,null,null,null,null,0,0,0]
[null,4,null,null,null,null,null,0,0,0]
[null,5,null,null,null,null,null,0,0,0]
[null,6,null,null,null,null,null,0,0,0]
[null,7,null,null,null,null,null,0,0,0]
[null,8,null,null,null,null,null,0,0,0]
[null,9,null,null,null,null,null,0,0,0]
[null,10,null,null,null,null,null,0,0,0]
[null,null,"Subtotal - Equipment",null,null,null,null,null,null,{"$f":"SUM(J26:J35)","v":0}]
[]
[]
[]
[null,"B2","Supplies"]
[]
[null,null,"Item Description",null,null,null,null,"# of units","Unit cost","Total"]
[null,1,null,null,null,null,null,0,0,{"$f":"H43*I43","v":0}]
[null,2,null,null,null,null,null,0,0,0]
[null,3,null,null,null,null,null,0,0,0]
[null,4,null,null,null,null,null,0,0,0]
[null,5,null,null,null,null,null,0,0,0]
[null,6,null,null,null,null,null,0,0,0]
[null,7,null,null,null,null,null,0,0,0]
[null,8,null,null,null,null,null,0,0,0]
[null,9,null,null,null,null,null,0,0,0]
[null,10,null,null,null,null,null,0,0,0]
[null,null,"Subtotal - Supplies",null,null,null,null,null,null,{"$f":"SUM(J43:J52)","v":0}]
[]
[]
[]
[null,"B3","Services & other direct costs"]
[]
[null,null,"Item Description",null,null,null,null,"# of units","Unit cost","Total"]
[null,1,"Ex: Shipment vie World Courier",null,null,null,null,0,0,{"$f":"H60*I60","v":0}]
[null,2,"Ex: Subscriptions",null,null,null,null,0,0,{"$f":"H61*I61","v":0}]
[null,3,null,null,null,null,null,0,0,{"$f":"H62*I62","v":0}]
[null,4,null,null,null,null,null,0,0,{"$f":"H63*I63","v":0}]
[null,5,null,null,null,null,null,0,0,{"$f":"H64*I64","v":0}]
[null,null,"Subtotal - Services & other direct costs",null,null,null,null,null,null,{"$f":"SUM(J60:J64)","v":0}]
[]
[]
[null,"C","Travel"]
[]
[null,null,"Travel "]
[null,null,"Mean of Transportation","Origin City, Country","Destination City, Country",null,"Roundtrip Cost","#  of Travelers","# of Trips","Total"]
[null,1,"Please select",null,null,null,0,0,0,{"$f":"G72*H72*I72","v":0}]
[null,2,"Please select",null,null,null,0,0,0,{"$f":"G73*H73*I73","v":0}]
[null,3,"Please select",null,null,null,0,0,0,{"$f":"G74*H74*I74","v":0}]
[null,4,"Please select",null,null,null,0,0,0,{"$f":"G75*H75*I75","v":0}]
[null,5,"Please select",null,null,null,0,0,0,{"$f":"G76*H76*I76","v":0}]
[null,null,"Subtotal - Travel",null,null,null,null,null,null,{"$f":"SUM(J72:J76)","v":0}]
[null,null,"Per Diem"]
[null,null,"Destination City, Country","Meals & Incidentals Rate","# of travel days including travel ",null,"Lodging Rate","# of Nights","# of Travelers","Total"]
[null,1,null,0,0,null,0,0,0,{"$f":"((D80*E80)+(G80*H80)-(D80/2))*I80","v":0}]
[null,null,"Destination City, Country","Meals & Incidentals Rate","# of travel days including travel ",null,"Lodging Rate","# of Nights","# of Travelers","Total"]
[null,2,null,0,0,null,0,0,0,{"$f":"((D82*E82)+(G82*H82)-(D82/2))*I82","v":0}]
[null,null,"Destination City, Country","Meals & Incidentals Rate","# of travel days including travel ",null,"Lodging Rate","# of Nights","# of Travelers","Total"]
[null,3,null,0,0,null,0,0,0,{"$f":"((D84*E84)+(G84*H84)-(D84/2))*I84","v":0}]
[null,null,"Subtotal - Perdiem",null,null,null,null,null,null,{"$f":"J80+J82+J84","v":0}]
[null,null,"Others"]
[null,null,"Description",null,null,null,null,"Rate/Fee","# Units","Total"]
[null,1,"Ex: Parking",null,null,null,null,0,0,{"$f":"H88*I88","v":0}]
[null,2,"Ex: Visa",null,null,null,null,0,0,{"$f":"H89*I89","v":0}]
[null,3,null,null,null,null,null,0,0,{"$f":"H90*I90","v":0}]
[null,null,"Subtotal - Miscellaneous",null,null,null,null,null,null,{"$f":"SUM(J88:J90)","v":0}]
[null,null,"Registrations"]
[null,null,"Description",null,null,null,null,"Fee","# Units","Total"]
[null,1,null,null,null,null,null,0,0,{"$f":"H94*I94","v":0}]
[null,2,null,null,null,null,null,0,0,{"$f":"H95*I95","v":0}]
[null,null,"Subtotal - Registrations",null,null,null,null,null,null,{"$f":"SUM(J94:J95)","v":0}]
[]
[]
[null,null,"Budget Summary"]
[]
[null,null,"Direct Costs"]
[null,"A","Labor",null,null,null,null,null,null,{"$f":"J17","v":0}]
[null,"B1","Equipment",null,null,null,null,null,null,{"$f":"J36","v":0}]
[null,"B2&B3","Supplies, Services & Other direct costs",null,null,null,null,null,null,{"$f":"J53+J65","v":0}]
[null,"C","Travel",null,null,null,null,null,null,{"$f":"J96+J91+J85+J77","v":0}]
[]
[]
[null,null,"Total Direct Costs",null,null,null,null,null,{"$f":"SUM(J102:J107)","v":0}]
[null,null,"Modified Total Direct Costs",null,null,null,null,null,{"$f":"I108-J103","v":0}]
[null,null,"Indirect Rate %",null,null,null,null,0,null,{"$f":"H110","v":0}]
[null,null,"Indirect Costs",null,null,null,null,null,{"$f":"I109*J110","v":0}]
[]
[]
[]
[null,"Subtotal - Direct Costs",null,null,null,null,null,null,{"$f":"J102+J103+J104+J105","v":0}]
[]
[null,"Subtotal - Indirect Costs",null,null,null,null,null,null,{"$f":"I111","v":0}]
[]
[null,"Total Award Cost",null,null,null,null,null,null,{"$f":"I115+I117","v":0}]

{"sheet":"D. Budget Narrative_A#1","index":9,"n_rows":306,"n_cols":12,"rows_kept":306,"cut":false,"hidden":false,"merged":[[151,4,151,9],[165,4,165,9],[133,4,133,9],[223,4,223,9],[227,4,227,9],[178,4,178,9],[211,3,211,9],[185,3,185,9],[153,4,153,9],[172,4,172,9],[176,3,176,9],[177,4,177,9],[163,4,163,9],[166,3,166,9],[167,4,167,9],[171,3,171,9],[155,4,155,9],[158,3,158,9],[159,4,159,9],[162,3,162,9],[170,4,170,9],[175,4,175,9],[212,4,212,9],[207,4,207,9],[102,3,102,9],[73,3,73,9],[47,3,47,9],[269,4,269,9],[272,3,272,9],[255,4,255,9],[257,4,257,9],[260,3,260,9],[261,4,261,9],[263,4,263,9],[268,3,268,9],[271,4,271,9],[245,4,245,9],[248,3,248,9],[249,4,249,9],[251,4,251,9],[243,4,243,9],[157,4,157,9],[161,4,161,9],[225,4,225,9],[143,4,143,9],[150,3,150,9],[240,4,240,9],[213,4,213,9],[305,3,308,9],[295,4,295,9],[304,3,304,9],[285,4,285,9],[289,3,289,9],[290,4,290,9],[294,3,294,9],[277,4,277,9],[280,3,280,9],[281,4,281,9],[284,3,284,9],[279,4,279,9],[283,4,283,9],[288,4,288,9],[293,4,293,9],[296,4,296,9],[254,3,254,9],[273,4,273,9],[275,4,275,9],[244,3,244,9],[221,4,221,9],[219,4,219,9],[116,3,116,9],[124,3,124,9],[276,3,276,9],[246,4,246,9],[138,4,138,9],[142,3,142,9],[202,4,202,9],[206,3,206,9],[194,4,194,9],[197,3,197,9],[198,4,198,9],[201,3,201,9],[186,4,186,9],[189,3,189,9],[190,4,190,9],[193,3,193,9],[188,4,188,9],[192,4,192,9],[196,4,196,9],[200,4,200,9],[205,4,205,9],[234,3,234,9],[235,4,235,9],[239,3,239,9],[125,4,125,9],[128,3,128,9],[129,4,129,9],[132,3,132,9],[94,4,94,9],[97,3,97,9],[98,4,98,9],[117,4,117,9],[120,3,120,9],[121,4,121,9],[103,4,103,9],[107,3,107,9],[108,4,108,9],[110,4,110,9],[229,4,229,9],[233,4,233,9],[238,4,238,9],[210,4,210,9],[154,3,154,9],[137,3,137,9],[86,4,86,9],[72,4,72,9],[89,3,89,9],[90,4,90,9],[93,3,93,9],[74,4,74,9],[81,3,81,9],[82,4,82,9],[85,3,85,9],[75,4,75,9],[37,4,37,9],[26,3,26,9],[27,4,27,9],[31,3,31,9],[12,4,12,9],[16,3,16,9],[17,4,17,9],[21,3,21,9],[36,3,36,9],[13,4,13,9],[18,4,18,9],[23,4,23,9],[28,4,28,9],[33,4,33,9],[38,4,38,9],[64,4,64,9],[68,3,68,9],[69,4,69,9],[56,4,56,9],[59,3,59,9],[60,4,60,9],[63,3,63,9],[48,4,48,9],[51,3,51,9],[52,4,52,9],[55,3,55,9],[50,4,50,9],[54,4,54,9],[58,4,58,9],[62,4,62,9],[67,4,67,9],[0,4,0,6],[1,1,1,10],[2,3,2,5],[6,3,6,9],[7,4,7,9],[11,3,11,9],[22,4,22,9],[32,4,32,9],[8,4,8,9]]}
[null,null,null,null,"ATTACHMENT D"]
[null,"Budget Narrative"]
[]
[]
[null,null,null,"A. Project Personnel Labor "]
[]
[null,null,1,"[insert name]"]
[null,null,null,"Role in Project","[enter here]"]
[null,null,null,"E-mail","[enter here]"]
[null,null,null,"Phone number","[enter here]"]
[null,null,null,"Justification","[enter here]"]
[null,null,2,"[insert name]"]
[null,null,null,"Role in Project","[enter here]"]
[null,null,null,"E-mail","[enter here]"]
[null,null,null,"Phone number","[enter here]"]
[null,null,null,"Justification","[enter here]"]
[null,null,3,"[insert name]"]
[null,null,null,"Role in Project","[enter here]"]
[null,null,null,"E-mail","[enter here]"]
[null,null,null,"Phone number","[enter here]"]
[null,null,null,"Justification","[enter here]",null,null,null,null,null,null,"Please, unhide rows between 22-35 if more space for Labor is needed."]
[null,null,4,"[insert name]"]
[null,null,null,"Role in Project","[enter here]"]
[null,null,null,"E-mail","[enter here]"]
[null,null,null,"Phone number","[enter here]"]
[null,null,null,"Justification","[enter here]"]
[null,null,5,"[insert name]"]
[null,null,null,"Role in Project","[enter here]"]
[null,null,null,"E-mail","[enter here]"]
[null,null,null,"Phone number","[enter here]"]
[null,null,null,"Justification","[enter here]"]
[null,null,6,"[insert name]"]
[null,null,null,"Role in Project","[enter here]"]
[null,null,null,"E-mail","[enter here]"]
[null,null,null,"Phone number","[enter here]"]
[null,null,null,"Justification","[enter here]"]
[null,null,7,"[insert name]"]
[null,null,null,"Role in Project","[enter here]"]
[null,null,null,"E-mail","[enter here]"]
[null,null,null,"Phone number","[enter here]"]
[null,null,null,"Justification","[enter here]"]
[]
[]
[]
[]
[null,null,null,"B. Equipment, Supplies, Services & Other direct costs"]
[null,null,null,"Equipment"]
[null,null,1,"[insert name of the item]"]
[null,null,null,"Purpose ","[enter here]"]
[]
[null,null,null,"Price References","[enter here]"]
[null,null,2,"[insert name of the item]"]
[null,null,null,"Purpose ","[enter here]"]
[]
[null,null,null,"Price References","[enter here]"]
[null,null,3,"[insert name of the item]"]
[null,null,null,"Purpose ","[enter here]"]
[]
[null,null,null,"Price References","[enter here]",null,null,null,null,null,null,"Please, unhide rows between 52-70 if more space for Equipment is needed."]
[null,null,4,"[insert name of the item]"]
[null,null,null,"Purpose ","[enter here]"]
[]
[null,null,null,"Price References","[enter here]"]
[null,null,5,"[insert name of the item]"]
[null,null,null,"Purpose ","[enter here]"]
[]
[]
[null,null,null,"Price References","[enter here]"]
[null,null,6,"[insert name of the item]"]
[null,null,null,"Purpose ","[enter here]"]
[]
[]
[null,null,null,"Price References","[enter here]"]
[null,null,7,"[insert name of the item]"]
[null,null,null,"Purpose ","[enter here]"]
[null,null,null,"Price References","[enter here]"]
[]
[]
[]
[]
[null,null,null,"Supplies"]
[null,null,1,"[insert name of the item]"]
[null,null,null,"Purpose ","[enter here]"]
[]
[]
[null,null,2,"[insert name of the item]"]
[null,null,null,"Purpose ","[enter here]"]
[]
[]
[null,null,3,"[insert name of the item]"]
[null,null,null,"Purpose ","[enter here]"]
[]
[null,null,null,null,null,null,null,null,null,null,null,"Please, unhide rows between 90-105 if more space for Supplies is needed."]
[null,null,4,"[insert name of the item]"]
[null,null,null,"Purpose ","[enter here]"]
[]
[]
[null,null,5,"[insert name of the item]"]
[null,null,null,"Purpose ","[enter here]"]
[]
[]
[]
[null,null,6,"[insert name of the item]"]
[null,null,null,"Purpose ","[enter here]"]
[]
[]
[]
[null,null,7,"[insert name of the item]"]
[null,null,null,"Purpose ","[enter here]"]
[]
[null,null,null,"Price References","[enter here]"]
[]
[]
[]
[]
[null,null,null,"Services"]
[null,null,1,"[insert name of the item]"]
[null,null,null,"Purpose ","[enter here]"]
[]
[]
[null,null,2,"[insert name of the item]"]
[null,null,null,"Purpose ","[enter here]"]
[]
[]
[null,null,3,"[insert name of the item]"]
[null,null,null,"Purpose ","[enter here]"]
[]
[null,null,null,null,null,null,null,null,null,null,null,"Please, unhide rows between 125-139 if more space for Services is needed."]
[null,null,4,"[insert name of the item]"]
[null,null,null,"Purpose ","[enter here]"]
[]
[]
[null,null,5,"[insert name of the item]"]
[null,null,null,"Purpose ","[enter here]"]
[]
[]
[]
[null,null,6,"[insert name of the item]"]
[null,null,null,"Purpose ","[enter here]"]
[]
[]
[]
[null,null,7,"[insert name of the item]"]
[null,null,null,"Purpose ","[enter here]"]
[]
[]
[]
[]
[]
[null,null,null,"Other direct costs"]
[null,null,1,"[insert name of the item]"]
[null,null,null,"Purpose ","[enter here]"]
[]
[null,null,null,"Price References","[enter here]"]
[null,null,2,"[insert name of the item]"]
[null,null,null,"Purpose ","[enter here]"]
[]
[null,null,null,"Price References","[enter here]"]
[null,null,3,"[insert name of the item]"]
[null,null,null,"Purpose ","[enter here]"]
[]
[null,null,null,"Price References","[enter here]"]
[null,null,4,"[insert name of the item]"]
[null,null,null,"Purpose ","[enter here]"]
[]
[null,null,null,"Price References","[enter here]"]
[null,null,5,"[insert name of the item]"]
[null,null,null,"Purpose ","[enter here]"]
[]
[]
[null,null,null,"Price References","[enter here]"]
[null,null,6,"[insert name of the item]"]
[null,null,null,"Purpose ","[enter here]"]
[]
[]
[null,null,null,"Price References","[enter here]"]
[null,null,7,"[insert name of the item]"]
[null,null,null,"Purpose ","[enter here]"]
[null,null,null,"Price References","[enter here]"]
[null,null,null,null,null,null,null,null,null,null,null,"Please, unhide rows between 159-173 if more space for Other Direct Costs is needed."]
[]
[]
[]
[null,null,null,"C. Travel"]
[]
[null,null,1,"[Origin City, Country - Destination City, Country]"]
[null,null,null,"Purpose ","[enter here]"]
[]
[null,null,null,"Price References","[enter here]"]
[null,null,2,"[Origin City, Country - Destination City, Country]"]
[null,null,null,"Purpose ","[enter here]"]
[]
[null,null,null,"Price References","[enter here]"]
[null,null,3,"[Origin City, Country - Destination City, Country]"]
[null,null,null,"Purpose ","[enter here]"]
[]
[null,null,null,"Price References","[enter here]"]
[null,null,4,"[Origin City, Country - Destination City, Country]"]
[null,null,null,"Purpose ","[enter here]"]
[]
[null,null,null,"Price References","[enter here]"]
[null,null,5,"[Origin City, Country - Destination City, Country]"]
[null,null,null,"Purpose ","[enter here]"]
[]
[]
[null,null,null,"Price References","[enter here]"]
[null,null,6,"[Origin City, Country - Destination City, Country]"]
[null,null,null,"Purpose ","[enter here]"]
[]
[]
[null,null,null,"Price References","[enter here]"]
[null,null,7,"[Origin City, Country - Destination City, Country]"]
[null,null,null,"Purpose ","[enter here]"]
[null,null,null,"Price References","[enter here]"]
[null,null,null,null,null,null,null,null,null,null,null,"Please, unhide rows between 190-208 if more space for Travel is needed."]
[]
[]
[null,null,null,"Per Diem Lodging rates"]
[null,null,1,"[insert name of destination city]"]
[null,null,null,"Lodging option ","[enter here]"]
[]
[null,null,null,"Price References","[enter here]"]
[null,null,2,"[insert name of destination city]"]
[null,null,null,"Lodging option ","[enter here]"]
[]
[null,null,null,"Price References","[enter here]"]
[null,null,3,"[insert name of destination city]"]
[null,null,null,"Lodging option ","[enter here]"]
[]
[null,null,null,"Price References","[enter here]"]
[null,null,4,"[insert name of destination city]"]
[null,null,null,"Lodging option ","[enter here]"]
[]
[null,null,null,"Price References","[enter here]"]
[null,null,5,"[insert name of destination city]"]
[null,null,null,"Lodging option ","[enter here]"]
[]
[]
[null,null,null,"Price References","[enter here]"]
[null,null,6,"[insert name of destination city]"]
[null,null,null,"Lodging option ","[enter here]"]
[]
[]
[null,null,null,"Price References","[enter here]"]
[null,null,7,"[insert name of the item]"]
[null,null,null,"Purpose ","[enter here]"]
[null,null,null,"Price References","[enter here]"]
[]
[null,null,5,"[insert name of the item]"]
[null,null,null,"Purpose ","[enter here]"]
[]
[null,null,null,"Price References","[enter here]"]
[]
[]
[null,null,6,"[insert name of the item]"]
[null,null,null,"Purpose ","[enter here]"]
[]
[null,null,null,"Price References","[enter here]"]
[]
[]
[null,null,7,"[insert name of the item]"]
[null,null,null,"Purpose ","[enter here]"]
[]
[null,null,null,"Price References","[enter here]"]
[null,null,null,null,null,null,null,null,null,null,null,"Please, unhide rows between 223-258 if more space for Miscellaneous is needed."]
[]
[]
[null,null,null,"Registrations"]
[null,null,1,"[insert name of the item]"]
[null,null,null,"Purpose ","[enter here]"]
[]
[null,null,null,"Price References","[enter here]"]
[null,null,2,"[insert name of the item]"]
[null,null,null,"Purpose ","[enter here]"]
[]
[null,null,null,"Price References","[enter here]"]
[null,null,3,"[insert name of the item]"]
[null,null,null,"Purpose ","[enter here]"]
[]
[null,null,null,"Price References","[enter here]"]
[null,null,4,"[insert name of the item]"]
[null,null,null,"Purpose ","[enter here]"]
[]
[null,null,null,"Price References","[enter here]"]
[null,null,5,"[insert name of the item]"]
[null,null,null,"Purpose ","[enter here]"]
[]
[]
[null,null,null,"Price References","[enter here]"]
[null,null,6,"[insert name of the item]"]
[null,null,null,"Purpose ","[enter here]"]
[]
[]
[null,null,null,"Price References","[enter here]"]
[null,null,7,"[insert name of the item]"]
[null,null,null,"Purpose ","[enter here]"]
[null,null,null,"Price References","[enter here]"]
[null,null,null,null,null,null,null,null,null,null,null,"Please, unhide rows between 273-291 if more space for Registrations is needed."]
[]
[]
[]
[]
[null,null,null,"Indirect rate"]
[]
[null,null,null,"Please indicate document that specifies applicable indirect rate"]
[null,null,null," [enter here]"]

{"sheet":"C. Budget_A#2","index":10,"n_rows":119,"n_cols":10,"rows_kept":119,"cut":false,"hidden":false,"merged":[[11,2,11,3],[11,4,11,5],[0,3,0,7],[2,1,2,2],[2,3,2,9],[9,4,9,9],[10,4,10,5],[28,2,28,6],[12,2,12,3],[12,4,12,5],[13,2,13,3],[13,4,13,5],[14,2,14,3],[14,4,14,5],[15,2,15,3],[15,4,15,5],[25,2,25,6],[26,2,26,6],[27,2,27,6],[47,2,47,6],[29,2,29,6],[30,2,30,6],[31,2,31,6],[32,2,32,6],[33,2,33,6],[34,2,34,6],[42,2,42,6],[43,2,43,6],[44,2,44,6],[45,2,45,6],[46,2,46,6],[64,2,64,8],[48,2,48,6],[49,2,49,6],[50,2,50,6],[51,2,51,6],[52,2,52,8],[58,2,58,3],[59,2,59,6],[60,2,60,6],[61,2,61,6],[62,2,62,6],[63,2,63,6],[82,4,82,5],[70,4,70,5],[71,4,71,5],[72,4,72,5],[73,4,73,5],[74,4,74,5],[75,4,75,5],[76,2,76,8],[78,4,78,5],[79,4,79,5],[80,4,80,5],[81,4,81,5],[106,2,106,8],[83,4,83,5],[87,2,87,6],[88,2,88,6],[89,2,89,6],[93,2,93,6],[94,2,94,6],[101,2,101,8],[102,2,102,8],[103,2,103,8],[104,2,104,8],[105,2,105,8],[116,8,116,9],[118,8,118,9],[119,0,119,10],[107,8,107,9],[108,8,108,9],[110,8,110,9],[111,2,111,10],[113,0,113,10],[114,8,114,9]]}
[null,null,null,"ATTACHMENT C"]
[]
[null,"Project Title"]
[]
[]
[null,"A","Project Personnel Labor "]
[]
[]
[null,"A","Labor"]
[null,null,null,null,{"$f":"IF(C10=\"Level of Effort\",\"Please enter Fringe and LOE as numbers, they will be calculated as percentages\",\" \")","v":" "}]
[null,null,"Name",null,"Title",null,"Project Position","# of Hours","Please select","Total"]
[null,1,null,null,null,null,null,0,0,{"$f":"H12*I12","v":0}]
[null,2,null,null,null,null,null,0,0,{"$f":"H13*I13","v":0}]
[null,3,null,null,null,null,null,0,0,0]
[null,4,null,null,null,null,null,0,0,0]
[null,5,null,null,null,null,null,0,0,0]
[null,null,"Subtotal - Labor",null,null,null,null,null,null,{"$f":"SUM(J12:J16)","v":0}]
[]
[]
[null,"B","Equipment, Supplies, Services & Other direct costs"]
[]
[]
[null,"B1","Equipment"]
[]
[null,null,"Item Description",null,null,null,null,"# of units","Unit cost","Total"]
[null,1,null,null,null,null,null,0,0,{"$f":"H26*I26","v":0}]
[null,2,null,null,null,null,null,0,0,0]
[null,3,null,null,null,null,null,0,0,0]
[null,4,null,null,null,null,null,0,0,0]
[null,5,null,null,null,null,null,0,0,0]
[null,6,null,null,null,null,null,0,0,0]
[null,7,null,null,null,null,null,0,0,0]
[null,8,null,null,null,null,null,0,0,0]
[null,9,null,null,null,null,null,0,0,0]
[null,10,null,null,null,null,null,0,0,0]
[null,null,"Subtotal - Equipment",null,null,null,null,null,null,{"$f":"SUM(J26:J35)","v":0}]
[]
[]
[]
[null,"B2","Supplies"]
[]
[null,null,"Item Description",null,null,null,null,"# of units","Unit cost","Total"]
[null,1,null,null,null,null,null,0,0,{"$f":"H43*I43","v":0}]
[null,2,null,null,null,null,null,0,0,0]
[null,3,null,null,null,null,null,0,0,0]
[null,4,null,null,null,null,null,0,0,0]
[null,5,null,null,null,null,null,0,0,0]
[null,6,null,null,null,null,null,0,0,0]
[null,7,null,null,null,null,null,0,0,0]
[null,8,null,null,null,null,null,0,0,0]
[null,9,null,null,null,null,null,0,0,0]
[null,10,null,null,null,null,null,0,0,0]
[null,null,"Subtotal - Supplies",null,null,null,null,null,null,{"$f":"SUM(J43:J52)","v":0}]
[]
[]
[]
[null,"B3","Services & other direct costs"]
[]
[null,null,"Item Description",null,null,null,null,"# of units","Unit cost","Total"]
[null,1,"Ex: Shipment vie World Courier",null,null,null,null,0,0,{"$f":"H60*I60","v":0}]
[null,2,"Ex: Subscriptions",null,null,null,null,0,0,{"$f":"H61*I61","v":0}]
[null,3,null,null,null,null,null,0,0,{"$f":"H62*I62","v":0}]
[null,4,null,null,null,null,null,0,0,{"$f":"H63*I63","v":0}]
[null,5,null,null,null,null,null,0,0,{"$f":"H64*I64","v":0}]
[null,null,"Subtotal - Services & other direct costs",null,null,null,null,null,null,{"$f":"SUM(J60:J64)","v":0}]
[]
[]
[null,"C","Travel"]
[]
[null,null,"Travel "]
[null,null,"Mean of Transportation","Origin City, Country","Destination City, Country",null,"Roundtrip Cost","#  of Travelers","# of Trips","Total"]
[null,1,"Please select",null,null,null,0,0,0,{"$f":"G72*H72*I72","v":0}]
[null,2,"Please select",null,null,null,0,0,0,{"$f":"G73*H73*I73","v":0}]
[null,3,"Please select",null,null,null,0,0,0,{"$f":"G74*H74*I74","v":0}]
[null,4,"Please select",null,null,null,0,0,0,{"$f":"G75*H75*I75","v":0}]
[null,5,"Please select",null,null,null,0,0,0,{"$f":"G76*H76*I76","v":0}]
[null,null,"Subtotal - Travel",null,null,null,null,null,null,{"$f":"SUM(J72:J76)","v":0}]
[null,null,"Per Diem"]
[null,null,"Destination City, Country","Meals & Incidentals Rate","# of travel days including travel ",null,"Lodging Rate","# of Nights","# of Travelers","Total"]
[null,1,null,0,0,null,0,0,0,{"$f":"((D80*E80)+(G80*H80)-(D80/2))*I80","v":0}]
[null,null,"Destination City, Country","Meals & Incidentals Rate","# of travel days including travel ",null,"Lodging Rate","# of Nights","# of Travelers","Total"]
[null,2,null,0,0,null,0,0,0,{"$f":"((D82*E82)+(G82*H82)-(D82/2))*I82","v":0}]
[null,null,"Destination City, Country","Meals & Incidentals Rate","# of travel days including travel ",null,"Lodging Rate","# of Nights","# of Travelers","Total"]
[null,3,null,0,0,null,0,0,0,{"$f":"((D84*E84)+(G84*H84)-(D84/2))*I84","v":0}]
[null,null,"Subtotal - Perdiem",null,null,null,null,null,null,{"$f":"J80+J82+J84","v":0}]
[null,null,"Others"]
[null,null,"Description",null,null,null,null,"Rate/Fee","# Units","Total"]
[null,1,"Ex: Parking",null,null,null,null,0,0,{"$f":"H88*I88","v":0}]
[null,2,"Ex: Visa",null,null,null,null,0,0,{"$f":"H89*I89","v":0}]
[null,3,null,null,null,null,null,0,0,{"$f":"H90*I90","v":0}]
[null,null,"Subtotal - Miscellaneous",null,null,null,null,null,null,{"$f":"SUM(J88:J90)","v":0}]
[null,null,"Registrations"]
[null,null,"Description",null,null,null,null,"Fee","# Units","Total"]
[null,1,null,null,null,null,null,0,0,{"$f":"H94*I94","v":0}]
[null,2,null,null,null,null,null,0,0,{"$f":"H95*I95","v":0}]
[null,null,"Subtotal - Registrations",null,null,null,null,null,null,{"$f":"SUM(J94:J95)","v":0}]
[]
[]
[null,null,"Budget Summary"]
[]
[null,null,"Direct Costs"]
[null,"A","Labor",null,null,null,null,null,null,{"$f":"J17","v":0}]
[null,"B1","Equipment",null,null,null,null,null,null,{"$f":"J36","v":0}]
[null,"B2&B3","Supplies, Services & Other direct costs",null,null,null,null,null,null,{"$f":"J53+J65","v":0}]
[null,"C","Travel",null,null,null,null,null,null,{"$f":"J96+J91+J85+J77","v":0}]
[]
[]
[null,null,"Total Direct Costs",null,null,null,null,null,{"$f":"SUM(J102:J107)","v":0}]
[null,null,"Modified Total Direct Costs",null,null,null,null,null,{"$f":"I108-J103","v":0}]
[null,null,"Indirect Rate %",null,null,null,null,0,null,{"$f":"H110","v":0}]
[null,null,"Indirect Costs",null,null,null,null,null,{"$f":"I109*J110","v":0}]
[]
[]
[]
[null,"Subtotal - Direct Costs",null,null,null,null,null,null,{"$f":"J102+J103+J104+J105","v":0}]
[]
[null,"Subtotal - Indirect Costs",null,null,null,null,null,null,{"$f":"I111","v":0}]
[]
[null,"Total Award Cost",null,null,null,null,null,null,{"$f":"I115+I117","v":0}]

{"sheet":"D. Budget Narrative_A#2","index":11,"n_rows":306,"n_cols":12,"rows_kept":306,"cut":false,"hidden":false,"merged":[[294,3,294,9],[295,4,295,9],[296,4,296,9],[304,3,304,9],[305,3,308,9],[284,3,284,9],[285,4,285,9],[288,4,288,9],[289,3,289,9],[290,4,290,9],[293,4,293,9],[276,3,276,9],[277,4,277,9],[279,4,279,9],[280,3,280,9],[281,4,281,9],[283,4,283,9],[268,3,268,9],[269,4,269,9],[271,4,271,9],[272,3,272,9],[273,4,273,9],[275,4,275,9],[254,3,254,9],[255,4,255,9],[257,4,257,9],[260,3,260,9],[261,4,261,9],[263,4,263,9],[244,3,244,9],[245,4,245,9],[246,4,246,9],[248,3,248,9],[249,4,249,9],[251,4,251,9],[234,3,234,9],[235,4,235,9],[238,4,238,9],[239,3,239,9],[240,4,240,9],[243,4,243,9],[212,4,212,9],[213,4,213,9],[221,4,221,9],[225,4,225,9],[229,4,229,9],[233,4,233,9],[219,4,219,9],[223,4,223,9],[227,4,227,9],[202,4,202,9],[205,4,205,9],[206,3,206,9],[207,4,207,9],[210,4,210,9],[211,3,211,9],[194,4,194,9],[196,4,196,9],[197,3,197,9],[198,4,198,9],[200,4,200,9],[201,3,201,9],[186,4,186,9],[188,4,188,9],[189,3,189,9],[190,4,190,9],[192,4,192,9],[193,3,193,9],[172,4,172,9],[175,4,175,9],[176,3,176,9],[177,4,177,9],[178,4,178,9],[185,3,185,9],[163,4,163,9],[165,4,165,9],[166,3,166,9],[167,4,167,9],[170,4,170,9],[171,3,171,9],[155,4,155,9],[157,4,157,9],[158,3,158,9],[159,4,159,9],[161,4,161,9],[162,3,162,9],[142,3,142,9],[143,4,143,9],[150,3,150,9],[151,4,151,9],[153,4,153,9],[154,3,154,9],[128,3,128,9],[129,4,129,9],[132,3,132,9],[133,4,133,9],[137,3,137,9],[138,4,138,9],[116,3,116,9],[117,4,117,9],[120,3,120,9],[121,4,121,9],[124,3,124,9],[125,4,125,9],[98,4,98,9],[102,3,102,9],[103,4,103,9],[107,3,107,9],[108,4,108,9],[110,4,110,9],[86,4,86,9],[89,3,89,9],[90,4,90,9],[93,3,93,9],[94,4,94,9],[97,3,97,9],[73,3,73,9],[74,4,74,9],[75,4,75,9],[81,3,81,9],[82,4,82,9],[85,3,85,9],[63,3,63,9],[64,4,64,9],[67,4,67,9],[68,3,68,9],[69,4,69,9],[72,4,72,9],[55,3,55,9],[56,4,56,9],[58,4,58,9],[59,3,59,9],[60,4,60,9],[62,4,62,9],[47,3,47,9],[48,4,48,9],[50,4,50,9],[51,3,51,9],[52,4,52,9],[54,4,54,9],[31,3,31,9],[32,4,32,9],[33,4,33,9],[36,3,36,9],[37,4,37,9],[38,4,38,9],[26,3,26,9],[27,4,27,9],[28,4,28,9],[11,3,11,9],[12,4,12,9],[13,4,13,9],[16,3,16,9],[17,4,17,9],[18,4,18,9],[0,4,0,6],[1,1,1,10],[2,3,2,5],[6,3,6,9],[7,4,7,9],[8,4,8,9],[21,3,21,9],[22,4,22,9],[23,4,23,9]]}
[null,null,null,null,"ATTACHMENT D"]
[null,"Budget Narrative"]
[]
[]
[null,null,null,"A. Project Personnel Labor "]
[]
[null,null,1,"[insert name]"]
[null,null,null,"Role in Project","[enter here]"]
[null,null,null,"E-mail","[enter here]"]
[null,null,null,"Phone number","[enter here]"]
[null,null,null,"Justification","[enter here]"]
[null,null,2,"[insert name]"]
[null,null,null,"Role in Project","[enter here]"]
[null,null,null,"E-mail","[enter here]"]
[null,null,null,"Phone number","[enter here]"]
[null,null,null,"Justification","[enter here]"]
[null,null,3,"[insert name]"]
[null,null,null,"Role in Project","[enter here]"]
[null,null,null,"E-mail","[enter here]"]
[null,null,null,"Phone number","[enter here]"]
[null,null,null,"Justification","[enter here]",null,null,null,null,null,null,"Please, unhide rows between 22-35 if more space for Labor is needed."]
[null,null,4,"[insert name]"]
[null,null,null,"Role in Project","[enter here]"]
[null,null,null,"E-mail","[enter here]"]
[null,null,null,"Phone number","[enter here]"]
[null,null,null,"Justification","[enter here]"]
[null,null,5,"[insert name]"]
[null,null,null,"Role in Project","[enter here]"]
[null,null,null,"E-mail","[enter here]"]
[null,null,null,"Phone number","[enter here]"]
[null,null,null,"Justification","[enter here]"]
[null,null,6,"[insert name]"]
[null,null,null,"Role in Project","[enter here]"]
[null,null,null,"E-mail","[enter here]"]
[null,null,null,"Phone number","[enter here]"]
[null,null,null,"Justification","[enter here]"]
[null,null,7,"[insert name]"]
[null,null,null,"Role in Project","[enter here]"]
[null,null,null,"E-mail","[enter here]"]
[null,null,null,"Phone number","[enter here]"]
[null,null,null,"Justification","[enter here]"]
[]
[]
[]
[]
[null,null,null,"B. Equipment, Supplies, Services & Other direct costs"]
[null,null,null,"Equipment"]
[null,null,1,"[insert name of the item]"]
[null,null,null,"Purpose ","[enter here]"]
[]
[null,null,null,"Price References","[enter here]"]
[null,null,2,"[insert name of the item]"]
[null,null,null,"Purpose ","[enter here]"]
[]
[null,null,null,"Price References","[enter here]"]
[null,null,3,"[insert name of the item]"]
[null,null,null,"Purpose ","[enter here]"]
[]
[null,null,null,"Price References","[enter here]",null,null,null,null,null,null,"Please, unhide rows between 52-70 if more space for Equipment is needed."]
[null,null,4,"[insert name of the item]"]
[null,null,null,"Purpose ","[enter here]"]
[]
[null,null,null,"Price References","[enter here]"]
[null,null,5,"[insert name of the item]"]
[null,null,null,"Purpose ","[enter here]"]
[]
[]
[null,null,null,"Price References","[enter here]"]
[null,null,6,"[insert name of the item]"]
[null,null,null,"Purpose ","[enter here]"]
[]
[]
[null,null,null,"Price References","[enter here]"]
[null,null,7,"[insert name of the item]"]
[null,null,null,"Purpose ","[enter here]"]
[null,null,null,"Price References","[enter here]"]
[]
[]
[]
[]
[null,null,null,"Supplies"]
[null,null,1,"[insert name of the item]"]
[null,null,null,"Purpose ","[enter here]"]
[]
[]
[null,null,2,"[insert name of the item]"]
[null,null,null,"Purpose ","[enter here]"]
[]
[]
[null,null,3,"[insert name of the item]"]
[null,null,null,"Purpose ","[enter here]"]
[]
[null,null,null,null,null,null,null,null,null,null,null,"Please, unhide rows between 90-105 if more space for Supplies is needed."]
[null,null,4,"[insert name of the item]"]
[null,null,null,"Purpose ","[enter here]"]
[]
[]
[null,null,5,"[insert name of the item]"]
[null,null,null,"Purpose ","[enter here]"]
[]
[]
[]
[null,null,6,"[insert name of the item]"]
[null,null,null,"Purpose ","[enter here]"]
[]
[]
[]
[null,null,7,"[insert name of the item]"]
[null,null,null,"Purpose ","[enter here]"]
[]
[null,null,null,"Price References","[enter here]"]
[]
[]
[]
[]
[null,null,null,"Services"]
[null,null,1,"[insert name of the item]"]
[null,null,null,"Purpose ","[enter here]"]
[]
[]
[null,null,2,"[insert name of the item]"]
[null,null,null,"Purpose ","[enter here]"]
[]
[]
[null,null,3,"[insert name of the item]"]
[null,null,null,"Purpose ","[enter here]"]
[]
[null,null,null,null,null,null,null,null,null,null,null,"Please, unhide rows between 125-139 if more space for Services is needed."]
[null,null,4,"[insert name of the item]"]
[null,null,null,"Purpose ","[enter here]"]
[]
[]
[null,null,5,"[insert name of the item]"]
[null,null,null,"Purpose ","[enter here]"]
[]
[]
[]
[null,null,6,"[insert name of the item]"]
[null,null,null,"Purpose ","[enter here]"]
[]
[]
[]
[null,null,7,"[insert name of the item]"]
[null,null,null,"Purpose ","[enter here]"]
[]
[]
[]
[]
[]
[null,null,null,"Other direct costs"]
[null,null,1,"[insert name of the item]"]
[null,null,null,"Purpose ","[enter here]"]
[]
[null,null,null,"Price References","[enter here]"]
[null,null,2,"[insert name of the item]"]
[null,null,null,"Purpose ","[enter here]"]
[]
[null,null,null,"Price References","[enter here]"]
[null,null,3,"[insert name of the item]"]
[null,null,null,"Purpose ","[enter here]"]
[]
[null,null,null,"Price References","[enter here]"]
[null,null,4,"[insert name of the item]"]
[null,null,null,"Purpose ","[enter here]"]
[]
[null,null,null,"Price References","[enter here]"]
[null,null,5,"[insert name of the item]"]
[null,null,null,"Purpose ","[enter here]"]
[]
[]
[null,null,null,"Price References","[enter here]"]
[null,null,6,"[insert name of the item]"]
[null,null,null,"Purpose ","[enter here]"]
[]
[]
[null,null,null,"Price References","[enter here]"]
[null,null,7,"[insert name of the item]"]
[null,null,null,"Purpose ","[enter here]"]
[null,null,null,"Price References","[enter here]"]
[null,null,null,null,null,null,null,null,null,null,null,"Please, unhide rows between 159-173 if more space for Other Direct Costs is needed."]
[]
[]
[]
[null,null,null,"C. Travel"]
[]
[null,null,1,"[Origin City, Country - Destination City, Country]"]
[null,null,null,"Purpose ","[enter here]"]
[]
[null,null,null,"Price References","[enter here]"]
[null,null,2,"[Origin City, Country - Destination City, Country]"]
[null,null,null,"Purpose ","[enter here]"]
[]
[null,null,null,"Price References","[enter here]"]
[null,null,3,"[Origin City, Country - Destination City, Country]"]
[null,null,null,"Purpose ","[enter here]"]
[]
[null,null,null,"Price References","[enter here]"]
[null,null,4,"[Origin City, Country - Destination City, Country]"]
[null,null,null,"Purpose ","[enter here]"]
[]
[null,null,null,"Price References","[enter here]"]
[null,null,5,"[Origin City, Country - Destination City, Country]"]
[null,null,null,"Purpose ","[enter here]"]
[]
[]
[null,null,null,"Price References","[enter here]"]
[null,null,6,"[Origin City, Country - Destination City, Country]"]
[null,null,null,"Purpose ","[enter here]"]
[]
[]
[null,null,null,"Price References","[enter here]"]
[null,null,7,"[Origin City, Country - Destination City, Country]"]
[null,null,null,"Purpose ","[enter here]"]
[null,null,null,"Price References","[enter here]"]
[null,null,null,null,null,null,null,null,null,null,null,"Please, unhide rows between 190-208 if more space for Travel is needed."]
[]
[]
[null,null,null,"Per Diem Lodging rates"]
[null,null,1,"[insert name of destination city]"]
[null,null,null,"Lodging option ","[enter here]"]
[]
[null,null,null,"Price References","[enter here]"]
[null,null,2,"[insert name of destination city]"]
[null,null,null,"Lodging option ","[enter here]"]
[]
[null,null,null,"Price References","[enter here]"]
[null,null,3,"[insert name of destination city]"]
[null,null,null,"Lodging option ","[enter here]"]
[]
[null,null,null,"Price References","[enter here]"]
[null,null,4,"[insert name of destination city]"]
[null,null,null,"Lodging option ","[enter here]"]
[]
[null,null,null,"Price References","[enter here]"]
[null,null,5,"[insert name of destination city]"]
[null,null,null,"Lodging option ","[enter here]"]
[]
[]
[null,null,null,"Price References","[enter here]"]
[null,null,6,"[insert name of destination city]"]
[null,null,null,"Lodging option ","[enter here]"]
[]
[]
[null,null,null,"Price References","[enter here]"]
[null,null,7,"[insert name of the item]"]
[null,null,null,"Purpose ","[enter here]"]
[null,null,null,"Price References","[enter here]"]
[]
[null,null,5,"[insert name of the item]"]
[null,null,null,"Purpose ","[enter here]"]
[]
[null,null,null,"Price References","[enter here]"]
[]
[]
[null,null,6,"[insert name of the item]"]
[null,null,null,"Purpose ","[enter here]"]
[]
[null,null,null,"Price References","[enter here]"]
[]
[]
[null,null,7,"[insert name of the item]"]
[null,null,null,"Purpose ","[enter here]"]
[]
[null,null,null,"Price References","[enter here]"]
[null,null,null,null,null,null,null,null,null,null,null,"Please, unhide rows between 223-258 if more space for Miscellaneous is needed."]
[]
[]
[null,null,null,"Registrations"]
[null,null,1,"[insert name of the item]"]
[null,null,null,"Purpose ","[enter here]"]
[]
[null,null,null,"Price References","[enter here]"]
[null,null,2,"[insert name of the item]"]
[null,null,null,"Purpose ","[enter here]"]
[]
[null,null,null,"Price References","[enter here]"]
[null,null,3,"[insert name of the item]"]
[null,null,null,"Purpose ","[enter here]"]
[]
[null,null,null,"Price References","[enter here]"]
[null,null,4,"[insert name of the item]"]
[null,null,null,"Purpose ","[enter here]"]
[]
[null,null,null,"Price References","[enter here]"]
[null,null,5,"[insert name of the item]"]
[null,null,null,"Purpose ","[enter here]"]
[]
[]
[null,null,null,"Price References","[enter here]"]
[null,null,6,"[insert name of the item]"]
[null,null,null,"Purpose ","[enter here]"]
[]
[]
[null,null,null,"Price References","[enter here]"]
[null,null,7,"[insert name of the item]"]
[null,null,null,"Purpose ","[enter here]"]
[null,null,null,"Price References","[enter here]"]
[null,null,null,null,null,null,null,null,null,null,null,"Please, unhide rows between 273-291 if more space for Registrations is needed."]
[]
[]
[]
[]
[null,null,null,"Indirect rate"]
[]
[null,null,null,"Please indicate document that specifies applicable indirect rate"]
[null,null,null," [enter here]"]

{"sheet":"C. Budget_A#3","index":12,"n_rows":119,"n_cols":10,"rows_kept":119,"cut":false,"hidden":false,"merged":[[11,2,11,3],[11,4,11,5],[0,3,0,7],[2,1,2,2],[2,3,2,9],[9,4,9,9],[10,4,10,5],[28,2,28,6],[12,2,12,3],[12,4,12,5],[13,2,13,3],[13,4,13,5],[14,2,14,3],[14,4,14,5],[15,2,15,3],[15,4,15,5],[25,2,25,6],[26,2,26,6],[27,2,27,6],[47,2,47,6],[29,2,29,6],[30,2,30,6],[31,2,31,6],[32,2,32,6],[33,2,33,6],[34,2,34,6],[42,2,42,6],[43,2,43,6],[44,2,44,6],[45,2,45,6],[46,2,46,6],[64,2,64,8],[48,2,48,6],[49,2,49,6],[50,2,50,6],[51,2,51,6],[52,2,52,8],[58,2,58,3],[59,2,59,6],[60,2,60,6],[61,2,61,6],[62,2,62,6],[63,2,63,6],[82,4,82,5],[70,4,70,5],[71,4,71,5],[72,4,72,5],[73,4,73,5],[74,4,74,5],[75,4,75,5],[76,2,76,8],[78,4,78,5],[79,4,79,5],[80,4,80,5],[81,4,81,5],[106,2,106,8],[83,4,83,5],[87,2,87,6],[88,2,88,6],[89,2,89,6],[93,2,93,6],[94,2,94,6],[101,2,101,8],[102,2,102,8],[103,2,103,8],[104,2,104,8],[105,2,105,8],[116,8,116,9],[118,8,118,9],[119,0,119,10],[107,8,107,9],[108,8,108,9],[110,8,110,9],[111,2,111,10],[113,0,113,10],[114,8,114,9]]}
[null,null,null,"ATTACHMENT C"]
[]
[null,"Project Title"]
[]
[]
[null,"A","Project Personnel Labor "]
[]
[]
[null,"A","Labor"]
[null,null,null,null,{"$f":"IF(C10=\"Level of Effort\",\"Please enter Fringe and LOE as numbers, they will be calculated as percentages\",\" \")","v":" "}]
[null,null,"Name",null,"Title",null,"Project Position","# of Hours","Please select","Total"]
[null,1,null,null,null,null,null,0,0,{"$f":"H12*I12","v":0}]
[null,2,null,null,null,null,null,0,0,{"$f":"H13*I13","v":0}]
[null,3,null,null,null,null,null,0,0,0]
[null,4,null,null,null,null,null,0,0,0]
[null,5,null,null,null,null,null,0,0,0]
[null,null,"Subtotal - Labor",null,null,null,null,null,null,{"$f":"SUM(J12:J16)","v":0}]
[]
[]
[null,"B","Equipment, Supplies, Services & Other direct costs"]
[]
[]
[null,"B1","Equipment"]
[]
[null,null,"Item Description",null,null,null,null,"# of units","Unit cost","Total"]
[null,1,null,null,null,null,null,0,0,{"$f":"H26*I26","v":0}]
[null,2,null,null,null,null,null,0,0,0]
[null,3,null,null,null,null,null,0,0,0]
[null,4,null,null,null,null,null,0,0,0]
[null,5,null,null,null,null,null,0,0,0]
[null,6,null,null,null,null,null,0,0,0]
[null,7,null,null,null,null,null,0,0,0]
[null,8,null,null,null,null,null,0,0,0]
[null,9,null,null,null,null,null,0,0,0]
[null,10,null,null,null,null,null,0,0,0]
[null,null,"Subtotal - Equipment",null,null,null,null,null,null,{"$f":"SUM(J26:J35)","v":0}]
[]
[]
[]
[null,"B2","Supplies"]
[]
[null,null,"Item Description",null,null,null,null,"# of units","Unit cost","Total"]
[null,1,null,null,null,null,null,0,0,{"$f":"H43*I43","v":0}]
[null,2,null,null,null,null,null,0,0,0]
[null,3,null,null,null,null,null,0,0,0]
[null,4,null,null,null,null,null,0,0,0]
[null,5,null,null,null,null,null,0,0,0]
[null,6,null,null,null,null,null,0,0,0]
[null,7,null,null,null,null,null,0,0,0]
[null,8,null,null,null,null,null,0,0,0]
[null,9,null,null,null,null,null,0,0,0]
[null,10,null,null,null,null,null,0,0,0]
[null,null,"Subtotal - Supplies",null,null,null,null,null,null,{"$f":"SUM(J43:J52)","v":0}]
[]
[]
[]
[null,"B3","Services & other direct costs"]
[]
[null,null,"Item Description",null,null,null,null,"# of units","Unit cost","Total"]
[null,1,"Ex: Shipment vie World Courier",null,null,null,null,0,0,{"$f":"H60*I60","v":0}]
[null,2,"Ex: Subscriptions",null,null,null,null,0,0,{"$f":"H61*I61","v":0}]
[null,3,null,null,null,null,null,0,0,{"$f":"H62*I62","v":0}]
[null,4,null,null,null,null,null,0,0,{"$f":"H63*I63","v":0}]
[null,5,null,null,null,null,null,0,0,{"$f":"H64*I64","v":0}]
[null,null,"Subtotal - Services & other direct costs",null,null,null,null,null,null,{"$f":"SUM(J60:J64)","v":0}]
[]
[]
[null,"C","Travel"]
[]
[null,null,"Travel "]
[null,null,"Mean of Transportation","Origin City, Country","Destination City, Country",null,"Roundtrip Cost","#  of Travelers","# of Trips","Total"]
[null,1,"Please select",null,null,null,0,0,0,{"$f":"G72*H72*I72","v":0}]
[null,2,"Please select",null,null,null,0,0,0,{"$f":"G73*H73*I73","v":0}]
[null,3,"Please select",null,null,null,0,0,0,{"$f":"G74*H74*I74","v":0}]
[null,4,"Please select",null,null,null,0,0,0,{"$f":"G75*H75*I75","v":0}]
[null,5,"Please select",null,null,null,0,0,0,{"$f":"G76*H76*I76","v":0}]
[null,null,"Subtotal - Travel",null,null,null,null,null,null,{"$f":"SUM(J72:J76)","v":0}]
[null,null,"Per Diem"]
[null,null,"Destination City, Country","Meals & Incidentals Rate","# of travel days including travel ",null,"Lodging Rate","# of Nights","# of Travelers","Total"]
[null,1,null,0,0,null,0,0,0,{"$f":"((D80*E80)+(G80*H80)-(D80/2))*I80","v":0}]
[null,null,"Destination City, Country","Meals & Incidentals Rate","# of travel days including travel ",null,"Lodging Rate","# of Nights","# of Travelers","Total"]
[null,2,null,0,0,null,0,0,0,{"$f":"((D82*E82)+(G82*H82)-(D82/2))*I82","v":0}]
[null,null,"Destination City, Country","Meals & Incidentals Rate","# of travel days including travel ",null,"Lodging Rate","# of Nights","# of Travelers","Total"]
[null,3,null,0,0,null,0,0,0,{"$f":"((D84*E84)+(G84*H84)-(D84/2))*I84","v":0}]
[null,null,"Subtotal - Perdiem",null,null,null,null,null,null,{"$f":"J80+J82+J84","v":0}]
[null,null,"Others"]
[null,null,"Description",null,null,null,null,"Rate/Fee","# Units","Total"]
[null,1,"Ex: Parking",null,null,null,null,0,0,{"$f":"H88*I88","v":0}]
[null,2,"Ex: Visa",null,null,null,null,0,0,{"$f":"H89*I89","v":0}]
[null,3,null,null,null,null,null,0,0,{"$f":"H90*I90","v":0}]
[null,null,"Subtotal - Miscellaneous",null,null,null,null,null,null,{"$f":"SUM(J88:J90)","v":0}]
[null,null,"Registrations"]
[null,null,"Description",null,null,null,null,"Fee","# Units","Total"]
[null,1,null,null,null,null,null,0,0,{"$f":"H94*I94","v":0}]
[null,2,null,null,null,null,null,0,0,{"$f":"H95*I95","v":0}]
[null,null,"Subtotal - Registrations",null,null,null,null,null,null,{"$f":"SUM(J94:J95)","v":0}]
[]
[]
[null,null,"Budget Summary"]
[]
[null,null,"Direct Costs"]
[null,"A","Labor",null,null,null,null,null,null,{"$f":"J17","v":0}]
[null,"B1","Equipment",null,null,null,null,null,null,{"$f":"J36","v":0}]
[null,"B2&B3","Supplies, Services & Other direct costs",null,null,null,null,null,null,{"$f":"J53+J65","v":0}]
[null,"C","Travel",null,null,null,null,null,null,{"$f":"J96+J91+J85+J77","v":0}]
[]
[]
[null,null,"Total Direct Costs",null,null,null,null,null,{"$f":"SUM(J102:J107)","v":0}]
[null,null,"Modified Total Direct Costs",null,null,null,null,null,{"$f":"I108-J103","v":0}]
[null,null,"Indirect Rate %",null,null,null,null,0,null,{"$f":"H110","v":0}]
[null,null,"Indirect Costs",null,null,null,null,null,{"$f":"I109*J110","v":0}]
[]
[]
[]
[null,"Subtotal - Direct Costs",null,null,null,null,null,null,{"$f":"J102+J103+J104+J105","v":0}]
[]
[null,"Subtotal - Indirect Costs",null,null,null,null,null,null,{"$f":"I111","v":0}]
[]
[null,"Total Award Cost",null,null,null,null,null,null,{"$f":"I115+I117","v":0}]

{"sheet":"D. Budget Narrative_A#3","index":13,"n_rows":306,"n_cols":12,"rows_kept":306,"cut":false,"hidden":false,"merged":[[294,3,294,9],[295,4,295,9],[296,4,296,9],[304,3,304,9],[305,3,308,9],[284,3,284,9],[285,4,285,9],[288,4,288,9],[289,3,289,9],[290,4,290,9],[293,4,293,9],[276,3,276,9],[277,4,277,9],[279,4,279,9],[280,3,280,9],[281,4,281,9],[283,4,283,9],[268,3,268,9],[269,4,269,9],[271,4,271,9],[272,3,272,9],[273,4,273,9],[275,4,275,9],[254,3,254,9],[255,4,255,9],[257,4,257,9],[260,3,260,9],[261,4,261,9],[263,4,263,9],[244,3,244,9],[245,4,245,9],[246,4,246,9],[248,3,248,9],[249,4,249,9],[251,4,251,9],[234,3,234,9],[235,4,235,9],[238,4,238,9],[239,3,239,9],[240,4,240,9],[243,4,243,9],[212,4,212,9],[213,4,213,9],[221,4,221,9],[225,4,225,9],[229,4,229,9],[233,4,233,9],[219,4,219,9],[223,4,223,9],[227,4,227,9],[202,4,202,9],[205,4,205,9],[206,3,206,9],[207,4,207,9],[210,4,210,9],[211,3,211,9],[194,4,194,9],[196,4,196,9],[197,3,197,9],[198,4,198,9],[200,4,200,9],[201,3,201,9],[186,4,186,9],[188,4,188,9],[189,3,189,9],[190,4,190,9],[192,4,192,9],[193,3,193,9],[172,4,172,9],[175,4,175,9],[176,3,176,9],[177,4,177,9],[178,4,178,9],[185,3,185,9],[163,4,163,9],[165,4,165,9],[166,3,166,9],[167,4,167,9],[170,4,170,9],[171,3,171,9],[155,4,155,9],[157,4,157,9],[158,3,158,9],[159,4,159,9],[161,4,161,9],[162,3,162,9],[142,3,142,9],[143,4,143,9],[150,3,150,9],[151,4,151,9],[153,4,153,9],[154,3,154,9],[128,3,128,9],[129,4,129,9],[132,3,132,9],[133,4,133,9],[137,3,137,9],[138,4,138,9],[116,3,116,9],[117,4,117,9],[120,3,120,9],[121,4,121,9],[124,3,124,9],[125,4,125,9],[98,4,98,9],[102,3,102,9],[103,4,103,9],[107,3,107,9],[108,4,108,9],[110,4,110,9],[86,4,86,9],[89,3,89,9],[90,4,90,9],[93,3,93,9],[94,4,94,9],[97,3,97,9],[73,3,73,9],[74,4,74,9],[75,4,75,9],[81,3,81,9],[82,4,82,9],[85,3,85,9],[63,3,63,9],[64,4,64,9],[67,4,67,9],[68,3,68,9],[69,4,69,9],[72,4,72,9],[55,3,55,9],[56,4,56,9],[58,4,58,9],[59,3,59,9],[60,4,60,9],[62,4,62,9],[47,3,47,9],[48,4,48,9],[50,4,50,9],[51,3,51,9],[52,4,52,9],[54,4,54,9],[31,3,31,9],[32,4,32,9],[33,4,33,9],[36,3,36,9],[37,4,37,9],[38,4,38,9],[26,3,26,9],[27,4,27,9],[28,4,28,9],[11,3,11,9],[12,4,12,9],[13,4,13,9],[16,3,16,9],[17,4,17,9],[18,4,18,9],[0,4,0,6],[1,1,1,10],[2,3,2,5],[6,3,6,9],[7,4,7,9],[8,4,8,9],[21,3,21,9],[22,4,22,9],[23,4,23,9]]}
[null,null,null,null,"ATTACHMENT D"]
[null,"Budget Narrative"]
[]
[]
[null,null,null,"A. Project Personnel Labor "]
[]
[null,null,1,"[insert name]"]
[null,null,null,"Role in Project","[enter here]"]
[null,null,null,"E-mail","[enter here]"]
[null,null,null,"Phone number","[enter here]"]
[null,null,null,"Justification","[enter here]"]
[null,null,2,"[insert name]"]
[null,null,null,"Role in Project","[enter here]"]
[null,null,null,"E-mail","[enter here]"]
[null,null,null,"Phone number","[enter here]"]
[null,null,null,"Justification","[enter here]"]
[null,null,3,"[insert name]"]
[null,null,null,"Role in Project","[enter here]"]
[null,null,null,"E-mail","[enter here]"]
[null,null,null,"Phone number","[enter here]"]
[null,null,null,"Justification","[enter here]",null,null,null,null,null,null,"Please, unhide rows between 22-35 if more space for Labor is needed."]
[null,null,4,"[insert name]"]
[null,null,null,"Role in Project","[enter here]"]
[null,null,null,"E-mail","[enter here]"]
[null,null,null,"Phone number","[enter here]"]
[null,null,null,"Justification","[enter here]"]
[null,null,5,"[insert name]"]
[null,null,null,"Role in Project","[enter here]"]
[null,null,null,"E-mail","[enter here]"]
[null,null,null,"Phone number","[enter here]"]
[null,null,null,"Justification","[enter here]"]
[null,null,6,"[insert name]"]
[null,null,null,"Role in Project","[enter here]"]
[null,null,null,"E-mail","[enter here]"]
[null,null,null,"Phone number","[enter here]"]
[null,null,null,"Justification","[enter here]"]
[null,null,7,"[insert name]"]
[null,null,null,"Role in Project","[enter here]"]
[null,null,null,"E-mail","[enter here]"]
[null,null,null,"Phone number","[enter here]"]
[null,null,null,"Justification","[enter here]"]
[]
[]
[]
[]
[null,null,null,"B. Equipment, Supplies, Services & Other direct costs"]
[null,null,null,"Equipment"]
[null,null,1,"[insert name of the item]"]
[null,null,null,"Purpose ","[enter here]"]
[]
[null,null,null,"Price References","[enter here]"]
[null,null,2,"[insert name of the item]"]
[null,null,null,"Purpose ","[enter here]"]
[]
[null,null,null,"Price References","[enter here]"]
[null,null,3,"[insert name of the item]"]
[null,null,null,"Purpose ","[enter here]"]
[]
[null,null,null,"Price References","[enter here]",null,null,null,null,null,null,"Please, unhide rows between 52-70 if more space for Equipment is needed."]
[null,null,4,"[insert name of the item]"]
[null,null,null,"Purpose ","[enter here]"]
[]
[null,null,null,"Price References","[enter here]"]
[null,null,5,"[insert name of the item]"]
[null,null,null,"Purpose ","[enter here]"]
[]
[]
[null,null,null,"Price References","[enter here]"]
[null,null,6,"[insert name of the item]"]
[null,null,null,"Purpose ","[enter here]"]
[]
[]
[null,null,null,"Price References","[enter here]"]
[null,null,7,"[insert name of the item]"]
[null,null,null,"Purpose ","[enter here]"]
[null,null,null,"Price References","[enter here]"]
[]
[]
[]
[]
[null,null,null,"Supplies"]
[null,null,1,"[insert name of the item]"]
[null,null,null,"Purpose ","[enter here]"]
[]
[]
[null,null,2,"[insert name of the item]"]
[null,null,null,"Purpose ","[enter here]"]
[]
[]
[null,null,3,"[insert name of the item]"]
[null,null,null,"Purpose ","[enter here]"]
[]
[null,null,null,null,null,null,null,null,null,null,null,"Please, unhide rows between 90-105 if more space for Supplies is needed."]
[null,null,4,"[insert name of the item]"]
[null,null,null,"Purpose ","[enter here]"]
[]
[]
[null,null,5,"[insert name of the item]"]
[null,null,null,"Purpose ","[enter here]"]
[]
[]
[]
[null,null,6,"[insert name of the item]"]
[null,null,null,"Purpose ","[enter here]"]
[]
[]
[]
[null,null,7,"[insert name of the item]"]
[null,null,null,"Purpose ","[enter here]"]
[]
[null,null,null,"Price References","[enter here]"]
[]
[]
[]
[]
[null,null,null,"Services"]
[null,null,1,"[insert name of the item]"]
[null,null,null,"Purpose ","[enter here]"]
[]
[]
[null,null,2,"[insert name of the item]"]
[null,null,null,"Purpose ","[enter here]"]
[]
[]
[null,null,3,"[insert name of the item]"]
[null,null,null,"Purpose ","[enter here]"]
[]
[null,null,null,null,null,null,null,null,null,null,null,"Please, unhide rows between 125-139 if more space for Services is needed."]
[null,null,4,"[insert name of the item]"]
[null,null,null,"Purpose ","[enter here]"]
[]
[]
[null,null,5,"[insert name of the item]"]
[null,null,null,"Purpose ","[enter here]"]
[]
[]
[]
[null,null,6,"[insert name of the item]"]
[null,null,null,"Purpose ","[enter here]"]
[]
[]
[]
[null,null,7,"[insert name of the item]"]
[null,null,null,"Purpose ","[enter here]"]
[]
[]
[]
[]
[]
[null,null,null,"Other direct costs"]
[null,null,1,"[insert name of the item]"]
[null,null,null,"Purpose ","[enter here]"]
[]
[null,null,null,"Price References","[enter here]"]
[null,null,2,"[insert name of the item]"]
[null,null,null,"Purpose ","[enter here]"]
[]
[null,null,null,"Price References","[enter here]"]
[null,null,3,"[insert name of the item]"]
[null,null,null,"Purpose ","[enter here]"]
[]
[null,null,null,"Price References","[enter here]"]
[null,null,4,"[insert name of the item]"]
[null,null,null,"Purpose ","[enter here]"]
[]
[null,null,null,"Price References","[enter here]"]
[null,null,5,"[insert name of the item]"]
[null,null,null,"Purpose ","[enter here]"]
[]
[]
[null,null,null,"Price References","[enter here]"]
[null,null,6,"[insert name of the item]"]
[null,null,null,"Purpose ","[enter here]"]
[]
[]
[null,null,null,"Price References","[enter here]"]
[null,null,7,"[insert name of the item]"]
[null,null,null,"Purpose ","[enter here]"]
[null,null,null,"Price References","[enter here]"]
[null,null,null,null,null,null,null,null,null,null,null,"Please, unhide rows between 159-173 if more space for Other Direct Costs is needed."]
[]
[]
[]
[null,null,null,"C. Travel"]
[]
[null,null,1,"[Origin City, Country - Destination City, Country]"]
[null,null,null,"Purpose ","[enter here]"]
[]
[null,null,null,"Price References","[enter here]"]
[null,null,2,"[Origin City, Country - Destination City, Country]"]
[null,null,null,"Purpose ","[enter here]"]
[]
[null,null,null,"Price References","[enter here]"]
[null,null,3,"[Origin City, Country - Destination City, Country]"]
[null,null,null,"Purpose ","[enter here]"]
[]
[null,null,null,"Price References","[enter here]"]
[null,null,4,"[Origin City, Country - Destination City, Country]"]
[null,null,null,"Purpose ","[enter here]"]
[]
[null,null,null,"Price References","[enter here]"]
[null,null,5,"[Origin City, Country - Destination City, Country]"]
[null,null,null,"Purpose ","[enter here]"]
[]
[]
[null,null,null,"Price References","[enter here]"]
[null,null,6,"[Origin City, Country - Destination City, Country]"]
[null,null,null,"Purpose ","[enter here]"]
[]
[]
[null,null,null,"Price References","[enter here]"]
[null,null,7,"[Origin City, Country - Destination City, Country]"]
[null,null,null,"Purpose ","[enter here]"]
[null,null,null,"Price References","[enter here]"]
[null,null,null,null,null,null,null,null,null,null,null,"Please, unhide rows between 190-208 if more space for Travel is needed."]
[]
[]
[null,null,null,"Per Diem Lodging rates"]
[null,null,1,"[insert name of destination city]"]
[null,null,null,"Lodging option ","[enter here]"]
[]
[null,null,null,"Price References","[enter here]"]
[null,null,2,"[insert name of destination city]"]
[null,null,null,"Lodging option ","[enter here]"]
[]
[null,null,null,"Price References","[enter here]"]
[null,null,3,"[insert name of destination city]"]
[null,null,null,"Lodging option ","[enter here]"]
[]
[null,null,null,"Price References","[enter here]"]
[null,null,4,"[insert name of destination city]"]
[null,null,null,"Lodging option ","[enter here]"]
[]
[null,null,null,"Price References","[enter here]"]
[null,null,5,"[insert name of destination city]"]
[null,null,null,"Lodging option ","[enter here]"]
[]
[]
[null,null,null,"Price References","[enter here]"]
[null,null,6,"[insert name of destination city]"]
[null,null,null,"Lodging option ","[enter here]"]
[]
[]
[null,null,null,"Price References","[enter here]"]
[null,null,7,"[insert name of the item]"]
[null,null,null,"Purpose ","[enter here]"]
[null,null,null,"Price References","[enter here]"]
[]
[null,null,5,"[insert name of the item]"]
[null,null,null,"Purpose ","[enter here]"]
[]
[null,null,null,"Price References","[enter here]"]
[]
[]
[null,null,6,"[insert name of the item]"]
[null,null,null,"Purpose ","[enter here]"]
[]
[null,null,null,"Price References","[enter here]"]
[]
[]
[null,null,7,"[insert name of the item]"]
[null,null,null,"Purpose ","[enter here]"]
[]
[null,null,null,"Price References","[enter here]"]
[null,null,null,null,null,null,null,null,null,null,null,"Please, unhide rows between 223-258 if more space for Miscellaneous is needed."]
[]
[]
[null,null,null,"Registrations"]
[null,null,1,"[insert name of the item]"]
[null,null,null,"Purpose ","[enter here]"]
[]
[null,null,null,"Price References","[enter here]"]
[null,null,2,"[insert name of the item]"]
[null,null,null,"Purpose ","[enter here]"]
[]
[null,null,null,"Price References","[enter here]"]
[null,null,3,"[insert name of the item]"]
[null,null,null,"Purpose ","[enter here]"]
[]
[null,null,null,"Price References","[enter here]"]
[null,null,4,"[insert name of the item]"]
[null,null,null,"Purpose ","[enter here]"]
[]
[null,null,null,"Price References","[enter here]"]
[null,null,5,"[insert name of the item]"]
[null,null,null,"Purpose ","[enter here]"]
[]
[]
[null,null,null,"Price References","[enter here]"]
[null,null,6,"[insert name of the item]"]
[null,null,null,"Purpose ","[enter here]"]
[]
[]
[null,null,null,"Price References","[enter here]"]
[null,null,7,"[insert name of the item]"]
[null,null,null,"Purpose ","[enter here]"]
[null,null,null,"Price References","[enter here]"]
[null,null,null,null,null,null,null,null,null,null,null,"Please, unhide rows between 273-291 if more space for Registrations is needed."]
[]
[]
[]
[]
[null,null,null,"Indirect rate"]
[]
[null,null,null,"Please indicate document that specifies applicable indirect rate"]
[null,null,null," [enter here]"]

{"sheet":"Grant Agreement_A#1","index":14,"n_rows":74,"n_cols":7,"rows_kept":74,"cut":false,"hidden":true,"merged":[[52,1,52,2],[51,3,51,7],[49,1,49,2],[45,1,47,2],[48,3,48,7],[50,1,50,2],[49,3,49,7],[51,1,51,2],[50,3,50,7],[48,1,48,2],[43,1,44,2],[42,1,42,2],[42,3,42,7],[34,1,34,2],[34,3,34,7],[43,4,43,7],[44,4,44,7],[9,1,9,2],[40,1,40,2],[41,1,41,2],[41,3,41,7],[31,1,31,2],[31,3,31,7],[32,1,32,2],[32,3,32,7],[33,1,33,2],[33,3,33,7],[28,1,28,2],[29,1,29,2],[29,3,29,7],[30,1,30,2],[30,3,30,7],[24,1,24,2],[24,3,24,7],[25,1,25,2],[25,3,25,7],[26,1,26,2],[26,3,26,7],[20,3,20,7],[21,3,21,7],[22,1,22,2],[22,3,22,7],[23,1,23,2],[23,3,23,7],[17,1,17,2],[18,1,18,2],[19,1,19,2],[10,3,10,7],[11,3,11,7],[12,3,12,7],[13,3,13,7],[14,3,14,7],[16,3,16,7],[17,3,17,7],[18,3,18,7],[5,1,5,2],[5,3,5,7],[7,1,7,2],[7,3,7,7],[53,1,53,7],[19,3,19,7],[20,1,20,2],[21,1,21,2],[10,1,10,2],[11,1,11,2],[12,1,12,2],[13,1,13,2],[14,1,14,2],[15,1,15,2],[15,3,15,7],[16,1,16,2],[63,1,63,7],[67,1,67,2],[66,3,66,4],[66,5,66,7],[67,3,67,4],[67,5,67,7],[72,3,72,4],[72,5,72,7],[73,1,73,2],[73,3,73,4],[73,5,73,7]]}
[null,null,null,null,null,"GRANT AGREEMENT"]
[]
[]
[]
[]
[null,"GRANT NUMBER"]
[]
[null,"Project Title",null,{"$f":"'A. General Project Information'!S4","v":"[enter here, not more than 25 words]"}]
[]
[null,"GRANTEE INFORMATION"]
[null,"Grantee Organization",null,{"$f":"'IDF_Applicant#1'!R8","v":0}]
[null,"Address Line 1",null,{"$f":"'IDF_Applicant#1'!R11","v":0}]
[null,"Address Line 2",null,{"$f":"'IDF_Applicant#1'!R12","v":0}]
[null,"City",null,{"$f":"'IDF_Applicant#1'!R13","v":0}]
[null,"Grantee Country",null,{"$f":"'IDF_Applicant#1'!R16","v":0}]
[null,"Unique Entity Identifier ",null,{"$f":"'IDF_Applicant#1'!R34","v":0}]
[null,"Local registration number",null,{"$f":"'IDF_Applicant#1'!R35","v":0}]
[null,"Grantee Phone",null,{"$f":"'IDF_Applicant#1'!R19","v":"[enter here]"}]
[null,"Grantee E-mail",null,{"$f":"'IDF_Applicant#1'!R22","v":0}]
[null,"Principal Investigator (PI) Name",null,{"$f":"'IDF_Applicant#1'!R38","v":0}]
[null,"Principal Investigator Position",null,{"$f":"'IDF_Applicant#1'!R39","v":0}]
[null,"Principal Investigator E-mail",null,{"$f":"'IDF_Applicant#1'!R41","v":0}]
[null,"Principal Investigator \nPhone Number",null,{"$f":"'IDF_Applicant#1'!R40","v":0}]
[null,"Authorized Signatory Name",null,{"$f":"'IDF_Applicant#1'!R44","v":0}]
[null,"Authorized Signatory Position",null,{"$f":"'IDF_Applicant#1'!R45","v":0}]
[null,"Authorized Signatory Email",null,{"$f":"'IDF_Applicant#1'!R46","v":0}]
[null,"Authorized Signatory Phone Number",null,{"$f":"'IDF_Applicant#1'!R47","v":0}]
[]
[null,"CRDF GLOBAL INFORMATION"]
[null,"Address",null,"1776 Wilson Boulevard, Third Floor, Arlington, VA 22209"]
[null,"Unique Entity Identifier ",null,"MR7ZQXJSQKA5"]
[null,"Grant Officer Name"]
[null,"Grant Officer Title"]
[null,"Grant Officer Phone"]
[null,"Grant Officer E-Mail"]
[]
[]
[]
[]
[]
[null,"GRANT INFORMATION"]
[null,"Project Duration",null,{"$f":"'A. General Project Information'!S6","v":"[enter here number of months]"}]
[null,"Grant Ceiling",null,{"$f":"'C. Budget_A#1'!W119","v":0}]
[null,"Agreement Type",null,null,"Cost-reimbursable"]
[null,null,null,null,"Fixed Amount Award"]
[null,"Payment Modality",null,null,"Advance"]
[null,null,null,null,"Arrears"]
[null,null,null,null,"As per payment schedule"]
[null,"Payment Terms",null,"NET 30"]
[null,"Competition"]
[null,"Prime Agreement Number"]
[null,"Authorization"]
[null,"Special Terms and Conditions",null,null,"Yes",null,"No"]
[null,"Funding for this Grant has been provided by the National Institutes of Health via National Science Foundation Cooperative Agreement #"]
[null,"ATTACHMENTS:"]
[null,null,"A. Scope of Work",null,"G. Bioethics Compliance (DNA)"]
[null,null,"B. Workplan",null,"H. Bioethics Compliance"]
[null,null,"C. Budget",null,"Select"]
[null,null,"D. Budget Narrative",null,"K. Other Terms and Conditions"]
[null,null,"E. Payment and Reporting Schedule"]
[null,null,"F. Standard Terms & Conditionds"]
[]
[null,"EXECUTION"]
[null,"This Agreement is entered into by CRDF Global and [organization_name] (hereafter “Grantee”) for the purposes set forth in Attachment B: Scope of Work (SOW). This Grant Agreement (with all attachments, hereafter the \"Agreement\"), constitutes the complete understanding between CRDF Global and the Grantee and supplants all representations of the Parties, whether oral or written, made prior to the execution of this Agreement. No subsequent modification, extension, or amendment to any part of this Agreement will be valid unless in writing and signed both by CRDF Global and the Grantee. By signature of their authorized representatives below, CRDF Global and Grantee (hereafter the “Parties”) make and enter into this Agreement as of the date of CRDF Global execution."]
[null,"For",{"$f":"'IDF_Applicant#1'!R8","v":0}]
[]
[null,null,null,{"$f":"'IDF_Applicant#1'!R44","v":0},null,{"$f":"'IDF_Applicant#1'!R45","v":0}]
[null,"Sigature",null,"Name",null,"Title"]
[]
[]
[null,"For","CRDF Global"]
[]
[null,null,null,"Defrim Dedey",null,"Director of Grants"]
[null,"Sigature",null,"Name",null,"Title"]

{"sheet":"Grant Agreement_A#2","index":15,"n_rows":74,"n_cols":7,"rows_kept":74,"cut":false,"hidden":true,"merged":[[72,3,72,4],[72,5,72,7],[73,1,73,2],[73,3,73,4],[73,5,73,7],[67,1,67,2],[67,3,67,4],[67,5,67,7],[49,1,49,2],[49,3,49,7],[50,1,50,2],[50,3,50,7],[51,1,51,2],[51,3,51,7],[52,1,52,2],[53,1,53,7],[63,1,63,7],[66,3,66,4],[66,5,66,7],[43,1,44,2],[43,4,43,7],[44,4,44,7],[45,1,47,2],[48,1,48,2],[48,3,48,7],[42,1,42,2],[42,3,42,7],[31,1,31,2],[31,3,31,7],[32,1,32,2],[32,3,32,7],[33,1,33,2],[33,3,33,7],[34,1,34,2],[34,3,34,7],[40,1,40,2],[41,1,41,2],[41,3,41,7],[30,1,30,2],[30,3,30,7],[23,1,23,2],[23,3,23,7],[24,1,24,2],[24,3,24,7],[25,1,25,2],[25,3,25,7],[26,1,26,2],[26,3,26,7],[28,1,28,2],[29,1,29,2],[29,3,29,7],[20,1,20,2],[20,3,20,7],[21,1,21,2],[21,3,21,7],[22,1,22,2],[22,3,22,7],[17,1,17,2],[17,3,17,7],[18,1,18,2],[18,3,18,7],[19,1,19,2],[19,3,19,7],[14,1,14,2],[14,3,14,7],[15,1,15,2],[15,3,15,7],[16,1,16,2],[16,3,16,7],[11,1,11,2],[11,3,11,7],[12,1,12,2],[12,3,12,7],[13,1,13,2],[13,3,13,7],[10,1,10,2],[10,3,10,7],[5,1,5,2],[5,3,5,7],[7,1,7,2],[7,3,7,7],[9,1,9,2]]}
[null,null,null,null,null,"GRANT AGREEMENT"]
[]
[]
[]
[]
[null,"GRANT NUMBER"]
[]
[null,"Project Title",null,{"$f":"'A. General Project Information'!S4","v":"[enter here, not more than 25 words]"}]
[]
[null,"GRANTEE INFORMATION"]
[null,"Grantee Organization",null,{"$f":"'IDF_Applicant#2'!R8","v":0}]
[null,"Address Line 1",null,{"$f":"'IDF_Applicant#2'!R11","v":0}]
[null,"Address Line 2",null,{"$f":"'IDF_Applicant#2'!R12","v":0}]
[null,"City",null,{"$f":"'IDF_Applicant#2'!R13","v":0}]
[null,"Grantee Country",null,{"$f":"'IDF_Applicant#2'!R16","v":0}]
[null,"Unique Entity Identifier ",null,{"$f":"'IDF_Applicant#2'!R34","v":0}]
[null,"Local registration number",null,{"$f":"'IDF_Applicant#2'!R35","v":0}]
[null,"Grantee Phone",null,{"$f":"'IDF_Applicant#2'!R19","v":"[enter here]"}]
[null,"Grantee E-mail",null,{"$f":"'IDF_Applicant#2'!R22","v":0}]
[null,"Principal Investigator (PI) Name",null,{"$f":"'IDF_Applicant#2'!R38","v":0}]
[null,"Principal Investigator Position",null,{"$f":"'IDF_Applicant#2'!R39","v":0}]
[null,"Principal Investigator E-mail",null,{"$f":"'IDF_Applicant#2'!R41","v":0}]
[null,"Principal Investigator \nPhone Number",null,{"$f":"'IDF_Applicant#2'!R40","v":0}]
[null,"Authorized Signatory Name",null,{"$f":"'IDF_Applicant#2'!R44","v":0}]
[null,"Authorized Signatory Position",null,{"$f":"'IDF_Applicant#2'!R45","v":0}]
[null,"Authorized Signatory Email",null,{"$f":"'IDF_Applicant#2'!R46","v":0}]
[null,"Authorized Signatory Phone Number",null,{"$f":"'IDF_Applicant#2'!R47","v":0}]
[]
[null,"CRDF GLOBAL INFORMATION"]
[null,"Address",null,"1776 Wilson Boulevard, Third Floor, Arlington, VA 22209"]
[null,"Unique Entity Identifier ",null,"MR7ZQXJSQKA5"]
[null,"Grant Officer Name"]
[null,"Grant Officer Title"]
[null,"Grant Officer Phone"]
[null,"Grant Officer E-Mail"]
[]
[]
[]
[]
[]
[null,"GRANT INFORMATION"]
[null,"Project Duration",null,{"$f":"'A. General Project Information'!S6","v":"[enter here number of months]"}]
[null,"Grant Ceiling",null,{"$f":"#REF!","v":{"$error":"#REF!"}}]
[null,"Agreement Type",null,null,"Cost-reimbursable"]
[null,null,null,null,"Fixed Amount Award"]
[null,"Payment Modality",null,null,"Advance"]
[null,null,null,null,"Arrears"]
[null,null,null,null,"As per payment schedule"]
[null,"Payment Terms",null,"NET 30"]
[null,"Competition"]
[null,"Prime Agreement Number"]
[null,"Authorization"]
[null,"Special Terms and Conditions",null,null,"Yes",null,"No"]
[null,"Funding for this Grant has been provided by the National Institutes of Health via National Science Foundation Cooperative Agreement #"]
[null,"ATTACHMENTS:"]
[null,null,"A. Scope of Work",null,"Select"]
[null,null,"B. Workplan",null,"Select"]
[null,null,"C. Budget",null,"Select"]
[null,null,"D. Budget Narrative",null,"Select"]
[null,null,"E. Payment and Reporting Schedule"]
[null,null,"F. Standard Terms & Conditionds"]
[]
[null,"EXECUTION"]
[null,"This Agreement is entered into by CRDF Global and [organization_name] (hereafter “Grantee”) for the purposes set forth in Attachment B: Scope of Work (SOW). This Grant Agreement (with all attachments, hereafter the \"Agreement\"), constitutes the complete understanding between CRDF Global and the Grantee and supplants all representations of the Parties, whether oral or written, made prior to the execution of this Agreement. No subsequent modification, extension, or amendment to any part of this Agreement will be valid unless in writing and signed both by CRDF Global and the Grantee. By signature of their authorized representatives below, CRDF Global and Grantee (hereafter the “Parties”) make and enter into this Agreement as of the date of CRDF Global execution."]
[null,"For",{"$f":"'IDF_Applicant#2'!R8","v":0}]
[]
[null,null,null,{"$f":"'IDF_Applicant#2'!R44","v":0},null,{"$f":"'IDF_Applicant#2'!R45","v":0}]
[null,"Sigature",null,"Name",null,"Title"]
[]
[]
[null,"For","CRDF Global"]
[]
[null,null,null,"Defrim Dedey",null,"Director of Grants"]
[null,"Sigature",null,"Name",null,"Title"]

{"sheet":"Grant Agreement_A#3","index":16,"n_rows":74,"n_cols":7,"rows_kept":74,"cut":false,"hidden":true,"merged":[[72,3,72,4],[72,5,72,7],[73,1,73,2],[73,3,73,4],[73,5,73,7],[67,1,67,2],[67,3,67,4],[67,5,67,7],[49,1,49,2],[49,3,49,7],[50,1,50,2],[50,3,50,7],[51,1,51,2],[51,3,51,7],[52,1,52,2],[53,1,53,7],[63,1,63,7],[66,3,66,4],[66,5,66,7],[43,1,44,2],[43,4,43,7],[44,4,44,7],[45,1,47,2],[48,1,48,2],[48,3,48,7],[42,1,42,2],[42,3,42,7],[31,1,31,2],[31,3,31,7],[32,1,32,2],[32,3,32,7],[33,1,33,2],[33,3,33,7],[34,1,34,2],[34,3,34,7],[40,1,40,2],[41,1,41,2],[41,3,41,7],[30,1,30,2],[30,3,30,7],[23,1,23,2],[23,3,23,7],[24,1,24,2],[24,3,24,7],[25,1,25,2],[25,3,25,7],[26,1,26,2],[26,3,26,7],[28,1,28,2],[29,1,29,2],[29,3,29,7],[20,1,20,2],[20,3,20,7],[21,1,21,2],[21,3,21,7],[22,1,22,2],[22,3,22,7],[17,1,17,2],[17,3,17,7],[18,1,18,2],[18,3,18,7],[19,1,19,2],[19,3,19,7],[14,1,14,2],[14,3,14,7],[15,1,15,2],[15,3,15,7],[16,1,16,2],[16,3,16,7],[11,1,11,2],[11,3,11,7],[12,1,12,2],[12,3,12,7],[13,1,13,2],[13,3,13,7],[10,1,10,2],[10,3,10,7],[5,1,5,2],[5,3,5,7],[7,1,7,2],[7,3,7,7],[9,1,9,2]]}
[null,null,null,null,null,"GRANT AGREEMENT"]
[]
[]
[]
[]
[null,"GRANT NUMBER"]
[]
[null,"Project Title",null,{"$f":"'A. General Project Information'!S4","v":"[enter here, not more than 25 words]"}]
[]
[null,"GRANTEE INFORMATION"]
[null,"Grantee Organization",null,{"$f":"'IDF_Applicant#3'!R8","v":0}]
[null,"Address Line 1",null,{"$f":"'IDF_Applicant#3'!R11","v":0}]
[null,"Address Line 2",null,{"$f":"'IDF_Applicant#3'!R12","v":0}]
[null,"City",null,{"$f":"'IDF_Applicant#3'!R13","v":0}]
[null,"Grantee Country",null,{"$f":"'IDF_Applicant#3'!R16","v":0}]
[null,"Unique Entity Identifier ",null,{"$f":"'IDF_Applicant#3'!R34","v":0}]
[null,"Local registration number",null,{"$f":"'IDF_Applicant#3'!R35","v":0}]
[null,"Grantee Phone",null,{"$f":"'IDF_Applicant#3'!R19","v":"[enter here]"}]
[null,"Grantee E-mail",null,{"$f":"'IDF_Applicant#3'!R22","v":0}]
[null,"Principal Investigator (PI) Name",null,{"$f":"'IDF_Applicant#3'!R38","v":0}]
[null,"Principal Investigator Position",null,{"$f":"'IDF_Applicant#3'!R39","v":0}]
[null,"Principal Investigator E-mail",null,{"$f":"'IDF_Applicant#3'!R41","v":0}]
[null,"Principal Investigator \nPhone Number",null,{"$f":"'IDF_Applicant#3'!R40","v":0}]
[null,"Authorized Signatory Name",null,{"$f":"'IDF_Applicant#3'!R44","v":0}]
[null,"Authorized Signatory Position",null,{"$f":"'IDF_Applicant#3'!R45","v":0}]
[null,"Authorized Signatory Email",null,{"$f":"'IDF_Applicant#3'!R46","v":0}]
[null,"Authorized Signatory Phone Number",null,{"$f":"'IDF_Applicant#3'!R47","v":0}]
[]
[null,"CRDF GLOBAL INFORMATION"]
[null,"Address",null,"1776 Wilson Boulevard, Third Floor, Arlington, VA 22209"]
[null,"Unique Entity Identifier ",null,"MR7ZQXJSQKA5"]
[null,"Grant Officer Name"]
[null,"Grant Officer Title"]
[null,"Grant Officer Phone"]
[null,"Grant Officer E-Mail"]
[]
[]
[]
[]
[]
[null,"GRANT INFORMATION"]
[null,"Project Duration",null,{"$f":"'A. General Project Information'!S6","v":"[enter here number of months]"}]
[null,"Grant Ceiling",null,{"$f":"#REF!","v":{"$error":"#REF!"}}]
[null,"Agreement Type",null,null,"Cost-reimbursable"]
[null,null,null,null,"Fixed Amount Award"]
[null,"Payment Modality",null,null,"Advance"]
[null,null,null,null,"Arrears"]
[null,null,null,null,"As per payment schedule"]
[null,"Payment Terms",null,"NET 30"]
[null,"Competition"]
[null,"Prime Agreement Number"]
[null,"Authorization"]
[null,"Special Terms and Conditions",null,null,"Yes",null,"No"]
[null,"Funding for this Grant has been provided by the National Institutes of Health via National Science Foundation Cooperative Agreement #"]
[null,"ATTACHMENTS:"]
[null,null,"A. Scope of Work",null,"Select"]
[null,null,"B. Workplan",null,"Select"]
[null,null,"C. Budget",null,"Select"]
[null,null,"D. Budget Narrative",null,"Select"]
[null,null,"E. Payment and Reporting Schedule"]
[null,null,"F. Standard Terms & Conditionds"]
[]
[null,"EXECUTION"]
[null,"This Agreement is entered into by CRDF Global and [organization_name] (hereafter “Grantee”) for the purposes set forth in Attachment B: Scope of Work (SOW). This Grant Agreement (with all attachments, hereafter the \"Agreement\"), constitutes the complete understanding between CRDF Global and the Grantee and supplants all representations of the Parties, whether oral or written, made prior to the execution of this Agreement. No subsequent modification, extension, or amendment to any part of this Agreement will be valid unless in writing and signed both by CRDF Global and the Grantee. By signature of their authorized representatives below, CRDF Global and Grantee (hereafter the “Parties”) make and enter into this Agreement as of the date of CRDF Global execution."]
[null,"For",{"$f":"'IDF_Applicant#3'!R8","v":0}]
[]
[null,null,null,{"$f":"'IDF_Applicant#3'!R44","v":0},null,{"$f":"'IDF_Applicant#3'!R45","v":0}]
[null,"Sigature",null,"Name",null,"Title"]
[]
[]
[null,"For","CRDF Global"]
[]
[null,null,null,"Defrim Dedey",null,"Director of Grants"]
[null,"Sigature",null,"Name",null,"Title"]

{"sheet":"F. Standard TCs","index":17,"n_rows":123,"n_cols":19,"rows_kept":123,"cut":false,"hidden":true,"merged":[[82,0,82,8],[83,0,83,8],[84,0,84,8],[85,0,85,8],[75,0,75,8],[77,0,77,8],[78,0,78,8],[79,0,79,8],[80,0,80,8],[81,0,81,8],[74,0,74,8],[57,0,57,8],[59,0,59,8],[60,0,60,8],[62,0,62,8],[63,0,63,8],[65,0,65,8],[66,0,66,8],[68,0,68,8],[69,0,69,8],[71,0,71,8],[72,0,72,8],[56,0,56,8],[40,0,40,8],[41,0,41,8],[42,0,42,8],[44,0,44,8],[45,0,45,8],[47,0,47,8],[48,0,48,8],[50,0,50,8],[51,0,51,8],[53,0,53,8],[54,0,54,8],[39,0,39,8],[25,0,25,8],[26,0,26,8],[28,0,28,8],[29,0,29,8],[31,0,31,8],[32,0,32,8],[34,0,34,8],[35,0,35,8],[36,0,36,8],[37,0,37,8],[38,0,38,8],[23,0,23,8],[11,0,11,8],[12,0,12,8],[13,0,13,8],[14,0,14,8],[15,0,15,8],[16,0,16,8],[17,0,17,8],[18,0,18,8],[19,0,19,8],[20,0,20,8],[22,0,22,8],[3,9,3,17],[4,0,4,8],[10,0,10,8],[0,3,0,5],[1,0,1,8],[2,0,2,8],[3,0,3,8],[5,0,5,8],[6,0,6,8],[7,0,7,8],[8,0,8,8],[9,0,9,8]]}
[null,null,null,"ATTACHMENT F"]
["STANDARD TERMS AND CONDITIONS"]
["1. Statutory Requirements: "]
["Grantee agrees to comply with all applicable requirements of 2 CFR 200 (Prime Grants or Cooperative Agreements)  "]
["https://www.ecfr.gov/current/title-2/subtitle-A/chapter-II/part-200?toc=1 "]
[]
["2. Federal Agency Requirements: "]
["Grantee agrees that all activities performed under this Agreement will comply with the Research Terms and Conditions established by the National Science Foundation.   "]
["https://www.nsf.gov/awards/managing/award_conditions.jsp?org=NSF"]
[]
["3. Purpose:"]
["Funds provided under this Agreement shall be used solely for the objectives outlined herein and in accordance with Grantee’s proposal to the National Institutes of Health (NIH), hereby incorporated by reference. "]
[]
["4. Personnel:"]
["The Principal Investigator (PI) is responsible for overseeing the technical work to be performed under this Agreement and for submission of all required Technical Reports. The Principal Investigator may not be replaced without the prior written notice to, and subsequent approval of, CRDF Global. "]
[]
["5. Reporting & Performance:"]
["Grantee shall submit technical and financial reports in accordance with the schedule set forth herein and in such detail and format as requested by CRDF Global.  Grantee is expected to make best efforts to accomplish the technical objectives in accordance with the established milestones and schedule and to report to CRDF Global any circumstances that may result in significant delays. CRDF Global will monitor Grantee technical and financial progress and may request additional information from the Grantee during the course of the project. Grantee agrees to cooperate with all such reasonable requests. "]
[]
["6. Record-Keeping & Access:"]
["Grantee shall maintain detailed financial and other records related to this Agreement, including records associated with any subawards issued by the Grantee hereunder, and shall retain such records for a period of no less than three (3) years from the expiration date of this Agreement.   Grantee agrees to provide timely, unrestricted access to such records throughout the duration of the grant period and for the three-year retention period. Grantee further agrees to provide CRDF Global or its authorized representatives access to Grantee’s facilities and personnel performing work under this Agreement.  Grantee shall ensure similar provisions are incorporated into any subaward issued hereunder. "]
[]
["7. Liability:"]
["Neither Party shall be liable to the other for any claim related to their performance of this agreement, except for claims arising from negligent or intentional tortious conduct. "]
[]
["8. Suspension & Termination:",null,null,null,null,null,null,null,null,null,null,null,null,null,null,null,null,null,{"$f":"C26","v":0}]
["Either Party may terminate this Agreement for convenience at any time by providing thirty (30) days written notice to the other Party.  In the event of such suspension or termination, the Grantee will submit claim for final eligible costs with fifteen (15) days of the date of termination. \nCRDF Global may suspend this Agreement at any time and for any reason by providing fifteen (15) written notice to the Grantee.   "]
[]
["9. Force Majeure:"]
["Neither Party shall be liable for any failure to perform its obligations under this Agreement, if such failure results from any Acts of God, pandemics, Acts of War, riot, civil unrest, flood, earthquake or other similar cause beyond such party’s reasonable control (including any sustained mechanical, electronic or communications failure, but excluding failure caused by a party’s financial condition or negligence). A party experiencing a Force Majeure circumstance shall notify the other Party, in writing, as soon as possible describing the situation and its impact on the performance of this Agreement."]
[]
["10. Disputes:"]
["In the event of any disagreement regarding performance under or interpretation of this Agreement, the Parties shall use their best efforts to reach a negotiated resolution that is equitable and mutually satisfactory. Until final resolution of any dispute, the Grantee shall diligently proceed with the performance of this Agreement as directed by CRDF Global. Nothing contained in this Agreement or in any other document related hereto is intended to or shall have the effect of requiring either party to consider, resort to participate in, or abide by any arbitration process or mechanism, or any device or arrangement of a nature or intent similar to arbitration."]
[]
["11. Compliance:",null,null,null,null,null,null,null,null,null,null,null,null,null,null,null,null,null,{"$f":"C35","v":0}]
["Grantee agrees to observe and conform to, in all material respects, all laws, rules, regulations, codes, orders and requirements of governmental authorities relating to this Agreement, and certifies that it is in compliance with and will comply in the course of the period of performance with other generally applicable requirements, including, but not limited to, those relating to corporate operations, taxation, employment and the environment. \n\nThe Grantee further understands and certifies to the following: "]
["a. Suspension & Debarment: Neither Grantee nor any individual Project Personnel are presently debarred, suspended, proposed for debarment, declared ineligible, or voluntarily excluded from participation in this Agreement by any U.S. Government department or agency or any international organization. "]
["b. Prohibition Against Lobbying: That funds provided under this Agreement or will be paid, by or on behalf of the Grantee, to any person for influencing or attempting to influence an officer or employee of a federal agency, a Member of Congress, and officer or employee of Congress, or an employee of a Member of Congress in connection with the awarding, issuance, extension, modification, or renewal of any Federal contract, grant, loan, or other transaction. "]
["c. Combatting Terrorism: As a material condition of receiving the Agreement, Grantee accepts the obligation to take all reasonable steps to prevent financing or any other form of material support being provided to terrorists, individuals, and entities that provide support or services to, are owned, or controlled by, act for or on behalf of, or are otherwise associated with terrorists. With prejudice to the generality of the foregoing, Grantee agrees to ensure that it does not engage in any transaction with or otherwise provide any financing or other material support to an individual or entity on the Specially Designated National (SDN) list issued by the Office of Foreign Assets Control of the US Treasury Department. "]
["d. Prohibition Against Human Trafficking: During the Agreement Period, Grantee certifies that it will not engage in human trafficking, procure a commercial sex act, or use forced labor in performance of the Agreement. Grantee further agrees to ensure that its employees and subgrantees observe the same requirement, and to disclose any information or allegations of violations that come to its attention; failure to comply with this requirement may result in unilateral termination of the Agreement by CRDF Global without penalty or further payment. "]
["e. Nondiscrimination: As applicable, Grantee will comply with Executive Order 11246, as amended (Equal Employment Opportunity); Section 503 of the Rehabilitation Act of 1973; the Vietnam Era Veterans Readjustment Act of 1974, 38 U.S.C. § 4212; the Jobs for Veterans Act of 2002, and Executive Order 13496, and all implementing regulations, including but not limited to 41 CFR §§ 60-1.4, 60-300.5, 60-741.5. This Agreement is subject to the provisions of Title VI of the Civil Rights Act of 1964 [42 U.S.C. § 2000d], Title IX of the Education Amendments of 1972 [20 USC § 1681 et seq.], the Rehabilitation Act of 1973 [29 U.S.C. § 794], the Age Discrimination Act of 1975 [42 U.S.C. § 6101 et seq], and all regulations and policies issued pursuant to these statutes. Specifically, in accordance with these statutes, regulations, and policies, no person based on race, color, national origin, sex, disability, or age shall be excluded from participation in, be denied the benefits of, or otherwise be subjected to discrimination under this Agreement. "]
["f. Prohibition on Certain Telecommunications and Video Surveillance Services or Equipment: Grantee will abide by the restrictions set forth in 2 CFR § 200.216, also defined in Public Law 115-232, section 889 "]
["g. Bioethics:  For research projects involving human and/or animal subjects or recombinant or synthetic nucleic acid molecules, Grantee agrees to comply with all U.S. and national laws and regulations associated with the conduct of such research. "]
[]
["12. Relationship and Authority:"]
["The Parties are separate organizations operating independently in connection with the Agreement. Neither Party has the authority to create obligations on behalf of the other. Each shall make this fact clear to all third parties with which it deals.    \nGrantee certifies that it possesses the legal authority to enter into this Agreement, and that is has satisfied all requirements of its governing body authorizing the acceptance of this award including all understandings and assurances contained therein directing and authorizing the person identified as the official representative of the Grantee to act in connection with the Agreement. "]
[]
["13. Integrity & Ethics:"]
["At all times during the Agreement Period, Grantee shall adhere to the highest standards of integrity and ethics. Without prejudice to the generality of the foregoing, Grantee shall ensure that it has not provided or offered, and will not provide or offer, any corrupt, prohibited, unethical or even unseemly payment or other benefit directly or indirectly to CRDF Global, any government official(s), or any agent or representative of either of the foregoing. \n\nGrantee further confirms that it has, and will maintain throughout the duration of this Agreement, a conflict-of-interest policy compliant with the provisions of 2 CFR 200. ",null,null,null,null,null,null,null,null,null,null,null,null,null,null,null,null,null,{"$f":"C49","v":0}]
[]
["14. Data Protection:"]
["Grantee acknowledges that it may be required to collect personal data for the purposes set forth in this Agreement. If Grantee collects personal data pursuant to this Agreement, Grantee will not store, copy, analyze, monitor, or otherwise use such personal data except for the purposes set forth in this Agreement and with the individual’s informed, prior consent. Grantee will comply fully with all applicable laws, regulations, and government orders relating to the personal data that Grantee receives, or has access to, under this Agreement. Grantee will otherwise protect personal data and will not use, disclose, or transfer the personal data across national borders, except as necessary to perform under this Agreement or as consented to by the individual in accordance with applicable law. Under no circumstances will Grantee sell, share, or otherwise exchange personal data collected pursuant to this Agreement for commercial purposes."]
[]
["15. Intellectual Property:"]
["For the purposes of this Agreement, the parties agree to the following: \n\n- CRDF Global makes no claim to any IP conceived or developed in the performance of this Agreement; \n\n- Grantee shall take all necessary steps to protect its pre-existing IP that may be used in the performance of this Agreement; \n\n- Grantee shall accept and flow down all federal government requirements; and \n\nAny IP conceived or developed in the performance of this Agreement shall be subject to the requirements of the Bayh-Dole Act, 35 U.S. C. §§ 200 et. seq., and implementing regulations, 37 CFR Part 401. "]
[]
["16. Publications: ",null,null,null,null,null,null,null,null,null,"Do we need Project indicators?"]
["All publications produced in performance of this Agreement must contain the following acknowledgment: “This publication is based on work supported by funding provided by the National Institutes of Health (NIH) and administered by CRDF Global. Any opinions, findings and conclusions or recommendations expressed in this material are those of the author(s) and do not necessarily reflect the views of NIH or CRDF Global.” Copies of publications based on or developed under this Agreement shall be provided to CRDF Global or its authorized representatives upon request.",null,null,null,null,null,null,null,null,null,null,null,null,null,null,null,null,null,{"$f":"C58","v":0}]
[]
["17. Assignment:"]
["Grantee may not assign, subcontract, grant, subgrant or otherwise transfer any rights (including, but not limited to, claims and rights to receive payment) or obligations under the Agreement to any other person or entity without prior, written approval from CRDF Global. "]
[]
["18. Travel:"]
["All travel funded under this Agreement shall be subject to the provision of the Fly America Act (49 U.S.C. 40018) and the provisions of 2 CFR 200."]
[]
["19. Invoicing & Payment:"]
["Grantee will submit invoices and financial reports in accordance with the schedule contained herein and containing such information, or in such format, as provided by CRDF Global. \n\nCRDF Global reserves the right to request additional documentation or information to conduct appropriate review of reported expenditures and to disallow any cost found to be unallowable or not in accordance with the approved Grant budget. \n\nIf Grantee becomes aware of an overpayment, an erroneous payment, or a duplicate payment, Grantee shall immediately notify CRDF Global in writing and request instructions for managing the matter. CRDF Global may deduct from any payment all or part of any amount, whether in connection with the Agreement or any other agreement, owed to it by Grantee.",null,null,null,null,null,null,null,null,null,null,null,null,null,null,null,null,null,{"$f":"C67","v":0}]
[]
["20. Modification & Amendment:"]
["The Agreement may only be modified by a written amendment signed by both Parties except in the following circumstances wherein CRDF Global may issue a unilateral modification or formal written approval: \n\na. Approval of a no-cost extension requested in writing by the Grantee. \nb. Administrative updates of the CRDF Global PO or GO. \nc. Budget reallocations among direct cost budget categories requested by the Grantee that are less than 10% of the total grant amount. "]
[]
["21. Severability:"]
["Any Agreement provision(s) determined by a court or other competent authority to contravene applicable law or mandatory public policy will be rendered void or unenforceable only to the extent of such contravention; remaining provisions shall continue in full force and effect and be construed to implement the Parties’ intent to the maximum extent practicable. "]
[]
["22. Issuance in Multiple Languages:"]
["For explanatory purposes or for the sake of clarification, this Agreement and associated documents may be translated into one or more languages other than English. In the event of the existence of such translations, the English-language version shall serve as the definitive version determining the interpretation of any provision contained herein. ",null,null,null,null,null,null,null,null,null,null,null,null,null,null,null,null,null,{"$f":"C76","v":0}]
[]
["23. Closeout:"]
["To facilitate timely closeout of the Agreement, Grantee agrees to perform all its agreement obligations in a timely manner and to take all necessary and appropriate steps to assist CRDF Global in the closeout process."]
["Closeout shall, in addition to such other steps as CRDF Global may reasonably request, follow standard CRDF Global procedures which include the following Grantee actions: "]
["[a] liquidation of unliquidated obligations,  \n[b] submission of a Final Invoice not later than 30 days from the Agreement end date, \n[c] refund of unobligated balances,  \n[d] accounting for and if instructed by CRDF Global disposing of goods and other items procured with Grant support; and  \n[e] execution of an acceptable release."]
["Upon Grantee’s successful completion of all its obligations under the Agreement, including closeout, CRDF Global will make final payment. Grantee agrees to complete all required closeout actions within forty-five (45) days after the Expiration Date. "]
[]
[]
[]
[]
[]
[]
[]
[]
[]
[]
[null,null,null,null,null,null,null,null,null,null,null,null,null,null,null,null,null,null,{"$f":"C93","v":0}]
[]
[]
[]
[]
[]
[]
[]
[]
[]
[]
[]
[null,null,null,null,null,null,null,null,null,null,null,null,null,null,null,null,null,null,{"$f":"C105","v":0}]
[]
[]
[]
[]
[]
[]
[]
[]
[null,null,null,null,null,null,null,null,null,null,null,null,null,null,null,null,null,null,{"$f":"C114","v":0}]
[]
[]
[]
[]
[]
[]
[]
[]
[null,null,null,null,null,null,null,null,null,null,null,null,null,null,null,null,null,null,{"$f":"C123","v":0}]

{"sheet":"G. Bioethics compliance_DNA ","index":18,"n_rows":113,"n_cols":19,"rows_kept":113,"cut":false,"hidden":true,"merged":[[67,0,67,8],[69,0,69,8],[70,0,70,8],[72,0,72,8],[73,0,73,8],[66,0,66,8],[49,0,49,8],[51,0,51,8],[52,0,52,8],[54,0,54,8],[55,0,55,8],[57,0,57,8],[58,0,58,8],[60,0,60,8],[61,0,61,8],[63,0,63,8],[64,0,64,8],[48,0,48,8],[34,0,34,8],[35,0,35,8],[36,0,36,8],[37,0,37,8],[38,0,38,8],[39,0,39,8],[40,0,40,8],[42,0,42,8],[43,0,43,8],[45,0,45,8],[46,0,46,8],[33,0,33,8],[22,0,22,8],[23,0,23,8],[24,0,24,8],[25,0,25,8],[26,0,26,8],[27,0,27,8],[28,0,28,8],[29,0,29,8],[30,0,30,8],[31,0,31,8],[32,0,32,8],[21,0,21,8],[7,0,7,8],[8,0,8,8],[10,0,10,8],[12,0,12,8],[13,0,13,8],[14,0,14,8],[15,0,15,8],[17,0,17,8],[18,0,18,8],[19,0,19,8],[20,0,20,8],[6,0,6,8],[0,3,0,5],[1,0,1,8],[2,0,2,8],[4,0,4,8],[5,0,5,8]]}
[null,null,null,"ATTACHMENT G"]
["BIOETHICS COMPLIANCE_DNA "]
["CRDF Global is committed to ensuring that projects involving Recombinant or Synthetic Nucleic Acid Molecules Activity are conducted in compliance with all applicable regulations and ethical guidelines. "]
[]
["1. Projects involving Research Involving Recombinant or Synthetic Nucleic Acid Molecules performing institutions must meet the following additional requirements:"]
["- The performing institutions certifies that it will comply with all applicable federal requirements, including but not limited to National Institute of Health (NIH) Guidelines for Research Involving Recombinant or Synthetic Nucleic Acid Molecules (NIH Guidelines), as amended. "]
["- Research within the scope of the NIH Guidelines that is performed outside of the U.S. using funds for transportation, salaries or direct research expenses must comply with the U.S. or host country standards. "]
["- If the research is to be conducted in a country that has adopted guidelines comparable to those of the NIH Guidelines, a document with information and endorsements assuring compliance to the host organization standards must be submitted to CRDF Global. "]
["- CRDF Global funds may not be used to conduct research using recombinant or synthetic nucleic acid molecules in a country that has not adopted national guidelines unless the research is in full compliance with the NIH Guidelines and the procedures required for NIH-supported research within the U.S"]
[]
["The Grantee shall have in place established policies and procedures for the misconduct that, if valid, would cast significant doubt on the validity of the research results resulting under the CRDF Global award, shall be reported promptly, in writing, to CRDF Global"]
[]
["2. Grantee shall notify CRDF Global, in writing and within two business days of the occurrence of any of the following events: "]
["a. Any significant change in the methodology or procedures being used in the Project; "]
["b. Any significant or major findings, breakthroughs, or events of unusual interest; "]
["c. Any problems, delays or adverse conditions that will materially affect the Project, its objectives or time schedules and actions being taken to address them; "]
[]
["Unless otherwise approved by CRDF Global, all notices in connection with the Agreement shall be made in writing to the CRDF Global-designated representatives specified on the Cover Sheet. "]
[]
[]
[]
[]
[]
[null,null,null,null,null,null,null,null,null,null,null,null,null,null,null,null,null,null,{"$f":"C24","v":0}]
[]
[]
[]
[]
[]
[]
[]
[]
[null,null,null,null,null,null,null,null,null,null,null,null,null,null,null,null,null,null,{"$f":"C33","v":0}]
[]
[]
[]
[]
[]
[]
[]
[]
[]
[]
[]
[]
[]
[null,null,null,null,null,null,null,null,null,null,null,null,null,null,null,null,null,null,{"$f":"C47","v":0}]
[]
[]
[]
[]
[]
[]
[]
[null,null,null,null,null,null,null,null,null,null,"Do we need Project indicators?"]
[null,null,null,null,null,null,null,null,null,null,null,null,null,null,null,null,null,null,{"$f":"C56","v":0}]
[]
[]
[]
[]
[]
[]
[]
[]
[null,null,null,null,null,null,null,null,null,null,null,null,null,null,null,null,null,null,{"$f":"C65","v":0}]
[]
[]
[]
[]
[]
[]
[]
[]
[null,null,null,null,null,null,null,null,null,null,null,null,null,null,null,null,null,null,{"$f":"C74","v":0}]
[]
[]
[]
[]
[]
[]
[]
[]
[null,null,null,null,null,null,null,null,null,null,null,null,null,null,null,null,null,null,{"$f":"C83","v":0}]
[]
[]
[]
[]
[]
[]
[]
[]
[]
[]
[]
[null,null,null,null,null,null,null,null,null,null,null,null,null,null,null,null,null,null,{"$f":"C95","v":0}]
[]
[]
[]
[]
[]
[]
[]
[]
[null,null,null,null,null,null,null,null,null,null,null,null,null,null,null,null,null,null,{"$f":"C104","v":0}]
[]
[]
[]
[]
[]
[]
[]
[]
[null,null,null,null,null,null,null,null,null,null,null,null,null,null,null,null,null,null,{"$f":"C113","v":0}]

{"sheet":"H. Bioethics compliance","index":19,"n_rows":115,"n_cols":19,"rows_kept":115,"cut":false,"hidden":true,"merged":[[74,0,74,8],[75,0,75,8],[65,0,65,8],[66,0,66,8],[68,0,68,8],[69,0,69,8],[71,0,71,8],[72,0,72,8],[63,0,63,8],[47,0,47,8],[48,0,48,8],[50,0,50,8],[51,0,51,8],[53,0,53,8],[54,0,54,8],[56,0,56,8],[57,0,57,8],[59,0,59,8],[60,0,60,8],[62,0,62,8],[45,0,45,8],[32,0,32,8],[34,0,34,8],[35,0,35,8],[36,0,36,8],[37,0,37,8],[38,0,38,8],[39,0,39,8],[40,0,40,8],[41,0,41,8],[42,0,42,8],[44,0,44,8],[31,0,31,8],[15,0,15,8],[16,0,16,8],[18,0,18,8],[20,0,20,8],[21,0,21,8],[22,0,22,8],[23,0,23,8],[25,0,25,8],[26,0,26,8],[28,0,28,8],[29,0,29,8],[14,0,14,8],[0,3,0,5],[1,0,1,8],[2,0,2,8],[4,0,4,8],[5,0,5,8],[6,0,6,8],[8,0,8,8],[9,0,9,8],[10,0,10,8],[12,0,12,8],[13,0,13,8]]}
[null,null,null,"ATTACHMENT H"]
["BIOETHICS COMPLIANCE "]
["CRDF Global is committed to ensuring that projects involving Human Subjects Activity and/or Animal Subjects Activity are conducted in compliance with all applicable regulations and ethical guidelines. To this end:"]
[]
["1. For projects involving Human Subjects Activity, each performing institution must meet both of the following requirements:"]
["a. Provide documentation of Institutional Review Board (IRB) registration and evidence of active Federal-wide Assurance (FWA) registration with the Office of Human Research Protections (OHRP) of the U.S. Department of Health and Human Services."]
["b. Provide written approval of each responsible IRB or equivalent ethics committee of the proposed research activity OR written documentation of exemption.  Such approval or exemption must be submitted on institutional letterhead and clearly indicate the name of the project and the period for which the approval or exemption is valid. Such approval or exemption must be signed by the authorized institutional authority."]
[]
["2. For projects involving clinical trials, performing institutions must meet the following additional requirements:"]
["a. Provide documentation of study registration with clinicaltrials.gov registry to remain in accordance with U.S. Governmental regulations."]
["b. If the study is conducted in a country with additional clinical trial registration requirements, registration documentation must be provided by the appropriate regulatory authority(ies) as set forth by national requirements."]
[]
["3. For projects involving Animal Subjects Activity, each performing institution must meet the following requirements:"]
["a. Provide documentation of certification by the Association for Assessment and Accreditation of Laboratory Animal Care International (AAALAC International) "]
["OR"]
["a. Provide a completed CRDF Global Protocol Summary Form detailing the specifics of the proposed Animal Subjects Activity, AND"]
["b. Provide written approval or certification of exemption from each responsible Institutional Animal Care and Use Committee (IACUC) or equivalent ethics committee submitted on institutional letterhead and signed by the authorized institutional authority."]
[]
["The Grantee shall have in place established policies and procedures for the misconduct that, if valid, would cast significant doubt on the validity of the research results resulting under the CRDF Global award, shall be reported promptly, in writing, to CRDF Global"]
[]
["4. Grantee shall notify CRDF Global, in writing and within two business days of the occurrence of any of the following events: "]
["a. Any significant change in the methodology or procedures being used in the Project; "]
["b. Any significant or major findings, breakthroughs, or events of unusual interest; "]
["c. Any problems, delays or adverse conditions that will materially affect the Project, its objectives or time schedules and actions being taken to address them; "]
[]
["Unless otherwise approved by CRDF Global, all notices in connection with the Agreement shall be made in writing to the CRDF Global-designated representatives specified on the Cover Sheet."]
[]
[]
[]
[]
[]
[]
[]
[]
[]
[]
[]
[]
[]
[]
[]
[]
[]
[]
[]
[]
[]
[]
[]
[]
[]
[]
[]
[]
[]
[]
[]
[]
[]
[]
[]
[]
[]
[]
[]
[]
[]
[]
[]
[]
[]
[]
[]
[]
[]
[]
[]
[]
[]
[]
[]
[]
[]
[]
[null,null,null,null,null,null,null,null,null,null,null,null,null,null,null,null,null,null,{"$f":"C85","v":0}]
[]
[]
[]
[]
[]
[]
[]
[]
[]
[]
[]
[null,null,null,null,null,null,null,null,null,null,null,null,null,null,null,null,null,null,{"$f":"C97","v":0}]
[]
[]
[]
[]
[]
[]
[]
[]
[null,null,null,null,null,null,null,null,null,null,null,null,null,null,null,null,null,null,{"$f":"C106","v":0}]
[]
[]
[]
[]
[]
[]
[]
[]
[null,null,null,null,null,null,null,null,null,null,null,null,null,null,null,null,null,null,{"$f":"C115","v":0}]

{"sheet":"I. Equipment Compliance","index":20,"n_rows":118,"n_cols":19,"rows_kept":118,"cut":false,"hidden":true,"merged":[[78,0,78,8],[62,0,62,8],[63,0,63,8],[65,0,65,8],[66,0,66,8],[68,0,68,8],[69,0,69,8],[71,0,71,8],[72,0,72,8],[74,0,74,8],[75,0,75,8],[77,0,77,8],[60,0,60,8],[44,0,44,8],[45,0,45,8],[47,0,47,8],[48,0,48,8],[50,0,50,8],[51,0,51,8],[53,0,53,8],[54,0,54,8],[56,0,56,8],[57,0,57,8],[59,0,59,8],[43,0,43,8],[29,0,29,8],[30,0,30,8],[32,0,32,8],[34,0,34,8],[35,0,35,8],[37,0,37,8],[38,0,38,8],[39,0,39,8],[40,0,40,8],[41,0,41,8],[42,0,42,8],[28,0,28,8],[15,0,15,8],[16,0,16,8],[17,0,17,8],[18,0,18,8],[19,0,19,8],[20,0,20,8],[21,0,21,8],[23,0,23,8],[24,0,24,8],[25,0,25,8],[27,0,27,8],[14,0,14,8],[0,3,0,5],[1,0,1,8],[2,0,2,8],[4,0,4,8],[5,0,5,8],[6,0,6,8],[8,0,8,8],[10,0,10,8],[11,0,11,8],[12,0,12,8],[13,0,13,8]]}
[null,null,null,"ATTACHMENT H"]
["EQUIPMENT COMPLIANCE "]
["Goods & services and Equipment purchased by the Grantee with Agreement funds must be procured competitively to the extent practicable, at reasonable prices, from responsible sources selected fairly in a manner unimpaired by conflicts of interest or other malpractices. Receipt and proper use for activities within the scope of Project must be fully documented. Grantee may hold title to goods that it purchases pursuant to this section or that are donated by CRDF Global, but it shall use them only for the purposes of the Project. "]
[]
["1. Goods and services procured under this Agreement are governed by the cost provisions of 2 CFR 200. The Grantee confirms that it has and will maintain, throughout the life of this Agreement, procurement policies compliant with the provisions of 2 CFR 200. "]
["All orders for goods and services that exceed $10,000 are subject to competitive selection requirements. Documentation of vendor selection must be maintained by the Grantee and submitted to the Grant Officer on request. "]
["Goods over $5,000 USD (or local currency equivalent) per unit acquisition cost, and with a usable life of longer than one year shall be defined as Equipment. "]
[]
["2. Equipment items identified in the approved proposal may be acquired under this Agreement without the approval of the Grant Officer, however, any other equipment items that are not identified in the approved proposal require express written approval of the Grant Offices prior to purchasing."]
[]
["The Purchase of Equipment is subject to the following provisions:"]
["a. Equipment must be procured competitively to the extent practicable. All equipment purchases that exceed $10,000 are subject to competitive selection requirements. "]
["b. All Equipment must be clearly and prominently marked as provided or financed by CRDF Global. "]
["c. All equipment and other property acquired under this Agreement must remain available to and be used for the Project, and may not be sold, leased, mortgaged or otherwise transferred, or used for any non-Project purpose, be located and maintained at the premises of the Grantee or an authorized Collaborator, as appropriate, and remain accessible for viewing, examination or audit unless CRDF Global agrees otherwise in writing. "]
["d. Unless otherwise stipulated, Equipment and other physical property received by the Grantee or Collaborator under this Agreement is supplied in the capacity of technical assistance and is transferred to the Grantee or Collaborator as authorized by CRDF Global. "]
["e. Title to Equipment and other property acquired under this Agreement will vest in the Grantee or Collaborator, as appropriate, unless otherwise directed by CRDF Global in writing. "]
["f. Use of any Equipment or other property acquired under this Agreement by military end-users or for military purposes is expressly prohibited. "]
["g. The Grantee shall ensure that all Equipment and other property provided under this Agreement is maintained in a manner consistent with its specifications and reasonable care, security, and maintenance. "]
["h. In the event this Agreement is terminated for default, or the Grantee is in material breach thereof, CRDF Global may, at its sole discretion, require that any Equipment and property acquired under this Agreement be returned to CRDF Global or transferred to a third party. The shipping costs related to the return or transfer of the Equipment and property will be borne by CRDF Global."]
["i. Within thirty (30) days of receipt of Equipment, Grantee will prepare and return an itemized receiving report, signed by an authorized representative, confirming receipt in apparent good order, and working condition and registration of the Equipment on the Grantee’s balance sheet. The report will be in a form to be provided by CRDF Global."]
["j. Items over $5,000 or local currency equivalent per unit acquisition cost shall be reported to CRDF Global and disposition instructions requested when the items are no longer needed for such purposes."]
["k. The Grantee shall, to the greatest extent practicable, provide a preference for the purchase, acquisition, or use of goods, products, or materials produced in the United States (including but not limited to iron, aluminum, steel, cement, and other manufactured products). The requirements of this section must be included in all sub agreements, including all contracts and purchase orders for work or products under this Agreement."]
[]
["3. Conflicts of Interest. It is CRDF Global’s policy that all grantees have a robust conflicts of interest policy that conforms with applicable U.S. Government requirements. The Grantee confirms that it has and will maintain, throughout the life of this Agreement, a conflict-of-interest policy compliant with the provisions of 2 CFR 200 and that it shall adhere to it in performance of this Agreement."]
["Should Grantee not have such a policy, Grantee agrees to the following: \nGrantee shall adhere to the highest ethical standards in all matters related to this Agreement and shall assure that the Project Personnel adhere to those standards. For purposes of this section, “Conflict of Interest” means a family or other personal relationship, a business or financial interest, or any other relationship, interest or activity that:  a) impairs (or might impair) his/her objectivity in performing his/her obligations under this Agreement; b) makes him/her unable to render impartial assistance or advice under this Agreement; or c) gives him/her an unfair competitive advantage."]
["“Interest” means a relationship of any kind from which a person or organization derives (or might derive) pecuniary or in-kind benefits. No Grantee or Project Personnel may participate in any decision involving the obligation of Grant funds or the use or disposition of Grant funds if he/she knows, or reasonably should know, that such participation involves an actual or potential Conflict of Interest, or the appearance of such a Conflict of Interest. "]
[]
["To implement this requirement the Grantee will:"]
["a. Disclose promptly to CRDF Global any close family relationship or interest that may constitute or create a Conflict of Interest or the appearance of a Conflict of Interest; "]
["b. Refrain from participating in, and from using his/her personal influence in connection with, decisions where such participation may involve a Conflict of Interest or the appearance of a Conflict of Interest except:\n- To provide information when requested, or\n- To provide information known to him/her indicating that a proposed or existing transaction could be contrary to this policy."]
["c. Refrain from dealing on behalf of CRDF Global with organizations or persons on transactions involving the obligation of Project funds or the use or disposition of Project Resources except after full disclosure and with the express written authorization of CRDF Global Grant Officer. "]
["d. Assure that Project Personnel comply with the requirements of this section."]
["The Grantee will monitor its relationships and interests, and those of the Project Personnel, on an ongoing basis and will report any relationships or interests that might violate the provisions of this section."]
[]
[]
[]
[]
[]
[]
[]
[]
[]
[]
[]
[]
[]
[]
[]
[]
[]
[]
[]
[]
[]
[]
[]
[]
[]
[]
[]
[]
[]
[]
[]
[]
[]
[]
[]
[]
[]
[]
[]
[]
[]
[]
[]
[]
[]
[]
[]
[]
[]
[]
[]
[]
[]
[]
[null,null,null,null,null,null,null,null,null,null,null,null,null,null,null,null,null,null,{"$f":"C88","v":0}]
[]
[]
[]
[]
[]
[]
[]
[]
[]
[]
[]
[null,null,null,null,null,null,null,null,null,null,null,null,null,null,null,null,null,null,{"$f":"C100","v":0}]
[]
[]
[]
[]
[]
[]
[]
[]
[null,null,null,null,null,null,null,null,null,null,null,null,null,null,null,null,null,null,{"$f":"C109","v":0}]
[]
[]
[]
[]
[]
[]
[]
[]
[null,null,null,null,null,null,null,null,null,null,null,null,null,null,null,null,null,null,{"$f":"C118","v":0}]

{"sheet":"J. Financial Reporting","index":21,"n_rows":127,"n_cols":19,"rows_kept":127,"cut":false,"hidden":true,"merged":[[84,0,84,8],[86,0,86,8],[87,0,87,8],[75,0,75,8],[77,0,77,8],[78,0,78,8],[80,0,80,8],[81,0,81,8],[83,0,83,8],[74,0,74,8],[60,0,60,8],[61,0,61,8],[62,0,62,8],[63,0,63,8],[64,0,64,8],[65,0,65,8],[66,0,66,8],[68,0,68,8],[69,0,69,8],[71,0,71,8],[72,0,72,8],[59,0,59,8],[44,0,44,8],[45,0,45,8],[46,0,46,8],[48,0,48,8],[49,0,49,8],[51,0,51,8],[52,0,52,8],[53,0,53,8],[55,0,55,8],[57,0,57,8],[58,0,58,8],[43,0,43,8],[32,0,32,8],[33,0,33,8],[34,0,34,8],[35,0,35,8],[36,0,36,8],[37,0,37,8],[38,0,38,8],[39,0,39,8],[40,0,40,8],[41,0,41,8],[42,0,42,8],[30,0,30,8],[14,0,14,8],[16,0,16,8],[17,0,17,8],[19,0,19,8],[20,0,20,8],[22,0,22,8],[23,0,23,8],[25,0,25,8],[27,0,27,8],[28,0,28,8],[29,0,29,8],[13,0,13,8],[0,3,0,5],[1,0,1,8],[2,0,2,8],[4,0,4,8],[6,0,6,8],[7,0,7,8],[8,0,8,8],[9,0,9,8],[10,0,10,8],[11,0,11,8],[12,0,12,8]]}
[null,null,null,"ATTACHMENT H"]
["FINANCIAL REPORTING"]
["The Grantee agrees to comply strictly with the Grant Budget set forth in the Grant Agreement (hereafter referred to as the “Grant Budget”). The Grant Budget includes line items for all types of Grant support, whether expenditures will be by CRDF Global or Grantee or third party. Costs of Grant support not expressly specified in the Grant Budget, or more than line items therein, are not eligible costs and may not be charged to the Grant or included in the Grantee Contribution unless approved in writing by the Grant Officer. CRDF Global’s aggregate liability arising out of or relating to the Agreement, regardless of the type(s) and mix of Grant support involved, may not under any circumstances exceed the Grant Amount. Grantee is solely responsible for any overruns."]
[]
["It is CRDF Global’s policy that all grantees have a compliant financial management system that conforms with applicable U.S. Government requirements. The Grantee confirms that it has and will maintain, throughout the life of this Agreement, a financial management system compliant with the provisions of 2 CFR 200."]
[]
["Should Grantee not have such a system, Grantee agrees to maintain a financial management system that will enable it to comply with all applicable Agreement requirements, including, but not limited to, the following minimum standards:"]
["a. Provides accurate, current, and complete financial information about Agreement-funded activities."]
["b. Maintains records that identify Grant funds and the purposes for which they are used; supports accounting records with source documentation such as cancelled checks, paid bills, payrolls, and time and attendance records."]
["c. Applies internal controls that yield effective control over and accountability for all cash, property, and other assets under the Agreement, safeguards such assets, and ensures that the assets are used only for authorized purposes."]
["d. Enables Grantee to compare actual expenditures with the Budget."]
["e. Screens out costs that are not eligible for reimbursement under the Agreement."]
["f. Includes procedures to ensure that invoices and requests for Grant support are issued only when the funds/support are needed for Project purposes."]
["g. Enables financial information such as expenditures in comparison to Budget figures to be related to performance data."]
["Grantee agrees that CRDF Global or its representatives may review Grantee’s financial management system at any time to determine whether it complies with the above requirements."]
[]
["1. Reports. Grantee shall be required to submit financial reports according to the schedule specified in the Grant Agreement. Reports shall be submitted electronically to the attention of the Grant Officer."]
["Financial Report(s) shall include the following:\na. Detailed and full list of all expenditures incurred by the Project.\nb. Accurate and proper supporting documents which prove the incurred expenses (such as fiscal receipts, bank statement, copies of purchase/supply agreements, etc.)\nc. Projections (forecast) for planned expenditures for the next reporting period and/or remainder of the Project\nd. Other [specify]"]
[]
["2. Payments. Grantee will be reimbursed for Eligible Costs incurred based on the Grantee’s submission of the financial report including all supported documentations or other payment request format provided by CRDF Global. All requests for payment are to be submitted directly to and approved by the Grant Officer. Advance payments may be authorized by the Grant Officer in accordance with the Grantee’s actual, immediate needs for funding to conduct the purpose of the Project, and program guidelines. When advance payments are authorized, the Grantee agrees to minimize the time elapsing between the Grantee’s receipt of funds and the outlays of the funds for Project purposes."]
["On Agreement termination, the Grantee will refund the balance of Grant funds not already expended or irrevocably obligated."]
[]
["3. Method of Payment. CRDF Global reserves the right, in its sole discretion, to determine the method of payment, payee, and to decline any request received that is inconsistent with the terms of this Agreement or in violation of CRDF Global procedures or program guidelines. CRDF Global will make best efforts to minimize transfer fees applied by financial institutions involved in the funds transfer process. However, CRDF Global is not liable for transfer fees applied by intermediary financial institutions; such costs must be borne by Grantee."]
["To the extent possible, CRDF Global attempts to make payment directly to Project Personnel and the individuals, organizations and vendors that support the Agreement; any such payments are credited against the Budget and are subject to the terms of this Agreement."]
[]
["4. Labour. Unless prohibited by the Grantee, payments to individual Project Personnel will be made, to the extent possible, directly to bank accounts designated to CRDF Global for the benefit of the individual in accordance with current CRDF Global procedures."]
[]
["5. Timekeeping. It is CRDF Global’s policy that all grantees have a compliant timekeeping system that conforms with applicable U.S. Government requirements. The Grantee confirms that it has and will maintain, throughout the life of this Agreement, a timekeeping system compliant with the provisions of 2 CFR 200."]
["Should Grantee not have such a system, Grantee recognizes that eligible labour costs must be based on actual level of effort of Project Personnel and will document such level of effort with individual timesheets subject to the following provisions:"]
["a. Individual timesheets, signed by both the requesting Project Personnel and the responsible Principal Investigator. Timesheets are to be maintained daily and submitted to the Principal Investigator monthly for review and approval. \nb. Project Personnel must use a CRDF Global-provided timesheet template, unless an alternative template has been approved, in writing, by the CRDF Global Grant Officer. Timesheets will be completed based on actual time worked on CRDF Global-funded activities, with working hours being recorded on the provided timesheet template. \nc. Project Personnel engaged in more than one concurrent CRDF Global project must complete one single timesheet recording hours spent for each project separately. "]
["The Grantee is responsible for monitoring and documenting Project Personnel’s compliance with timekeeping and reporting requirements; ensuring that Project Personnel are trained and informed on the timekeeping and reporting requirements; ensuring the timely collection of timesheets from all Project Personnel on the project each month; reviewing of timesheets for accuracy; certifying the accuracy of the timesheets collected; ensuring that payment requests are submitted to CRDF Global in a timely manner; and maintaining timesheet records for the Project."]
[]
["6. Goods & Services and Equipment purchased by the Grantee with Agreement funds must be procured competitively to the extent practicable, at reasonable prices, from responsible sources selected fairly in a manner unimpaired by conflicts of interest or other malpractices. Receipt and proper use for activities within the scope of Project must be fully documented. Grantee may hold title to goods that it purchases pursuant to this section or that are donated by CRDF Global, but it shall use them only for the purposes of the Project. "]
["a. Goods and services procured under this Agreement are governed by the cost provisions of 2 CFR 200. The Grantee confirms that it has and will maintain, throughout the life of this Agreement, procurement policies compliant with the provisions of 2 CFR 200. \nAll orders for goods and services that exceed $10,000 are subject to competitive selection requirements. Documentation of vendor selection must be maintained by the Grantee and submitted to the Grant Officer on request. Goods over $5,000 USD (or local currency equivalent) per unit acquisition cost, and with a usable life of longer than one year shall be defined as Equipment. "]
["b. Equipment items identified in the approved proposal may be acquired under this Agreement without the approval of the Grant Officer, however, any other equipment items that are not identified in the approved proposal require express written approval of the Grant Offices prior to purchasing. "]
["The Purchase of Equipment is subject to the following provisions:"]
["i. Equipment must be procured competitively to the extent practicable. All equipment purchases that exceed $10,000 are subject to competitive selection requirements. "]
["ii. All Equipment must be clearly and prominently marked as provided or financed by CRDF Global."]
["iii. All equipment and other property acquired under this Agreement must remain available to and be used for the Project, and may not be sold, leased, mortgaged or otherwise transferred, or used for any non-Project purpose, be located and maintained at the premises of the Grantee or an authorized Collaborator, as appropriate, and remain accessible for viewing, examination or audit unless CRDF Global agrees otherwise in writing. "]
["iv. Unless otherwise stipulated, Equipment and other physical property received by the Grantee or Collaborator under this Agreement is supplied in the capacity of technical assistance and is transferred to the Grantee or Collaborator as authorized by CRDF Global. "]
["v. Title to Equipment and other property acquired under this Agreement will vest in the Grantee or Collaborator, as appropriate, unless otherwise directed by CRDF Global in writing. "]
["vi. Use of any Equipment or other property acquired under this Agreement by military end-users or for military purposes is expressly prohibited. "]
["vii. The Grantee shall ensure that all Equipment and other property provided under this Agreement is maintained in a manner consistent with its specifications and reasonable care, security, and maintenance. "]
["viii. In the event this Agreement is terminated for default, or the Grantee is in material breach thereof, CRDF Global may, at its sole discretion, require that any Equipment and property acquired under this Agreement be returned to CRDF Global or transferred to a third party. The shipping costs related to the return or transfer of the Equipment and property will be borne by CRDF Global."]
["ix. Within thirty (30) days of receipt of Equipment, Grantee will prepare and return an itemized receiving report, signed by an authorized representative, confirming receipt in apparent good order, and working condition and registration of the Equipment on the Grantee’s balance sheet. The report will be in a form to be provided by CRDF Global."]
["x. Items over $5,000 or local currency equivalent per unit acquisition cost shall be reported to CRDF Global and disposition instructions requested when the items are no longer needed for such purposes."]
["xi. The Grantee shall, to the greatest extent practicable, provide a preference for the purchase, acquisition, or use of goods, products, or materials produced in the United States (including but not limited to iron, aluminum, steel, cement, and other manufactured products). The requirements of this section must be included in all sub agreements, including all contracts and purchase orders for work or products under this Agreement."]
[]
["7. Indirect Costs. Indirect costs are those that have been incurred for common or joint objectives and cannot be readily identified with a particular final cost objective. The provision of indirect costs under this Agreement are governed by the provisions of 2 CFR 200.414. Indirect expenses may only be applied to modified total direct costs (MTDC). MTDC includes all direct salaries and wages, applicable fringe benefits, materials and supplies, services, travel, and up to the first $25,000 of each subaward (regardless of the period of performance of the subawards under the award). MTDC excludes equipment, capital expenditures, charges for patient care, rental costs, tuition remission, scholarships and fellowships, participant support costs and the portion of each subaward more than $25,000. "]
["Participant support costs are defined as direct costs for items such as stipends or subsistence allowances, travel allowances, and registration fees paid to or on behalf of participants or trainees (but not employees, subcontractors, or consultants) in connection with conferences or training projects."]
[]
["8. Eligible Costs. All expenses under this Agreement are governed by the cost provisions of 2 CFR. The Grantee confirms that it has and will maintain, throughout the life of this Agreement, expense policies compliant with the provisions of 2 CFR."]
["Grantee may use Grant funds and any Contributions only for Grantee’s verifiable, reasonable, allocable, and allowable direct costs necessary for performance of the activities specified in the Project. All such costs must comply with the terms and conditions of the Agreement and must be incurred and expended during the Grant Period. In incurring costs, as in other matters relating to implementation, Grantee is expected to exercise prudent management and to make sound administrative judgments under the circumstances prevailing at the time a decision is made. Documentation supporting expenditures and other actions in implementing the Agreement must be made in advance of the action, be consistent with the Grantee’s established policies and procedures, comply with the terms of this Agreement, and reflect appropriate approvals within the organization."]
["CRDF Global Grant support may include any one or more of the following types of assistance, without limitation, as set forth in the Grant Budget or as otherwise subsequently agreed: [a] labour paid directly to Project Personnel, [b] equipment, materials, supplies and/or services purchased on behalf of the grantee, [c] travel-related direct payments to individual Project Personnel or to vendors on their behalf; and [d] direct transfers of funds to institutional accounts for project-related expenses."]
[]
["9. Overpayments and Offsets. If Grantee becomes aware of an overpayment, an erroneous payment, or a duplicate payment, Grantee shall immediately notify CRDF Global in writing and request instructions for managing the matter. CRDF Global may deduct from any payment all or part of any amount, whether in connection with the Agreement or any other agreement, owed to it by Grantee."]
[]
["10. Conflicts of Interest. It is CRDF Global’s policy that all grantees have a robust conflicts of interest policy that conforms with applicable U.S. Government requirements. The Grantee confirms that it has and will maintain, throughout the life of this Agreement, a conflict-of-interest policy compliant with the provisions of 2 CFR 200 and that it shall adhere to it in performance of this Agreement."]
["Should Grantee not have such a policy, Grantee agrees to the following: \nGrantee shall adhere to the highest ethical standards in all matters related to this Agreement and shall assure that the Project Personnel adhere to those standards. For purposes of this section, “Conflict of Interest” means a family or other personal relationship, a business or financial interest, or any other relationship, interest or activity that:  a) impairs (or might impair) his/her objectivity in performing his/her obligations under this Agreement; b) makes him/her unable to render impartial assistance or advice under this Agreement; or c) gives him/her an unfair competitive advantage."]
["“Interest” means a relationship of any kind from which a person or organization derives (or might derive) pecuniary or in-kind benefits. No Grantee or Project Personnel may participate in any decision involving the obligation of Grant funds or the use or disposition of Grant funds if he/she knows, or reasonably should know, that such participation involves an actual or potential Conflict of Interest, or the appearance of such a Conflict of Interest."]
["To implement this requirement the Grantee will:\na. Disclose promptly to CRDF Global any close family relationship or interest that may constitute or create a Conflict of Interest or the appearance of a Conflict of Interest; \nb. Refrain from participating in, and from using his/her personal influence in connection with, decisions where such participation may involve a Conflict of Interest or the appearance of a Conflict of Interest except:\na. To provide information when requested, or\nb. To provide information known to him/her indicating that a proposed or existing transaction could be contrary to this policy.\nc. Refrain from dealing on behalf of CRDF Global with organizations or persons on transactions involving the obligation of Project funds or the use or disposition of Project Resources except after full disclosure and with the express written authorization of CRDF Global Grant Officer. \nd. Assure that Project Personnel comply with the requirements of this section."]
["The Grantee will monitor its relationships and interests, and those of the Project Personnel, on an ongoing basis and will report any relationships or interests that might violate the provisions of this section."]
[]
[]
[]
[]
[]
[]
[]
[]
[]
[]
[]
[]
[]
[]
[]
[]
[]
[]
[]
[]
[]
[]
[]
[]
[]
[]
[]
[]
[]
[]
[]
[]
[]
[]
[null,null,null,null,null,null,null,null,null,null,null,null,null,null,null,null,null,null,{"$f":"C97","v":0}]
[]
[]
[]
[]
[]
[]
[]
[]
[]
[]
[]
[null,null,null,null,null,null,null,null,null,null,null,null,null,null,null,null,null,null,{"$f":"C109","v":0}]
[]
[]
[]
[]
[]
[]
[]
[]
[null,null,null,null,null,null,null,null,null,null,null,null,null,null,null,null,null,null,{"$f":"C118","v":0}]
[]
[]
[]
[]
[]
[]
[]
[]
[null,null,null,null,null,null,null,null,null,null,null,null,null,null,null,null,null,null,{"$f":"C127","v":0}]

{"sheet":"K. Other Terms and Conditions","index":22,"n_rows":124,"n_cols":19,"rows_kept":124,"cut":false,"hidden":true,"merged":[[83,0,83,8],[84,0,84,8],[74,0,74,8],[75,0,75,8],[77,0,77,8],[78,0,78,8],[80,0,80,8],[81,0,81,8],[40,0,40,8],[72,0,72,8],[56,0,56,8],[57,0,57,8],[59,0,59,8],[60,0,60,8],[62,0,62,8],[63,0,63,8],[65,0,65,8],[66,0,66,8],[68,0,68,8],[69,0,69,8],[71,0,71,8],[30,0,30,8],[25,0,25,8],[8,0,8,8],[9,0,9,8],[54,0,54,8],[41,0,41,8],[43,0,43,8],[44,0,44,8],[45,0,45,8],[46,0,46,8],[47,0,47,8],[48,0,48,8],[49,0,49,8],[50,0,50,8],[51,0,51,8],[53,0,53,8],[38,0,38,8],[0,3,0,5],[1,0,1,8],[2,0,2,8],[4,0,4,8],[11,0,11,8],[6,0,6,8],[31,0,31,8],[32,0,32,8],[34,0,34,8],[35,0,35,8],[37,0,37,8],[26,0,26,8],[27,0,27,8],[28,0,28,8],[29,0,29,8],[4,9,4,17],[18,0,18,8],[20,0,20,8],[22,0,22,8],[23,0,23,8],[12,0,12,8],[13,0,13,8],[14,0,14,8],[16,0,16,8]]}
[null,null,null,"ATTACHMENT H"]
["OTHER TERMS & CONDITIONS "]
["1. Export Control. It is subject to export regulations of its home country regarding export of certain technical data. No party shall export, either directly or indirectly, its own or any information or data received from any other Party of the direct product thereof to any country in contravention of such export regulations if such would violate the laws of any of the home countries of the Parties. When applicable, the Grantee acknowledges that it has the responsibility to obtain export licenses, or other export authority as may be required, with respect to activities undertaken in connection with this Agreement."]
[]
["2. Grantee Contribution (Cost share). The Grantee Contribution, whether cash or in-kind, are subject to the provisions of 2 CFR 200 and shall be used for project-related costs as set forth in the Proposal and Budget, fully documented with written records, compliant with all applicable requirements of the Agreement, and is subject to verification and audit. Indirect costs may not be counted toward the Grantee Contribution unless specifically approved. Grantee Contributions must be comprised of Grantee or Third-Party funding and cannot be comprised of other U.S. Government grant funds. Shortfalls at the end of the Agreement Period may result in commensurate reduction of grant funds or other grant support."]
[]
["3. Monitoring and Evaluation (“M&E”). CRDF Global will appropriately monitor and evaluate the financial and technical progress of Agreement activities. Grantee agrees to cooperate with all reasonable requests for assistance in connection with such M&E, including but not limited to facilitating site visits, closely tracking the performance and impact of Grant activities, and maintaining and providing records or other information pertinent to such activities. "]
[]
["4. Foreign Taxes and Related Considerations. Grantee shall comply with all applicable local tax regulations and reporting requirements, and Grantee may choose to seek advice from appropriate tax authorities or other professionals to ensure compliance. Grantee shall inform CRDF Global immediately, in writing, of any tax or duty imposed on funds or materials provided by CRDF Global under this Agreement. Before paying any tax or duty imposed on funds or materials provided by CRDF Global under this Agreement, Grantee shall first obtain the consent from CRDF Global to do so in writing. Unless otherwise agreed to by CRDF Global in writing, Grantee may not use funds or materials provided under this Agreement to pay any customs, duties, taxes, fees or other such levies and costs incurred within the territory of the Grantee’s country. CRDF assumes no liability for the recipient’s failure to pay such taxes. "]
["At CRDF Global’s request, Grantee shall submit documentation to obtain additional certification of the Project’s tax-exempt status in the country (or countries) where the project is performed. Specific instructions on requirements will be provided by CRDF Global. Failure to submit the required documentation in a timely manner as requested by CRDF Global may result in delays or suspension of payments."]
[]
["5. General Privacy Statement CRDF Global appreciates the importance of safeguarding personal data received from our partners, such as subject matter experts, job applicants, and grantees. CRDF Global takes this responsibility seriously and strives to be transparent about why and how personal data is collected and processed."]
["Definition of Personal Data. CRDF Global considers personal data to be information in any format that relates to a living individual who can be directly or indirectly identified by that information (either on its own or when it is combined with other information). Such personal data is also commonly designated as personally identifiable information or “PII.”"]
["Purpose for Collection of Personal Data. CRDF Global gathers personal data for several reasons, for example, to comply with export control regulations, to verify identity for bank transfers, and to report (in the aggregate) to sponsors about the composition of applicant or grantee bases."]
["Handling of Personal Information. CRDF Global will only use personal data for lawful purposes and with the individual’s prior informed consent. CRDF Global does not share personal data with third parties unless required. Under no circumstances will CRDF Global sell, share, or otherwise exchange personal data for commercial purposes. To protect personal data, CRDF Global has established internal protocols to manage and store the information. CRDF Global also conducts periodic audits of its records to ensure compliance with its privacy policy and applicable legal requirements."]
[]
["6. Whistleblower Policy. It is the policy of CRDF Global that grantees, vendors, and contractors are encouraged and expected to report possible violations of laws, rules and regulations, as well as fraudulent or dishonest use or misuse of CRDF Global resources or property, violations of CRDF Global’s conflict of interest policy and other serious misconduct. Reports may be made directly to CRDF Global management (who can be contacted via the main CRDF Global website www.crdfglobal.org or via the Global Compliance hotline available at https://crdfglobal.alertline.com/gcs/welcome?locale=en ). All information will be treated confidentially, and all complaints will be investigated by CRDF Global management and regularly reported to the Audit Committee of the Board of Directors. CRDF Global will not retaliate, nor will CRDF Global tolerate retaliation by any of its employees, against any grantee, vendor or contractor who makes a good faith report pursuant to this policy; even if an investigation shows that there has not been a violation."]
[]
["7. No Third-Party Beneficiary. Except as specifically set forth in this Agreement, this Agreement is not intended to create and does not create any rights in or benefits to any third party."]
[]
["8. Successors and Assigns. This Agreement shall inure to the benefit of and be binding on the Parties’ respective heirs, executors, administrators, successors, and approved assigns."]
[]
["9. Notification of Certain Events. Grantee shall notify CRDF Global, in writing and within two business days of the occurrence of any of the following events: \n• Any significant change in the methodology or procedures being used in the Project; \n• Any significant or major findings, breakthroughs, or events of unusual interest; \n• Any problems, delays or adverse conditions that will materially affect the Project, its objectives or time schedules and actions being taken to address them; \n• Any changes in key personnel or their status on the Project; and \n• Any change in a Principal Investigator’s contact information; \n• Any change in or absence of a Project Personnel for a period longer than thirty (30) days; \n• Any change in key personnel’s level of effort devoted to the Project; \n• Any significant change in the Project objectives or scope; and\n• Any reallocation between budget categories not previously approved that is equal to or exceeds $500.00. "]
["Unless otherwise approved by CRDF Global, all notices in connection with the Agreement shall be made in writing to the CRDF Global-designated representatives specified on the Cover Sheet."]
[]
["10. Reporting Requirements. Unless specifically instructed otherwise, all reports must be submitted to the Grant Officer within end of the reporting period and no later than the due dates stipulated in the Milestone/Payment Schedule/Reporting Schedule."]
["If relevant reports are not received within the set deadlines, Grantee shall provide a written explanation to CRDF Global within three business days after report’s due date. Where valid justification is not received, suspension of funding may result, and other and/or future funding to the Grantee may be jeopardized. "]
["Milestone / Project Progress Reports shall include the following:\n- Concise yet informative narrative description of the activities performed within the reporting period, a summary of implementation approach and challenges, immediate results, etc. \n- Description of progress towards achieving Project’s objectives, specified in this Agreement\n- Problems, difficulties and lessons learned\n- Any adjustments to the project implementation mode, including Project activities, or any other corrective actions\n- Information on number of beneficiaries who participated or benefited from the Project activities\n- Success stories and feedback from the participants (if applicable)\n- Photos from the activity (event), if and when applicable\n- Project activity (event) sign-in sheet to record attendance of the participants, if and when applicable (attached separately)\n- Planned activities for the next reporting period\n- Other [specify]"]
["Final Milestone / Progress Report shall include the following:\n- Short summary of all Project activities in relation to Project’s key results and achievements\n- Project-level summary of number of beneficiaries who participated or benefited from the Project activities \n- Overview and analysis of progress towards achieving Project’s goal and objectives, specified in this Agreement\n- Project-level lessons-learned, including difficulties and roadblocks that hinder Project’s implementation\n- Project-level recommendations as to future improvements in implementation approach\n- Other [specify]"]
[]
[]
[]
[]
[]
[]
[]
[]
[]
[]
[]
[]
[]
[]
[]
[]
[]
[]
[]
[]
[]
[]
[]
[]
[]
[]
[]
[]
[]
[]
[]
[]
[]
[]
[]
[]
[]
[]
[]
[]
[]
[]
[]
[]
[]
[]
[]
[]
[]
[]
[]
[]
[]
[]
[]
[]
[]
[]
[]
[]
[]
[]
[]
[]
[null,null,null,null,null,null,null,null,null,null,null,null,null,null,null,null,null,null,{"$f":"C94","v":0}]
[]
[]
[]
[]
[]
[]
[]
[]
[]
[]
[]
[null,null,null,null,null,null,null,null,null,null,null,null,null,null,null,null,null,null,{"$f":"C106","v":0}]
[]
[]
[]
[]
[]
[]
[]
[]
[null,null,null,null,null,null,null,null,null,null,null,null,null,null,null,null,null,null,{"$f":"C115","v":0}]
[]
[]
[]
[]
[]
[]
[]
[]
[null,null,null,null,null,null,null,null,null,null,null,null,null,null,null,null,null,null,{"$f":"C124","v":0}]

{"sheet":"Tecnical","index":23,"n_rows":281,"n_cols":12,"rows_kept":281,"cut":false,"hidden":true,"merged":[[36,6,36,11],[38,11,46,11],[46,7,46,8],[18,6,18,11],[0,6,0,11],[2,11,10,11],[10,7,10,8],[20,11,28,11],[28,7,28,8]]}
["Institutional Data Form",null,"Payment Terms",null,null,null,"RISK ASSESSMENT BASED ON IDF FOR APPLICANT #1"]
["Kerry McGowan",null,"NET 30"]
["Kevin Gates",null,"NET 15",null,null,null,null,"PROBABILITY","IMPACT","RISK DETERMINATION",null,{"$f":"_xlfn.IFS(AND(K14>=4,K14<=6),\"LOW\",AND(K14>=7,K14<=9),\"AVERAGE\",K14>=10,\"HIGH\")","v":{"$error":"#N/A"}}]
[]
["Fouzilla Sebbak",null,"NET 10",null,null,null,"TECHNICAL CAPACITY",{"$f":"_xlfn.IFS('IDF_Applicant#1'!$S$54>=4,\"LOW\",AND('IDF_Applicant#1'!$S$54<=3,'IDF_Applicant#1'!$S$54>2),\"AVERAGE\",'IDF_Applicant#1'!$S$54<=2,\"HIGH\")","v":{"$error":"#N/A"}},"LOW",{"$f":"_xlfn.IFS(AND(H5=\"HIGH\",I5=\"HIGH\"),\"HIGH\",AND(H5=\"HIGH\",I5=\"AVERAGE\"),\"AVERAGE\",AND(H5=\"HIGH\",I5=\"LOW\"),\"LOW\",AND(H5=\"AVERAGE\",I5=\"HIGH\"),\"HIGH\",AND(H5=\"AVERAGE\",I5=\"AVERAGE\"),\"AVERAGE\",AND(H5=\"AVERAGE\",I5=\"LOW\"),\"LOW\",AND(H5=\"LOW\",I5=\"HIGH\"),\"AVERAGE\",AND(H5=\"LOW\",I5=\"AVERAGE\"),\"LOW\",AND(H5=\"LOW\",I5=\"LOW\"),\"LOW\")","v":{"$error":"#N/A"}},{"$f":"_xlfn.IFS(J5=\"HIGH\",3,J5=\"AVERAGE\",2,J5=\"LOW\",1)","v":{"$error":"#N/A"}}]
["Nadine Zabaneh"]
["Salman Al-Darbisi",null,"Select an option",null,null,null,"ADMINISTRATIVE CAPACITY",{"$f":"_xlfn.IFS('IDF_Applicant#1'!$S$66>=4,\"LOW\",AND('IDF_Applicant#1'!$S$66<=3,'IDF_Applicant#1'!$S$66>2),\"AVERAGE\",'IDF_Applicant#1'!$S$66<=2,\"HIGH\")","v":{"$error":"#N/A"}},"LOW",{"$f":"_xlfn.IFS(AND(H7=\"HIGH\",I7=\"HIGH\"),\"HIGH\",AND(H7=\"HIGH\",I7=\"AVERAGE\"),\"AVERAGE\",AND(H7=\"HIGH\",I7=\"LOW\"),\"LOW\",AND(H7=\"AVERAGE\",I7=\"HIGH\"),\"HIGH\",AND(H7=\"AVERAGE\",I7=\"AVERAGE\"),\"AVERAGE\",AND(H7=\"AVERAGE\",I7=\"LOW\"),\"LOW\",AND(H7=\"LOW\",I7=\"HIGH\"),\"AVERAGE\",AND(H7=\"LOW\",I7=\"AVERAGE\"),\"LOW\",AND(H7=\"LOW\",I7=\"LOW\"),\"LOW\")","v":{"$error":"#N/A"}},{"$f":"_xlfn.IFS(J7=\"HIGH\",3,J7=\"AVERAGE\",2,J7=\"LOW\",1)","v":{"$error":"#N/A"}}]
["Sarah Haddad",null,"LOW"]
["Huda AL-SHARIF",null,"AVERAGE",null,null,null,"FINANCIAL CAPACITY",{"$f":"_xlfn.IFS('IDF_Applicant#1'!G14>=4,\"LOW\",AND('IDF_Applicant#1'!$S$83<=3,'IDF_Applicant#1'!$S$83>2),\"AVERAGE\",'IDF_Applicant#1'!$S$83<=2,\"HIGH\")","v":{"$error":"#N/A"}},"AVERAGE",{"$f":"_xlfn.IFS(AND(H9=\"HIGH\",I9=\"HIGH\"),\"HIGH\",AND(H9=\"HIGH\",I9=\"AVERAGE\"),\"AVERAGE\",AND(H9=\"HIGH\",I9=\"LOW\"),\"LOW\",AND(H9=\"AVERAGE\",I9=\"HIGH\"),\"HIGH\",AND(H9=\"AVERAGE\",I9=\"AVERAGE\"),\"AVERAGE\",AND(H9=\"AVERAGE\",I9=\"LOW\"),\"LOW\",AND(H9=\"LOW\",I9=\"HIGH\"),\"AVERAGE\",AND(H9=\"LOW\",I9=\"AVERAGE\"),\"LOW\",AND(H9=\"LOW\",I9=\"LOW\"),\"LOW\")","v":{"$error":"#N/A"}},{"$f":"_xlfn.IFS(J9=\"HIGH\",3,J9=\"AVERAGE\",2,J9=\"LOW\",1)","v":{"$error":"#N/A"}}]
["Lyubov Taranenko",null,"HIGH"]
["Vitaliy Vysochin",null,null,null,null,null,"GEOPOLITICAL PROFILE","AVERAGE",null,null,{"$f":"_xlfn.IFS(H11=\"HIGH\",3,H11=\"AVERAGE\",2,H11=\"LOW\",1)","v":2}]
["Yana Slyshchenko"]
["Dinmukhamed Zharylkassyn"]
["Svitlana Kutniuk",null,null,null,null,null,null,null,null,null,{"$f":"SUM(K5:K11)","v":{"$error":"#N/A"}}]
[null,null,"Select"]
[null,null,"G. Bioethics Compliance (DNA)"]
["Alabama",null,"H. Bioethics Compliance",null,null,null,null,null,null,"`"]
["Alaska",null,"I. Equipment Compliance"]
["Arizona",null,"J. Financial Reporting",null,null,null,"RISK ASSESSMENT BASED ON IDF FOR APPLICANT #2"]
["Arkansas",null,"K. Other Terms and Conditions"]
["California",null,null,null,null,null,null,"PROBABILITY","IMPACT","RISK DETERMINATION",null,{"$f":"_xlfn.IFS(AND(K32>=4,K32<=6),\"LOW\",AND(K32>=7,K32<=9),\"AVERAGE\",K32>=10,\"HIGH\")","v":{"$error":"#N/A"}}]
["Colorado"]
["Connecticut",null,null,null,null,null,"TECHNICAL CAPACITY",{"$f":"_xlfn.IFS('IDF_Applicant#2'!$S$54>=4,\"LOW\",AND('IDF_Applicant#2'!$S$54<=3,'IDF_Applicant#2'!$S$54>2),\"AVERAGE\",'IDF_Applicant#2'!$S$54<=2,\"HIGH\")","v":{"$error":"#N/A"}},"LOW",{"$f":"_xlfn.IFS(AND(H23=\"HIGH\",I23=\"HIGH\"),\"HIGH\",AND(H23=\"HIGH\",I23=\"AVERAGE\"),\"AVERAGE\",AND(H23=\"HIGH\",I23=\"LOW\"),\"LOW\",AND(H23=\"AVERAGE\",I23=\"HIGH\"),\"HIGH\",AND(H23=\"AVERAGE\",I23=\"AVERAGE\"),\"AVERAGE\",AND(H23=\"AVERAGE\",I23=\"LOW\"),\"LOW\",AND(H23=\"LOW\",I23=\"HIGH\"),\"AVERAGE\",AND(H23=\"LOW\",I23=\"AVERAGE\"),\"LOW\",AND(H23=\"LOW\",I23=\"LOW\"),\"LOW\")","v":{"$error":"#N/A"}},{"$f":"_xlfn.IFS(J23=\"HIGH\",3,J23=\"AVERAGE\",2,J23=\"LOW\",1)","v":{"$error":"#N/A"}}]
["Delaware"]
["Florida",null,null,null,null,null,"ADMINISTRATIVE CAPACITY",{"$f":"_xlfn.IFS('IDF_Applicant#2'!$S$66>=4,\"LOW\",AND('IDF_Applicant#2'!$S$66<=3,'IDF_Applicant#2'!$S$66>2),\"AVERAGE\",'IDF_Applicant#2'!$S$66<=2,\"HIGH\")","v":{"$error":"#N/A"}},"LOW",{"$f":"_xlfn.IFS(AND(H25=\"HIGH\",I25=\"HIGH\"),\"HIGH\",AND(H25=\"HIGH\",I25=\"AVERAGE\"),\"AVERAGE\",AND(H25=\"HIGH\",I25=\"LOW\"),\"LOW\",AND(H25=\"AVERAGE\",I25=\"HIGH\"),\"HIGH\",AND(H25=\"AVERAGE\",I25=\"AVERAGE\"),\"AVERAGE\",AND(H25=\"AVERAGE\",I25=\"LOW\"),\"LOW\",AND(H25=\"LOW\",I25=\"HIGH\"),\"AVERAGE\",AND(H25=\"LOW\",I25=\"AVERAGE\"),\"LOW\",AND(H25=\"LOW\",I25=\"LOW\"),\"LOW\")","v":{"$error":"#N/A"}},{"$f":"_xlfn.IFS(J25=\"HIGH\",3,J25=\"AVERAGE\",2,J25=\"LOW\",1)","v":{"$error":"#N/A"}}]
["Georgia"]
["Hawaii",null,null,null,null,null,"FINANCIAL CAPACITY",{"$f":"_xlfn.IFS('IDF_Applicant#2'!G32>=4,\"LOW\",AND('IDF_Applicant#2'!$S$83<=3,'IDF_Applicant#2'!$S$83>2),\"AVERAGE\",'IDF_Applicant#2'!$S$83<=2,\"HIGH\")","v":{"$error":"#N/A"}},"AVERAGE",{"$f":"_xlfn.IFS(AND(H27=\"HIGH\",I27=\"HIGH\"),\"HIGH\",AND(H27=\"HIGH\",I27=\"AVERAGE\"),\"AVERAGE\",AND(H27=\"HIGH\",I27=\"LOW\"),\"LOW\",AND(H27=\"AVERAGE\",I27=\"HIGH\"),\"HIGH\",AND(H27=\"AVERAGE\",I27=\"AVERAGE\"),\"AVERAGE\",AND(H27=\"AVERAGE\",I27=\"LOW\"),\"LOW\",AND(H27=\"LOW\",I27=\"HIGH\"),\"AVERAGE\",AND(H27=\"LOW\",I27=\"AVERAGE\"),\"LOW\",AND(H27=\"LOW\",I27=\"LOW\"),\"LOW\")","v":{"$error":"#N/A"}},{"$f":"_xlfn.IFS(J27=\"HIGH\",3,J27=\"AVERAGE\",2,J27=\"LOW\",1)","v":{"$error":"#N/A"}}]
["Idaho"]
["Illinois",null,null,null,null,null,"GEOPOLITICAL PROFILE","LOW",null,null,{"$f":"_xlfn.IFS(H29=\"HIGH\",3,H29=\"AVERAGE\",2,H29=\"LOW\",1)","v":1}]
["Indiana"]
["Iowa"]
["Kansas",null,null,null,null,null,null,null,null,null,{"$f":"SUM(K23:K29)","v":{"$error":"#N/A"}}]
["Kentucky"]
["Louisiana"]
["Maine"]
["Maryland"]
["Massachusetts",null,null,null,null,null,"RISK ASSESSMENT BASED ON IDF FOR APPLICANT #3"]
["Michigan"]
["Minnesota",null,null,null,null,null,null,"PROBABILITY","IMPACT","RISK DETERMINATION",null,{"$f":"_xlfn.IFS(AND(K50>=4,K50<=6),\"LOW\",AND(K50>=7,K50<=9),\"AVERAGE\",K50>=10,\"HIGH\")","v":{"$error":"#N/A"}}]
["Mississippi"]
["Missouri",null,null,null,null,null,"TECHNICAL CAPACITY",{"$f":"_xlfn.IFS('IDF_Applicant#1'!$S$54>=4,\"LOW\",AND('IDF_Applicant#1'!$S$54<=3,'IDF_Applicant#1'!$S$54>2),\"AVERAGE\",'IDF_Applicant#1'!$S$54<=2,\"HIGH\")","v":{"$error":"#N/A"}},"LOW",{"$f":"_xlfn.IFS(AND(H41=\"HIGH\",I41=\"HIGH\"),\"HIGH\",AND(H41=\"HIGH\",I41=\"AVERAGE\"),\"AVERAGE\",AND(H41=\"HIGH\",I41=\"LOW\"),\"LOW\",AND(H41=\"AVERAGE\",I41=\"HIGH\"),\"HIGH\",AND(H41=\"AVERAGE\",I41=\"AVERAGE\"),\"AVERAGE\",AND(H41=\"AVERAGE\",I41=\"LOW\"),\"LOW\",AND(H41=\"LOW\",I41=\"HIGH\"),\"AVERAGE\",AND(H41=\"LOW\",I41=\"AVERAGE\"),\"LOW\",AND(H41=\"LOW\",I41=\"LOW\"),\"LOW\")","v":{"$error":"#N/A"}},{"$f":"_xlfn.IFS(J41=\"HIGH\",3,J41=\"AVERAGE\",2,J41=\"LOW\",1)","v":{"$error":"#N/A"}}]
["Montana"]
["Nebraska",null,null,null,null,null,"ADMINISTRATIVE CAPACITY",{"$f":"_xlfn.IFS('IDF_Applicant#3'!$S$66>=4,\"LOW\",AND('IDF_Applicant#3'!$S$66<=3,'IDF_Applicant#3'!$S$66>2),\"AVERAGE\",'IDF_Applicant#3'!$S$66<=2,\"HIGH\")","v":{"$error":"#N/A"}},"LOW",{"$f":"_xlfn.IFS(AND(H43=\"HIGH\",I43=\"HIGH\"),\"HIGH\",AND(H43=\"HIGH\",I43=\"AVERAGE\"),\"AVERAGE\",AND(H43=\"HIGH\",I43=\"LOW\"),\"LOW\",AND(H43=\"AVERAGE\",I43=\"HIGH\"),\"HIGH\",AND(H43=\"AVERAGE\",I43=\"AVERAGE\"),\"AVERAGE\",AND(H43=\"AVERAGE\",I43=\"LOW\"),\"LOW\",AND(H43=\"LOW\",I43=\"HIGH\"),\"AVERAGE\",AND(H43=\"LOW\",I43=\"AVERAGE\"),\"LOW\",AND(H43=\"LOW\",I43=\"LOW\"),\"LOW\")","v":{"$error":"#N/A"}},{"$f":"_xlfn.IFS(J43=\"HIGH\",3,J43=\"AVERAGE\",2,J43=\"LOW\",1)","v":{"$error":"#N/A"}}]
["Nevada"]
["New Hampshire",null,null,null,null,null,"FINANCIAL CAPACITY",{"$f":"_xlfn.IFS('IDF_Applicant#1'!G50>=4,\"LOW\",AND('IDF_Applicant#1'!$S$83<=3,'IDF_Applicant#1'!$S$83>2),\"AVERAGE\",'IDF_Applicant#1'!$S$83<=2,\"HIGH\")","v":{"$error":"#N/A"}},"AVERAGE",{"$f":"_xlfn.IFS(AND(H45=\"HIGH\",I45=\"HIGH\"),\"HIGH\",AND(H45=\"HIGH\",I45=\"AVERAGE\"),\"AVERAGE\",AND(H45=\"HIGH\",I45=\"LOW\"),\"LOW\",AND(H45=\"AVERAGE\",I45=\"HIGH\"),\"HIGH\",AND(H45=\"AVERAGE\",I45=\"AVERAGE\"),\"AVERAGE\",AND(H45=\"AVERAGE\",I45=\"LOW\"),\"LOW\",AND(H45=\"LOW\",I45=\"HIGH\"),\"AVERAGE\",AND(H45=\"LOW\",I45=\"AVERAGE\"),\"LOW\",AND(H45=\"LOW\",I45=\"LOW\"),\"LOW\")","v":{"$error":"#N/A"}},{"$f":"_xlfn.IFS(J45=\"HIGH\",3,J45=\"AVERAGE\",2,J45=\"LOW\",1)","v":{"$error":"#N/A"}}]
["New Jersey"]
["New Mexico",null,null,null,null,null,"GEOPOLITICAL PROFILE","AVERAGE",null,null,{"$f":"_xlfn.IFS(H47=\"HIGH\",3,H47=\"AVERAGE\",2,H47=\"LOW\",1)","v":2}]
["New York"]
["North Carolina"]
["North Dakota",null,null,null,null,null,null,null,null,null,{"$f":"SUM(K41:K47)","v":{"$error":"#N/A"}}]
["Ohio"]
["Oklahoma"]
["Oregon"]
["Pennsylvania"]
["Rhode Island"]
["South Carolina"]
["South Dakota"]
["Tennessee"]
["Texas"]
["Utah"]
["Vermont"]
["Virginia"]
["Washington"]
["West Virginia"]
["Wisconsin"]
["Wyoming"]
[]
[]
[]
["Afghanistan"]
["Albania"]
["Algeria"]
["Andorra"]
["Angola"]
["Antigua and Barbuda"]
["Argentina"]
["Armenia"]
["Australia"]
["Austria"]
["Azerbaijan"]
["Bahamas"]
["Bahrain"]
["Bangladesh"]
["Barbados"]
["Belarus"]
["Belgium"]
["Belize"]
["Benin"]
["Bhutan"]
["Bolivia"]
["Bosnia and Herzegovina"]
["Botswana"]
["Brazil"]
["Brunei"]
["Bulgaria"]
["Burkina Faso"]
["Burundi"]
["Cabo Verde"]
["Cambodia"]
["Cameroon"]
["Canada"]
["Central African Republic"]
["Chad"]
["Chile"]
["China"]
["Colombia"]
["Comoros"]
["Congo, Democratic Republic of the"]
["Congo, Republic of the"]
["Costa Rica"]
["Cote d'Ivoire"]
["Croatia"]
["Cuba"]
["Cyprus"]
["Czechia"]
["Denmark"]
["Djibouti"]
["Dominica"]
["Dominican Republic"]
["Ecuador"]
["Egypt"]
["El Salvador"]
["Equatorial Guinea"]
["Eritrea"]
["Estonia"]
["Eswatini"]
["Ethiopia"]
["Fiji"]
["Finland"]
["France"]
["Gabon"]
["Gambia"]
["Georgia"]
["Germany"]
["Ghana"]
["Greece"]
["Grenada"]
["Guatemala"]
["Guinea"]
["Guinea-Bissau"]
["Guyana"]
["Haiti"]
["Honduras"]
["Hungary"]
["Iceland"]
["India"]
["Indonesia"]
["Iran"]
["Iraq"]
["Ireland"]
["Israel"]
["Italy"]
["Jamaica"]
["Japan"]
["Jordan"]
["Kazakhstan"]
["Kenya"]
["Kiribati"]
["Kosovo"]
["Kuwait"]
["Kyrgyzstan"]
["Laos"]
["Latvia"]
["Lebanon"]
["Lesotho"]
["Liberia"]
["Libya"]
["Liechtenstein"]
["Lithuania"]
["Luxembourg"]
["Madagascar"]
["Malawi"]
["Malaysia"]
["Maldives"]
["Mali"]
["Malta"]
["Marshall Islands"]
["Mauritania"]
["Mauritius"]
["Mexico"]
["Micronesia"]
["Moldova"]
["Monaco"]
["Mongolia"]
["Montenegro"]
["Morocco"]
["Mozambique"]
["Myanmar"]
["Namibia"]
["Nauru"]
["Nepal"]
["Netherlands"]
["New Zealand"]
["Nicaragua"]
["Niger"]
["Nigeria"]
["North Korea"]
["North Macedonia"]
["Norway"]
["Oman"]
["Pakistan"]
["Palau"]
["Palestine"]
["Panama"]
["Papua New Guinea"]
["Paraguay"]
["Peru"]
["Philippines"]
["Poland"]
["Portugal"]
["Qatar"]
["Romania"]
["Russia"]
["Rwanda"]
["Saint Kitts and Nevis"]
["Saint Lucia"]
["Saint Vincent and the Grenadines"]
["Samoa"]
["San Marino"]
["Sao Tome and Principe"]
["Saudi Arabia"]
["Senegal"]
["Serbia"]
["Seychelles"]
["Sierra Leone"]
["Singapore"]
["Slovakia"]
["Slovenia"]
["Solomon Islands"]
["Somalia"]
["South Africa"]
["South Korea"]
["South Sudan"]
["Spain"]
["Sri Lanka"]
["Sudan"]
["Suriname"]
["Sweden"]
["Switzerland"]
["Syria"]
["Taiwan"]
["Tajikistan"]
["Tanzania"]
["Thailand"]
["Timor-Leste"]
["Togo"]
["Tonga"]
["Trinidad and Tobago"]
["Tunisia"]
["Turkey"]
["Turkmenistan"]
["Tuvalu"]
["Uganda"]
["Ukraine"]
["United Arab Emirates (UAE)"]
["United Kingdom (UK)"]
["United States of America (USA)"]
["Uruguay"]
["Uzbekistan"]
["Vanuatu"]
["Vatican City (Holy See)"]
["Venezuela"]
["Vietnam"]
["Yemen"]
["Zambia"]
["Zimbabwe"]
[]
["Select an option"]
["Provided"]
["Not provided"]
[]
["Select an option"]
["University"]
["Corporation / Company"]
["Government "]
["International Organization"]
["Other"]
[]
["Select an option"]
["Yes"]
["No"]